Workbook

Sheet Contents
C3: Sheet Tab | D3: Description | E3: Author
B4: 1 | C4: Contents
B5: 2 | C5: Model Features
B6: 3 | C6: Summary
B7: 4 | C7: Master Scenario
B8: 5 | C8: S. Cement Fin.Model
B9: 6 | C9: Audit Sheet
B10: 7 | C10: Graphs
B11: 8 | C11: PE&ROE
B12: 9 | C12: MB Graph
B13: 10 | C13: Financials
B14: 11 | C14: Financing Structure
B15: 12 | C15: Discounting
B16: 13 | C16: Analyst Report
B18: File Name: | D18: C:\Users\Monika\Documents\Courses\Chapter 1. Models and Analysis\1. Corporate Model Templates and Exercises\Featured Corporate Finance Models\Saudi Cement Financial Model.xlsm
B20: Colour Codes
B22: Last Save Date | D22: 2014-06-09T13:37:30
B23: Last Save By | D23: Monika Lewinski

Sheet Model Features
Q2: There are instructions for just about every cell as shown below
B3: Items in this model
B5: This model shows that you can make a reasonable simple model from the data in TAWDAL
C7: 1. Standard read of financial statements. Can read from website
C8: 2. Switches for history and for projection in the financial model page -- key to making the model flexible. Use TRUE/FALSE switches
C9: 3. Conditional Formatting by using formula option and TRUE/FALSE switch
C10: 4. Assumptions from history with flexible options for putting in data that varies over time with the INDEX function
C11: 5. Conditional Formatting to show row when using the INDEX function -- Compare scenario number selected to the scenario number on the left
C12: 6. Use code number for time series inputs where variables change from period to period -- see the sales growth assumption
C13: 7. Use the historic switch with the closing balances to transfer between hisory and forecast -- see the depreciation, debt and equity balances
C14: 8. In making the financial statements, pull numbers from other places with calculations made.
C15: 9. Make the pre-tax cash flow calculations transparent
C16: 10. Use SUMIF to make test of history
C17: 11. Include the valuation parameters below the financing assumptions. Use the spinner box in two parts to make sensitivity
C18: 12. In construction of balance sheet, all accounts should from prior numbers in the sheet above
B20: Valuation Features
C21: 1. Use alternative explicit periods and stable periods with TRUE/FALSE switches at the top of the model
C22: 2. Use alternative terminal value approaches - Growth or EV/EBITDA
C23: 3. Create Spinner boxes. Use sheet-sheet and two stage approach
C25: 4. Normalize Cash Flow wih adjustments for each of the components
C26: 5. Normalize for Stable ROIC using ROIC x Inv Cap = NOPAT and NOPAT = EBIT/(1-t) and EBITDA = EBIT + Dep

Sheet Summary
B2: Valuation Assumptions | F2: ='Audit Sheet'!E10 -> Model OK
C3: WACC | D3: ='Master Scenario'!D4 -> 0.0845
C4: Terminal Growth | D4: ='S. Cement Fin.Model'!G148 -> 0.02
C5: Terminal EV/EBITDA | D5: ='S. Cement Fin.Model'!$G$149 -> 11
C6: Stable ROIC | D6: ='S. Cement Fin.Model'!$G$152 -> 0.2115
C8: Apply Normalized Cash Flow | D8: ='S. Cement Fin.Model'!G154 -> FALSE
C9: Use Normalized ROIC | D9: ='S. Cement Fin.Model'!G155 -> FALSE
C11: Terminal Year | D11: ='S. Cement Fin.Model'!G4 -> 2018
D14: Growth | E14: EV/EBITDA | F14: Value Driver
C15: Valuation | D15: ='S. Cement Fin.Model'!G251 -> 118.1324066 | E15: ='S. Cement Fin.Model'!G253 -> 102.0343191 | F15: ='S. Cement Fin.Model'!G254 -> 108.3427701
C17: Implied P/E Ratio | D17: =TRANSPOSE('S. Cement Fin.Model'!I266:I268) -> 16.08603655 | E17: 13.89396723 | F17: 14.75298616
C18: Implied EV/EBITDA Ratio | D18: =TRANSPOSE('S. Cement Fin.Model'!I261:I263) -> 13.20819884 | E18: 11.42873319 | F18: 12.12606272
C20: Terminal EV/EBITDA Ratio | D20: ='S. Cement Fin.Model'!I257 -> 13.41521262 | E20: ='S. Cement Fin.Model'!I258 -> 11 | F20: ='S. Cement Fin.Model'!I259 -> 11.94646339
C22: Current Price | D22: ='S. Cement Fin.Model'!G160 -> 113
C23: Future P/E Ratio | D23: ='S. Cement Fin.Model'!G161 -> 15
C24: Prospective Earnings | D24: ='S. Cement Fin.Model'!G272 -> 8.527940645
C25: Target Price | D25: ='S. Cement Fin.Model'!G273 -> 127.9191097
C27: Equity IRR | D27: ='S. Cement Fin.Model'!G275 -> 0.08402219481

Sheet Master Scenario
C3: Code No. | D3: 1
C4: WACC | D4: ='S. Cement Fin.Model'!G147 -> 0.0845
C5: Terminal growth | D5: ='S. Cement Fin.Model'!G148 -> 0.02
D7: 1 | E7: 2 | F7: 3 | G7: 4 | H7: 5 | I7: 6 | J7: 7 | L7: Growth | M7: EV/EBITDA | N7: Value Driver | O7: Equity
D8: Sales Gr. | E8: COGS Mgn. | F8: Admin Exp. | G8: A/R Turn | H8: Inventory Turn | I8: A/P Turnover | J8: CAPEX To Sales | L8: Share Value | M8: Share Value | N8: Share Value | O8: IRR
L9: ='S. Cement Fin.Model'!G251 -> 118.1324066 | M9: =Summary!$E$15 -> 102.0343191 | N9: =Summary!$F$15 -> 108.3427701 | O9: =Summary!$D$27 -> 0.08402219481
C10: Base Case | D10: 2 | E10: 1 | F10: 0.045 | G10: 0.15 | H10: 0.75 | I10: 0.9 | J10: 0.07 | K10: 1 | L10: 116.317113 | M10: 99.51321222 | N10: 105.5834773 | O10: 0.0778098736
C11: Low Case | D11: 4 | E11: 2 | F11: 0.05 | G11: 0.2 | H11: 0.9 | I11: 0.8 | J11: 0.08 | K11: 2 | L11: 76.92645135 | M11: 69.80420094 | N11: 70.54599643 | O11: -0.02905770392
C12: High Case | D12: 3 | E12: 3 | F12: 0.03 | G12: 0.13 | H12: 0.6 | I12: 1.2 | J12: 0.03 | K12: 3 | L12: 154.9867615 | M12: 123.6493311 | N12: 134.3274346 | O12: 0.142938311
B13: 1 | C13: =TRANSPOSE(D8:J8)&C11 -> Sales Gr. Low Case | D13: =IF($B13=D$7,D$11,D$10) -> 4 | E13: 1 | F13: 0.045 | G13: 0.15 | H13: 0.75 | I13: 0.9 | J13: 0.07 | K13: 4 | L13: 111.1203771 | M13: 94.7117607 | N13: 99.8608565 | O13: 0.0612107508
B14: 2 | C14: COGS Mgn. Low Case | D14: 2 | E14: 2 | F14: 0.045 | G14: 0.15 | H14: 0.75 | I14: 0.9 | J14: 0.07 | K14: 5 | L14: 87.66871208 | M14: 77.24948207 | N14: 79.06907753 | O14: -0.004684493224
B15: 3 | C15: Admin Exp. Low Case | D15: 2 | E15: 1 | F15: 0.05 | G15: 0.15 | H15: 0.75 | I15: 0.9 | J15: 0.07 | K15: 6 | L15: 115.1769242 | M15: 98.62543938 | N15: 104.5438948 | O15: 0.07493891541
B16: 4 | C16: A/R Turn Low Case | D16: 2 | E16: 1 | F16: 0.045 | G16: 0.2 | H16: 0.75 | I16: 0.9 | J16: 0.07 | K16: 7 | L16: 115.2254663 | M16: 98.77728293 | N16: 104.847548 | O16: 0.07724811242
B17: 5 | C17: Inventory Turn Low Case | D17: 2 | E17: 1 | F17: 0.045 | G17: 0.15 | H17: 0.9 | I17: 0.9 | J17: 0.07 | K17: 8 | L17: 115.1381346 | M17: 98.71840858 | N17: 104.7886737 | O17: 0.07720313567
B18: 6 | C18: A/P Turnover Low Case | D18: 2 | E18: 1 | F18: 0.045 | G18: 0.15 | H18: 0.75 | I18: 0.8 | J18: 0.07 | K18: 9 | L18: 115.5311274 | M18: 98.98334313 | N18: 105.0536082 | O18: 0.07740548918
B19: 7 | C19: CAPEX To Sales Low Case | D19: 2 | E19: 1 | F19: 0.045 | G19: 0.15 | H19: 0.75 | I19: 0.9 | J19: 0.08 | K19: 10 | L19: 113.9727894 | M19: 99.00963791 | N19: 104.8346994 | O19: 0.07640446096
B20: 1 | C20: =TRANSPOSE(D8:J8)&C12 -> Sales Gr. High Case | D20: =IF($B20=D$7,D$12,D$10) -> 3 | E20: 1 | F20: 0.045 | G20: 0.15 | H20: 0.75 | I20: 0.9 | J20: 0.07 | K20: 11 | L20: 129.7158268 | M20: 111.3978978 | N20: 119.8416751 | O20: 0.1160520013
B21: 2 | C21: COGS Mgn. High Case | D21: 2 | E21: 3 | F21: 0.045 | G21: 0.15 | H21: 0.75 | I21: 0.9 | J21: 0.07 | K21: 12 | L21: 121.1980357 | M21: 103.4058139 | N21: 110.0833175 | O21: 0.09008477815
B22: 3 | C22: Admin Exp. High Case | D22: 2 | E22: 1 | F22: 0.03 | G22: 0.15 | H22: 0.75 | I22: 0.9 | J22: 0.07 | K22: 13 | L22: 119.7376796 | M22: 102.1765307 | N22: 108.7022247 | O22: 0.08630970839
B23: 4 | C23: A/R Turn High Case | D23: 2 | E23: 1 | F23: 0.045 | G23: 0.13 | H23: 0.75 | I23: 0.9 | J23: 0.07 | K23: 14 | L23: 116.7537717 | M23: 99.80758394 | N23: 105.877849 | O23: 0.07804290208
B24: 5 | C24: Inventory Turn High Case | D24: 2 | E24: 1 | F24: 0.045 | G24: 0.15 | H24: 0.6 | I24: 0.9 | J24: 0.07 | K24: 15 | L24: 117.4960915 | M24: 100.3080159 | N24: 106.3782809 | O24: 0.0788467285
B25: 6 | C25: A/P Turnover High Case | D25: 2 | E25: 1 | F25: 0.045 | G25: 0.15 | H25: 0.75 | I25: 1.2 | J25: 0.07 | K25: 16 | L25: 118.6750699 | M25: 101.1028195 | N25: 107.1730846 | O25: 0.07951734874
B26: 7 | C26: CAPEX To Sales High Case | D26: 2 | E26: 1 | F26: 0.045 | G26: 0.15 | H26: 0.75 | I26: 0.9 | J26: 0.03 | K26: 17 | L26: 125.6944074 | M26: 101.5275095 | N26: 108.5785889 | O26: 0.08249071995
C28: =INDEX(C10:C27,$D$3) -> Base Case | D28: 2 | E28: 1 | F28: 0.045 | G28: 0.15 | H28: 0.75 | I28: 0.9 | J28: 0.07
D32: Low vs Base | E32: High vs Base
C33: =TRANSPOSE(D8:J8) -> Sales Gr. | D33: =L13-$L$10 -> -5.19673588 | E33: =L20-$L$10 -> 13.39871375
C34: COGS Mgn. | D34: =L14-$L$10 -> -28.64840094 | E34: =L21-$L$10 -> 4.880922677
C35: Admin Exp. | D35: -1.140188846 | E35: 3.420566538
C36: A/R Turn | D36: -1.0916467 | E36: 0.4366586799
C37: Inventory Turn | D37: -1.178978436 | E37: 1.178978436
C38: A/P Turnover | D38: -0.7859856239 | E38: 2.357956872
C39: CAPEX To Sales | D39: -2.344323593 | E39: 9.377294373

Sheet S. Cement Fin.Model
C1: Timeline
D2: Year | J2: 2010 | K2: =J2+1 -> 2011 | L2: =K2+1 -> 2012 | M2: 2013 | N2: 2014 | O2: 2015 | P2: 2016 | Q2: 2017 | R2: 2018 | S2: 2019 | T2: 2020 | U2: 2021 | V2: 2022 | W2: 2023
D3: Historic Period | G3: 2013 | J3: =J2<=$G$3 -> TRUE | K3: =K2<=$G$3 -> TRUE | L3: TRUE | M3: TRUE | N3: FALSE | O3: FALSE | P3: FALSE | Q3: FALSE | R3: FALSE | S3: FALSE | T3: FALSE | U3: FALSE | V3: FALSE | W3: FALSE
D4: Projection Period | G4: 2018 | J4: =AND(J2>$G$3,J2<=$G$4) -> FALSE | K4: =AND(K2>$G$3,K2<=$G$4) -> FALSE | L4: FALSE | M4: FALSE | N4: TRUE | O4: TRUE | P4: TRUE | Q4: TRUE | R4: TRUE | S4: FALSE | T4: FALSE | U4: FALSE | V4: FALSE | W4: FALSE
D5: Terminal period | G5: =G4 -> 2018 | J5: =J2=$G$5 -> FALSE | K5: =K2=$G$5 -> FALSE | L5: FALSE | M5: FALSE | N5: FALSE | O5: FALSE | P5: FALSE | Q5: FALSE | R5: TRUE | S5: FALSE | T5: FALSE | U5: FALSE | V5: FALSE | W5: FALSE
C7: Historical Statements
F8: BALANCE SHEET | J8: 2010-12-31 | K8: 2011-12-31 | L8: 2012-12-31 | M8: 2013-12-31
F9: Current Assets | J9: 345095 | K9: 457228 | L9: 478893 | M9: 449854
F10: Inventory | J10: 525381 | K10: 478867 | L10: 322714 | M10: 536554
F11: Investments | J11: 68836 | K11: 79215 | L11: 97506 | M11: 91464
F12: Fixed Assets | J12: 3677361 | K12: 3583609 | L12: 3434049 | M12: 3293023
F13: Other Assets | J13: 0 | K13: 0 | L13: 0 | M13: 0
F14: Total Assets | J14: 4616673 | K14: 4598919 | L14: 4333162 | M14: 4370895
F15: Current Liabilities - A/P | J15: 735555 | K15: 824477 | L15: 767386 | M15: 841467
F16: Debt | J16: 509880 | K16: 492177 | L16: 407922 | M16: 320982
F17: Other Liabilities | J17: 0 | K17: 0 | L17: 0 | M17: 0
F18: Shareholders Equity | J18: 3371238 | K18: 3282265 | L18: 3157854 | M18: 3208446
F19: Minority Interests | J19: 0 | K19: 0 | L19: 0 | M19: 0
F20: Total Liabilities and Shareholder Equity | J20: 4616673 | K20: 4598919 | L20: 4333162 | M20: 4370895
F21: All figures are in | J21: Thousand | K21: Thousand | L21: Thousand | M21: Thousands
F22: Currency | J22: SAR | K22: SAR | L22: SAR | M22: SAR
F23: STATEMENT OF INCOME | J23: 2010-12-31 | K23: 2011-12-31 | L23: 2012-12-31 | M23: 2013-12-31
F24: Sales | J24: 1526151 | K24: 1716095 | L24: 2203447 | M24: 2187255
F25: Sales Cost | J25: 757245 | K25: 765095 | L25: 974237 | M25: 902993
F26: Total Income | J26: 768906 | K26: 951000 | L26: 1229210 | M26: 1284262
F27: Other Revenues | J27: 16572 | K27: 4906 | L27: 14980 | M27: -2009
F28: Total Revenues | J28: 785478 | K28: 955906 | L28: 1244190 | M28: 1282253
F29: Admin and Marketing Expenses | J29: 87518 | K29: 85928 | L29: 87153 | M29: 97887
F30: Depreciation | J30: 0 | K30: 0 | L30: 0 | M30: 0
F31: Financial Expenses | J31: 21522 | K31: 17414 | L31: 14585 | M31: 13335
F32: Total Expenses | J32: 109040 | K32: 103342 | L32: 101738 | M32: 111222
F33: Net Income Before Zakat | J33: 676438 | K33: 852564 | L33: 1142452 | M33: 1171031
F34: Zakat | J34: 16911 | K34: 21337 | L34: 40663 | M34: 47239
F35: Net Income | J35: 659527 | K35: 831227 | L35: 1101789 | M35: 1123792
F36: Balance First Period | J36: 1111696 | K36: 1193085 | L36: 1023190 | M36: 792854
F37: Reserves | J37: 65953 | K37: 83122 | L37: 105925 | M37: 0
F38: Cash Dividends | J38: 612000 | K38: 688500 | L38: 535500 | M38: 535500
F39: Other Distributions | J39: 512185 | K39: 920200 | L39: 1226200 | M39: 1073200
F40: Balance End Period | J40: 581085 | K40: 332490 | L40: 257354 | M40: 307946
F41: All figures are in | J41: Thousand | K41: Thousand | L41: Thousand | M41: Thousands
F42: Currency | J42: SAR | K42: SAR | L42: SAR | M42: SAR
F43: CASH FLOWS | J43: 2010-12-31 | K43: 2011-12-31 | L43: 2012-12-31 | M43: 2013-12-31
F44: Net Income | J44: 676438 | K44: 853494 | L44: 1142452 | M44: 1171031
F45: Depreciation | J45: 212753 | K45: 186262 | L45: 200747 | M45: 199999
F46: Accounts Receivable | J46: -51791 | K46: 28918 | L46: -26700 | M46: -84270
F47: Inventory | J47: 120328 | K47: 46514 | L47: 156153 | M47: -213840
F48: Prepaid Expenses | J48: 0 | K48: 0 | L48: 0 | M48: 0
F49: Accounts Payable | J49: -37560 | K49: 21406 | L49: 6182 | M49: 26133
F50: Other Changes in Oper. Activity | J50: -27925 | K50: -18605 | L50: -46874 | M50: -24213
F51: Purchases of Fixed Assets | J51: -66370 | K51: -92581 | L51: -59021 | M51: -56771
F52: Other Changes in Investing Act. | J52: 15159 | K52: -11408 | L52: 202 | M52: 3750
F53: Increase in Debts | J53: -582392 | K53: 43200 | L53: -150000 | M53: -60000
F54: Other Changes in Financing Act. | J54: -354717 | K54: -916222 | L54: -1228176 | M54: -1075128
F55: Cash at Begining of Period | J55: 186816 | K55: 90739 | L55: 231717 | M55: 226682
F56: Cash at End of Period | J56: 90739 | K56: 231717 | L56: 226682 | M56: 113373
F57: All figures are in | J57: Thousand | K57: Thousand | L57: Thousand | M57: Thousands
F58: Currency | J58: SAR | K58: SAR | L58: SAR | M58: SAR
F59: Shares | J59: =Financials!C32 -> 153022.5058 | K59: =Financials!D32 -> 153080.4788 | L59: =Financials!E32 -> 153026.25 | M59: =L59 -> 153026.25
C61: Operating Assumptions
B62: 0 | D62: Sales Growth
B63: =B62+A63 -> 0 | E63: Historic | K63: =IF(K3,K24/J24-1) -> 0.1244595063 | L63: 0.28398894 | M63: -0.007348486258 | N63: FALSE | O63: FALSE | P63: FALSE | Q63: FALSE | R63: FALSE | S63: FALSE | T63: FALSE | U63: FALSE | V63: FALSE | W63: FALSE
B64: =B63+A64 -> 0 | E64: Projected
B65: 0 | D65: 1 | F65: Base Case | I65: 0.04 | K65: =$I$65 -> 0.04 | L65: 0.04 | M65: 0.04 | N65: 0.04 | O65: 0.04 | P65: 0.04 | Q65: 0.04 | R65: 0.04 | S65: 0.04 | T65: 0.04 | U65: 0.04 | V65: 0.04 | W65: 0.04
B66: 0 | D66: 2 | F66: Analyst Report | N66: ='Analyst Report'!E17 -> 0.04115226337 | O66: ='Analyst Report'!F17 -> 0.01660079051 | P66: ='Analyst Report'!G17 -> 0.02838258165 | Q66: 0.04 | R66: 0.04 | S66: 0.04 | T66: 0.04 | U66: 0.04 | V66: 0.04 | W66: 0.04
B67: 0 | D67: 3 | F67: High Case | N67: 0.04 | O67: 0.06 | P67: 0.08 | Q67: 0.08 | R67: 0.08 | S67: 0.05 | T67: 0.05 | U67: 0.05 | V67: 0.05 | W67: 0.05
B68: 0 | D68: 4 | F68: Low Case | N68: 0.01 | O68: 0.03 | P68: 0.02 | Q68: 0.01 | R68: 0.01 | S68: 0.01 | T68: 0.01 | U68: 0.01 | V68: 0.01 | W68: 0.01
B69: 0
B70: 0 | F70: =INDEX(F65:F68,$I$70) -> Analyst Report | I70: ='Master Scenario'!D28 -> 2 | K70: =INDEX(K65:K68,$I$70) -> 0 | L70: =INDEX(L65:L68,$I$70) -> 0 | M70: 0 | N70: 0.04115226337 | O70: 0.01660079051 | P70: 0.02838258165 | Q70: 0.04 | R70: 0.04 | S70: 0.04 | T70: 0.04 | U70: 0.04 | V70: 0.04 | W70: 0.04
B71: 0
A72: TRUE | B72: 1 | F72: ="History & Projected "&D62 -> History & Projected Sales Growth | K72: =IF(K3,K63,K70) -> 0.1244595063 | L72: =IF(L3,L63,L70) -> 0.28398894 | M72: -0.007348486258 | N72: 0.04115226337 | O72: 0.01660079051 | P72: 0.02838258165 | Q72: 0.04 | R72: 0.04 | S72: 0.04 | T72: 0.04 | U72: 0.04 | V72: 0.04 | W72: 0.04
B73: 1
A74: TRUE | B74: 2 | F74: Other Revenue | J74: =IF(J3,J27,I74) -> 16572 | K74: 4906 | L74: 14980 | M74: -2009 | N74: -2009 | O74: -2009 | P74: -2009 | Q74: -2009 | R74: -2009 | S74: -2009 | T74: -2009 | U74: -2009 | V74: -2009 | W74: -2009
B75: 2
B76: 2 | D76: COGS
B77: 2 | E77: Income Amount | J77: =IF(J3,J25) -> 757245 | K77: 765095 | L77: 974237 | M77: 902993 | N77: FALSE | O77: FALSE | P77: FALSE | Q77: FALSE | R77: FALSE | S77: FALSE | T77: FALSE | U77: FALSE | V77: FALSE | W77: FALSE
B78: 2 | E78: Less Depreciation Expense | J78: =IF(J3,J45) -> 212753 | K78: 186262 | L78: 200747 | M78: 199999 | N78: FALSE | O78: FALSE | P78: FALSE | Q78: FALSE | R78: FALSE | S78: FALSE | T78: FALSE | U78: FALSE | V78: FALSE | W78: FALSE
B79: 2 | E79: Cash COGS | J79: =J77-J78 -> 544492 | K79: =K77-K78 -> 578833 | L79: 773490 | M79: 702994 | N79: 0 | O79: 0 | P79: 0 | Q79: 0 | R79: 0 | S79: 0 | T79: 0 | U79: 0 | V79: 0 | W79: 0
B80: 2
B81: 2 | E81: Historic % | J81: =IF(J3,J79/J24) -> 0.3567746573 | K81: 0.3372965949 | L81: 0.3510363535 | M81: 0.321404683 | N81: FALSE | O81: FALSE | P81: FALSE | Q81: FALSE | R81: FALSE | S81: FALSE | T81: FALSE | U81: FALSE | V81: FALSE | W81: FALSE
B82: 2 | E82: Projected %
B83: 2 | D83: 1 | F83: Base | I83: 0.36 | J83: =$I$83 -> 0.36 | K83: 0.36 | L83: 0.36 | M83: 0.36 | N83: 0.36 | O83: 0.36 | P83: 0.36 | Q83: 0.36 | R83: 0.36 | S83: 0.36 | T83: 0.36 | U83: 0.36 | V83: 0.36 | W83: 0.36
B84: 2 | D84: 2 | F84: Low | N84: 0.4 | O84: 0.44 | P84: 0.48 | Q84: 0.5 | R84: 0.5 | S84: 0.5 | T84: 0.5 | U84: 0.5 | V84: 0.5 | W84: 0.5
B85: 2 | D85: 3 | F85: High | N85: 0.32 | O85: 0.33 | P85: 0.34 | Q85: 0.34 | R85: 0.34 | S85: 0.34 | T85: 0.34 | U85: 0.34 | V85: 0.34 | W85: 0.34
B86: 2
B87: 2 | F87: =INDEX(F83:F85,$I$87) -> Base | I87: ='Master Scenario'!E28 -> 1 | J87: =INDEX(J83:J85,$I$87) -> 0.36 | K87: =INDEX(K83:K85,$I$87) -> 0.36 | L87: 0.36 | M87: 0.36 | N87: 0.36 | O87: 0.36 | P87: 0.36 | Q87: 0.36 | R87: 0.36 | S87: 0.36 | T87: 0.36 | U87: 0.36 | V87: 0.36 | W87: 0.36
B88: 2
A89: TRUE | B89: 3 | F89: ="History & Projected "&D76 -> History & Projected COGS | J89: =IF(J3,J81,J87) -> 0.3567746573 | K89: =IF(K3,K81,K87) -> 0.3372965949 | L89: 0.3510363535 | M89: 0.321404683 | N89: 0.36 | O89: 0.36 | P89: 0.36 | Q89: 0.36 | R89: 0.36 | S89: 0.36 | T89: 0.36 | U89: 0.36 | V89: 0.36 | W89: 0.36
B90: 3
B91: 3 | D91: Admin & Mkt. Expenses
B92: 3 | E92: Adm.Exp. As a % of Sales | J92: =IF(J3,J29/J24) -> 0.05734557065 | K92: 0.05007182003 | L92: 0.0395530276 | M92: 0.04475335523 | N92: FALSE | O92: FALSE | P92: FALSE | Q92: FALSE | R92: FALSE | S92: FALSE | T92: FALSE | U92: FALSE | V92: FALSE | W92: FALSE
B93: 3 | E93: Projected Adm. Exp. As % Sales | I93: ='Master Scenario'!F28 -> 0.045 | J93: =$I$93 -> 0.045 | K93: =$I$93 -> 0.045 | L93: 0.045 | M93: 0.045 | N93: 0.045 | O93: 0.045 | P93: 0.045 | Q93: 0.045 | R93: 0.045 | S93: 0.045 | T93: 0.045 | U93: 0.045 | V93: 0.045 | W93: 0.045
B94: 3
A95: TRUE | B95: 4 | F95: ="History & Projected "&D91 -> History & Projected Admin & Mkt. Expenses | J95: =IF(J3,J92,J93) -> 0.05734557065 | K95: 0.05007182003 | L95: 0.0395530276 | M95: 0.04475335523 | N95: 0.045 | O95: 0.045 | P95: 0.045 | Q95: 0.045 | R95: 0.045 | S95: 0.045 | T95: 0.045 | U95: 0.045 | V95: 0.045 | W95: 0.045
B96: 4
B97: 4 | D97: Working Capital
B98: 4 | E98: C. Assets Less Cash | J98: =J9-J56 -> 254356 | K98: 225511 | L98: 252211 | M98: 336481 | N98: 0 | O98: 0 | P98: 0 | Q98: 0 | R98: 0 | S98: 0 | T98: 0 | U98: 0 | V98: 0 | W98: 0
B99: 4 | E99: A/R Turnover
B100: 4 | F100: Historic | J100: =IF(J3,J98/J24) -> 0.1666650286 | K100: 0.1314093917 | L100: 0.1144620225 | M100: 0.1538371155 | N100: FALSE | O100: FALSE | P100: FALSE | Q100: FALSE | R100: FALSE | S100: FALSE | T100: FALSE | U100: FALSE | V100: FALSE | W100: FALSE
B101: 4 | F101: Projected | I101: ='Master Scenario'!G28 -> 0.15 | J101: =$I$101 -> 0.15 | K101: =$I$101 -> 0.15 | L101: 0.15 | M101: 0.15 | N101: 0.15 | O101: 0.15 | P101: 0.15 | Q101: 0.15 | R101: 0.15 | S101: 0.15 | T101: 0.15 | U101: 0.15 | V101: 0.15 | W101: 0.15
A102: TRUE | B102: 5 | F102: ="History & Projected "&D97 -> History & Projected Working Capital | J102: =IF(J3,J100,J101) -> 0.1666650286 | K102: 0.1314093917 | L102: 0.1144620225 | M102: 0.1538371155 | N102: 0.15 | O102: 0.15 | P102: 0.15 | Q102: 0.15 | R102: 0.15 | S102: 0.15 | T102: 0.15 | U102: 0.15 | V102: 0.15 | W102: 0.15
B103: 5
B104: 5 | E104: inventory Turnover
B105: 5 | F105: Historic | J105: =IF(J3,J10/J79) -> 0.964901229 | K105: 0.8272973379 | L105: 0.4172180636 | M105: 0.7632412225 | N105: FALSE | O105: FALSE | P105: FALSE | Q105: FALSE | R105: FALSE | S105: FALSE | T105: FALSE | U105: FALSE | V105: FALSE | W105: FALSE
B106: 5 | F106: Projected | I106: ='Master Scenario'!H28 -> 0.75 | J106: =$I$106 -> 0.75 | K106: =$I$106 -> 0.75 | L106: 0.75 | M106: 0.75 | N106: 0.75 | O106: 0.75 | P106: 0.75 | Q106: 0.75 | R106: 0.75 | S106: 0.75 | T106: 0.75 | U106: 0.75 | V106: 0.75 | W106: 0.75
A107: TRUE | B107: 6 | F107: ="History & Projected "&E104 -> History & Projected inventory Turnover | J107: =IF(J3,J105,J106) -> 0.964901229 | K107: 0.8272973379 | L107: 0.4172180636 | M107: 0.7632412225 | N107: 0.75 | O107: 0.75 | P107: 0.75 | Q107: 0.75 | R107: 0.75 | S107: 0.75 | T107: 0.75 | U107: 0.75 | V107: 0.75 | W107: 0.75
B108: 6
B109: 6 | D109: A/P Turnover
B110: 6 | E110: Historic | J110: =IF(J3,J15/J79) -> 1.350901391 | K110: 1.424378016 | L110: 0.9921084953 | M110: 1.196976077 | N110: FALSE | O110: FALSE | P110: FALSE | Q110: FALSE | R110: FALSE | S110: FALSE | T110: FALSE | U110: FALSE | V110: FALSE | W110: FALSE
B111: 6 | E111: Projected | I111: ='Master Scenario'!I28 -> 0.9 | J111: =$I$111 -> 0.9 | K111: =$I$111 -> 0.9 | L111: 0.9 | M111: 0.9 | N111: 0.9 | O111: 0.9 | P111: 0.9 | Q111: 0.9 | R111: 0.9 | S111: 0.9 | T111: 0.9 | U111: 0.9 | V111: 0.9 | W111: 0.9
A112: TRUE | B112: 7 | F112: ="History & Projected "&D109 -> History & Projected A/P Turnover | J112: =IF(J3,J110,J111) -> 1.350901391 | K112: 1.424378016 | L112: 0.9921084953 | M112: 1.196976077 | N112: 0.9 | O112: 0.9 | P112: 0.9 | Q112: 0.9 | R112: 0.9 | S112: 0.9 | T112: 0.9 | U112: 0.9 | V112: 0.9 | W112: 0.9
B113: 7
B114: 7 | D114: Capex To Sales
B115: 7 | E115: Historic | J115: =-IF(J3,J51/J24) -> 0.04348848836 | K115: 0.05394864503 | L115: 0.02678575886 | M115: 0.02595536414 | N115: 0 | O115: 0 | P115: 0 | Q115: 0 | R115: 0 | S115: 0 | T115: 0 | U115: 0 | V115: 0 | W115: 0
B116: 7 | E116: Projected | I116: ='Master Scenario'!J28 -> 0.07 | J116: =$I$116 -> 0.07 | K116: =$I$116 -> 0.07 | L116: 0.07 | M116: 0.07 | N116: 0.07 | O116: 0.07 | P116: 0.07 | Q116: 0.07 | R116: 0.07 | S116: 0.07 | T116: 0.07 | U116: 0.07 | V116: 0.07 | W116: 0.07
A117: TRUE | B117: 8 | F117: ="History & Projected "&D114 -> History & Projected Capex To Sales | J117: =IF(J3,J115,J116) -> 0.04348848836 | K117: 0.05394864503 | L117: 0.02678575886 | M117: 0.02595536414 | N117: 0.07 | O117: 0.07 | P117: 0.07 | Q117: 0.07 | R117: 0.07 | S117: 0.07 | T117: 0.07 | U117: 0.07 | V117: 0.07 | W117: 0.07
B118: 8
B119: 8
B120: 8 | D120: Zakat %
B121: 8 | E121: Historic | J121: =IF(J3,J34/J33) -> 0.02500007392 | K121: 0.02502686015 | L121: 0.03559274263 | M121: 0.0403396665 | N121: FALSE | O121: FALSE | P121: FALSE | Q121: FALSE | R121: FALSE | S121: FALSE | T121: FALSE | U121: FALSE | V121: FALSE | W121: FALSE
B122: 8 | E122: Projected | I122: =AVERAGEIF(3:3,TRUE,121:121) -> 0.0314898358 | J122: =$I$122 -> 0.0314898358 | K122: =$I$122 -> 0.0314898358 | L122: 0.0314898358 | M122: 0.0314898358 | N122: 0.0314898358 | O122: 0.0314898358 | P122: 0.0314898358 | Q122: 0.0314898358 | R122: 0.0314898358 | S122: 0.0314898358 | T122: 0.0314898358 | U122: 0.0314898358 | V122: 0.0314898358 | W122: 0.0314898358
A123: TRUE | B123: 9 | F123: ="History & Projected "&D120 -> History & Projected Zakat % | J123: =IF(J3,J121,J122) -> 0.02500007392 | K123: 0.02502686015 | L123: 0.03559274263 | M123: 0.0403396665 | N123: 0.0314898358 | O123: 0.0314898358 | P123: 0.0314898358 | Q123: 0.0314898358 | R123: 0.0314898358 | S123: 0.0314898358 | T123: 0.0314898358 | U123: 0.0314898358 | V123: 0.0314898358 | W123: 0.0314898358
B124: 9
B125: 9 | D125: Depreciation Rate
B126: 9 | E126: Historic | K126: =IF(K3,K45/J12) -> 0.05065099673 | L126: 0.05601810912 | M126: 0.05823999599 | N126: FALSE | O126: FALSE | P126: FALSE | Q126: FALSE | R126: FALSE | S126: FALSE | T126: FALSE | U126: FALSE | V126: FALSE | W126: FALSE
B127: 9 | E127: Projected | I127: 0.058 | J127: =$I$127 -> 0.058 | K127: =$I$127 -> 0.058 | L127: 0.058 | M127: 0.058 | N127: 0.058 | O127: 0.058 | P127: 0.058 | Q127: 0.058 | R127: 0.058 | S127: 0.058 | T127: 0.058 | U127: 0.058 | V127: 0.058 | W127: 0.058
A128: TRUE | B128: =B127+A128 -> 10 | F128: ="History & Projected "&D125 -> History & Projected Depreciation Rate | K128: =IF(K3,K126,K127) -> 0.05065099673 | L128: 0.05601810912 | M128: 0.05823999599 | N128: 0.058 | O128: 0.058 | P128: 0.058 | Q128: 0.058 | R128: 0.058 | S128: 0.058 | T128: 0.058 | U128: 0.058 | V128: 0.058 | W128: 0.058
B129: 10
B130: 10 | C130: Finance Assumptions
B131: 10 | D131: Interest Expense Rate
B132: 10 | E132: Historic Debt | J132: =IF(J3,J16) -> 509880 | K132: =IF(K3,K16) -> 492177 | L132: 407922 | M132: 320982 | N132: FALSE | O132: FALSE | P132: FALSE | Q132: FALSE | R132: FALSE | S132: FALSE | T132: FALSE | U132: FALSE | V132: FALSE | W132: FALSE
B133: 10 | E133: Financing Expenses | J133: =IF(J3,J31) -> 21522 | K133: =IF(K3,K31) -> 17414 | L133: 14585 | M133: 13335 | N133: FALSE | O133: FALSE | P133: FALSE | Q133: FALSE | R133: FALSE | S133: FALSE | T133: FALSE | U133: FALSE | V133: FALSE | W133: FALSE
B134: 10 | E134: Historic Interest Rate | K134: =IF(K3,K133/J132) -> 0.03415313407 | L134: 0.02963364806 | M134: 0.0326900731 | N134: FALSE | O134: FALSE | P134: FALSE | Q134: FALSE | R134: FALSE | S134: FALSE | T134: FALSE | U134: FALSE | V134: FALSE | W134: FALSE
B135: 10 | E135: Projected | I135: 0.06 | J135: =$I$135 -> 0.06 | K135: =$I$135 -> 0.06 | L135: 0.06 | M135: 0.06 | N135: 0.06 | O135: 0.06 | P135: 0.06 | Q135: 0.06 | R135: 0.06 | S135: 0.06 | T135: 0.06 | U135: 0.06 | V135: 0.06 | W135: 0.06
A136: TRUE | B136: 11 | F136: ="History & Projected "&D131 -> History & Projected Interest Expense Rate | J136: =IF(J3,J134,J135) -> 0 | K136: =IF(K3,K134,K135) -> 0.03415313407 | L136: 0.02963364806 | M136: 0.0326900731 | N136: 0.06 | O136: 0.06 | P136: 0.06 | Q136: 0.06 | R136: 0.06 | S136: 0.06 | T136: 0.06 | U136: 0.06 | V136: 0.06 | W136: 0.06
B137: 11
B138: 11 | D138: Interest Income Rate
A139: TRUE | B139: 12 | F139: ="Projected "&D138 -> Projected Interest Income Rate | J139: 0.02 | K139: 0.02 | L139: 0.02 | M139: 0.02 | N139: 0.02 | O139: 0.02 | P139: 0.02 | Q139: 0.02 | R139: 0.02 | S139: 0.02 | T139: 0.02 | U139: 0.02 | V139: 0.02 | W139: 0.02
B140: 12
B141: 12 | D141: Dividend Payout Ratio
B142: 12 | E142: Historic | J142: =IF(J3,J38/J44) -> 0.904739237 | K142: =IF(K3,K38/K44) -> 0.806684054 | L142: 0.4687286643 | M142: 0.4572893459 | N142: FALSE | O142: FALSE | P142: FALSE | Q142: FALSE | R142: FALSE | S142: FALSE | T142: FALSE | U142: FALSE | V142: FALSE | W142: FALSE
B143: 12 | E143: Projected | I143: 0.9 | J143: =$I$143 -> 0.9 | K143: =$I$143 -> 0.9 | L143: 0.9 | M143: 0.9 | N143: 0.9 | O143: 0.9 | P143: 0.9 | Q143: 0.9 | R143: 0.9 | S143: 0.9 | T143: 0.9 | U143: 0.9 | V143: 0.9 | W143: 0.9
A144: TRUE | B144: 13 | F144: ="Projected "&D141 -> Projected Dividend Payout Ratio | J144: =IF(J3,J142,J143) -> 0.904739237 | K144: =IF(K3,K142,K143) -> 0.806684054 | L144: 0.4687286643 | M144: 0.4572893459 | N144: 0.9 | O144: 0.9 | P144: 0.9 | Q144: 0.9 | R144: 0.9 | S144: 0.9 | T144: 0.9 | U144: 0.9 | V144: 0.9 | W144: 0.9
C146: Valuation Assumptions
F147: WACC | G147: =I147/10000 -> 0.0845 | I147: 845
F148: Growth | G148: =I148/1000 -> 0.02 | I148: 20
F149: Terminal EV/EBITDA | G149: =I149/10 -> 11 | I149: 110
F151: ROIC/WACC Premium | G151: =I151/1000 -> 0.127 | I151: 127
F152: ROIC | G152: =G151+G147 -> 0.2115
F154: Apply Normalized Cash Flow | G154: FALSE
F155: Use Normalized ROIC | G155: FALSE
F157: Plant Life | G157: 30
F158: Cap Exp to Depreciation | G158: =cap_exp_depreciation_simple(G157,G148,2) -> 1.326235316
F160: Current Stock Price | G160: 113
F161: Proespective P/E Ratio | G161: =I161/10 -> 15 | I161: 150
B163: 0 | C163: Pre-tax Cash Flow
B164: =B163+A164 -> 0 | D164: Revenue
A165: TRUE | B165: 1 | E165: Growth Rate | J165: =J72 -> 0 | K165: 0.1244595063 | L165: 0.28398894 | M165: -0.007348486258 | N165: 0.04115226337 | O165: 0.01660079051 | P165: 0.02838258165 | Q165: 0.04 | R165: 0.04 | S165: 0.04 | T165: 0.04 | U165: 0.04 | V165: 0.04 | W165: 0.04
B166: 1 | E166: Total | J166: =J24 -> 1526151 | K166: =J166*(1+K165) -> 1716095 | L166: =K166*(1+L165) -> 2203447 | M166: 2187255 | N166: 2277265.494 | O166: 2315069.901 | P166: 2380777.562 | Q166: 2476008.664 | R166: 2575049.011 | S166: 2678050.971 | T166: 2785173.01 | U166: 2896579.93 | V166: 3012443.128 | W166: 3132940.853
B167: 1
A168: TRUE | B168: 2 | E168: Other Revenue | J168: =J74 -> 16572 | K168: 4906 | L168: 14980 | M168: -2009 | N168: -2009 | O168: -2009 | P168: -2009 | Q168: -2009 | R168: -2009 | S168: -2009 | T168: -2009 | U168: -2009 | V168: -2009 | W168: -2009
B169: 2
B170: 2 | D170: Operating Expenses
B171: 2 | E171: COGS% | J171: =J89 -> 0.3567746573 | K171: 0.3372965949 | L171: 0.3510363535 | M171: 0.321404683 | N171: 0.36 | O171: 0.36 | P171: 0.36 | Q171: 0.36 | R171: 0.36 | S171: 0.36 | T171: 0.36 | U171: 0.36 | V171: 0.36 | W171: 0.36
A172: TRUE | B172: 3 | E172: COGS | J172: =J171*J166 -> 544492 | K172: =K171*K166 -> 578833 | L172: 773490 | M172: 702994 | N172: 819815.5778 | O172: 833425.1644 | P172: 857079.9222 | Q172: 891363.1191 | R172: 927017.6439 | S172: 964098.3496 | T172: 1002662.284 | U172: 1042768.775 | V172: 1084479.526 | W172: 1127858.707
B173: 3
B174: 3 | E174: Admin % | J174: =J95 -> 0.05734557065 | K174: 0.05007182003 | L174: 0.0395530276 | M174: 0.04475335523 | N174: 0.045 | O174: 0.045 | P174: 0.045 | Q174: 0.045 | R174: 0.045 | S174: 0.045 | T174: 0.045 | U174: 0.045 | V174: 0.045 | W174: 0.045
A175: TRUE | B175: 4 | E175: Admin Cost | J175: =J174*J166 -> 87518 | K175: =K174*K166 -> 85928 | L175: 87153 | M175: 97887 | N175: 102476.9472 | O175: 104178.1456 | P175: 107134.9903 | Q175: 111420.3899 | R175: 115877.2055 | S175: 120512.2937 | T175: 125332.7855 | U175: 130346.0969 | V175: 135559.9407 | W175: 140982.3384
B176: 4 | E176: Total Expenses | J176: =J172+J175 -> 632010 | K176: =K172+K175 -> 664761 | L176: 860643 | M176: 800881 | N176: 922292.525 | O176: 937603.31 | P176: 964214.9125 | Q176: 1002783.509 | R176: 1042894.849 | S176: 1084610.643 | T176: 1127995.069 | U176: 1173114.872 | V176: 1220039.467 | W176: 1268841.045
B177: 4
A178: TRUE | B178: 5 | E178: EBITDA | J178: =J166+J168-J172-J175 -> 910713 | K178: =K166+K168-K172-K175 -> 1056240 | L178: 1357784 | M178: 1384365 | N178: 1352963.969 | O178: 1375457.591 | P178: 1414553.649 | Q178: 1471216.155 | R178: 1530145.161 | S178: 1591431.328 | T178: 1655168.941 | U178: 1721456.059 | V178: 1790394.661 | W178: 1862090.807
B179: 5
B180: 5 | D180: Working Capital Calc.
B181: 5 | E181: A/R Level | J181: =J166*J102 -> 254356 | K181: 225511 | L181: 252211 | M181: 336481 | N181: 341589.8241 | O181: 347260.4852 | P181: 357116.6343 | Q181: 371401.2996 | R181: 386257.3516 | S181: 401707.6457 | T181: 417775.9515 | U181: 434486.9896 | V181: 451866.4691 | W181: 469941.1279
B182: 5 | E182: Inventory Level | J182: =J172*J107 -> 525381 | K182: 478867 | L182: 322714 | M182: 536554 | N182: 614861.6833 | O182: 625068.8733 | P182: 642809.9417 | Q182: 668522.3393 | R182: 695263.2329 | S182: 723073.7622 | T182: 751996.7127 | U182: 782076.5812 | V182: 813359.6445 | W182: 845894.0302
B183: 5 | E183: A/P Level | J183: =J172*J112 -> 735555 | K183: 824477 | L183: 767386 | M183: 841467 | N183: 737834.02 | O183: 750082.648 | P183: 771371.93 | Q183: 802226.8072 | R183: 834315.8795 | S183: 867688.5147 | T183: 902396.0553 | U183: 938491.8975 | V183: 976031.5734 | W183: 1015072.836
B184: 5 | E184: Working Capital | J184: =J181+J182-J183 -> 44182 | K184: =K181+K182-K183 -> -120099 | L184: -192461 | M184: 31568 | N184: 218617.4874 | O184: 222246.7105 | P184: 228554.6459 | Q184: 237696.8318 | R184: 247204.705 | S184: 257092.8932 | T184: 267376.609 | U184: 278071.6733 | V184: 289194.5403 | W184: 300762.3219
B185: 5 | E185: Change in Working Capital | K185: =K184-J184 -> -164281 | L185: =L184-K184 -> -72362 | M185: 224029 | N185: 187049.4874 | O185: 3629.223111 | P185: 6307.935407 | Q185: 9142.185837 | R185: 9507.873271 | S185: 9888.188201 | T185: 10283.71573 | U185: 10695.06436 | V185: 11122.86693 | W185: 11567.78161
B186: 5
B187: 5 | D187: CAPEX Calculation
B188: 5 | E188: CAPEX To Sales | J188: =J117 -> 0.04348848836 | K188: 0.05394864503 | L188: 0.02678575886 | M188: 0.02595536414 | N188: 0.07 | O188: 0.07 | P188: 0.07 | Q188: 0.07 | R188: 0.07 | S188: 0.07 | T188: 0.07 | U188: 0.07 | V188: 0.07 | W188: 0.07
A189: TRUE | B189: 6 | E189: Total CAPEX | J189: =J188*J166 -> 66370 | K189: =K188*K166 -> 92581 | L189: 59021 | M189: 56771 | N189: 159408.5846 | O189: 162054.8931 | P189: 166654.4293 | Q189: 173320.6065 | R189: 180253.4308 | S189: 187463.568 | T189: 194962.1107 | U189: 202760.5951 | V189: 210871.0189 | W189: 219305.8597
B190: 6
B191: 6 | C191: Depreciation and After Tax FCF
B192: =B190+A192 -> 6 | D192: Depreciation Expense
B193: 6 | E193: Depreciation Rate | J193: =J128 -> 0 | K193: 0.05065099673 | L193: 0.05601810912 | M193: 0.05823999599 | N193: 0.058 | O193: 0.058 | P193: 0.058 | Q193: 0.058 | R193: 0.058 | S193: 0.058 | T193: 0.058 | U193: 0.058 | V193: 0.058 | W193: 0.058
A194: TRUE | B194: 7 | E194: Depreciation Expense | J194: =IF(J3,J45,J193*J197) -> 212753 | K194: 186262 | L194: 200747 | M194: 199999 | N194: 190995.334 | O194: 189163.3025 | P194: 187591.0148 | Q194: 186376.6928 | R194: 185619.4398 | S194: 185308.2113 | T194: 185433.222 | U194: 185985.8975 | V194: 186958.83 | W194: 188345.7369
B195: 7
B196: 7 | D196: Net Plant Balance
B197: 7 | E197: Openning Balance | K197: =J200 -> 3677361 | L197: =K200 -> 3583609 | M197: 3434049 | N197: 3293023 | O197: 3261436.251 | P197: 3234327.841 | Q197: 3213391.256 | R197: 3200335.169 | S197: 3194969.16 | T197: 3197124.517 | U197: 3206653.406 | V197: 3223428.103 | W197: 3247340.292
B198: 7 | E198: Add CAPEX | J198: =J189 -> 66370 | K198: =K189 -> 92581 | L198: 59021 | M198: 56771 | N198: 159408.5846 | O198: 162054.8931 | P198: 166654.4293 | Q198: 173320.6065 | R198: 180253.4308 | S198: 187463.568 | T198: 194962.1107 | U198: 202760.5951 | V198: 210871.0189 | W198: 219305.8597
A199: TRUE | B199: 8 | E199: Less Depreciation | J199: =J194 -> 212753 | K199: =K194 -> 186262 | L199: 200747 | M199: 199999 | N199: 190995.334 | O199: 189163.3025 | P199: 187591.0148 | Q199: 186376.6928 | R199: 185619.4398 | S199: 185308.2113 | T199: 185433.222 | U199: 185985.8975 | V199: 186958.83 | W199: 188345.7369
B200: 8 | E200: Closing Balance | J200: =IF(J3,J12,J197+J198-J199) -> 3677361 | K200: 3583609 | L200: 3434049 | M200: 3293023 | N200: 3261436.251 | O200: 3234327.841 | P200: 3213391.256 | Q200: 3200335.169 | R200: 3194969.16 | S200: 3197124.517 | T200: 3206653.406 | U200: 3223428.103 | V200: 3247340.292 | W200: 3278300.415
B201: 8
A202: TRUE | B202: 9 | E202: EBIT | J202: =J178-J194 -> 697960 | K202: =K178-K194 -> 869978 | L202: 1157037 | M202: 1184366 | N202: 1161968.635 | O202: 1186294.289 | P202: 1226962.634 | Q202: 1284839.462 | R202: 1344525.722 | S202: 1406123.117 | T202: 1469735.719 | U202: 1535470.161 | V202: 1603435.831 | W202: 1673745.07
B203: 9 | E203: ZAKAT | J203: =J123 -> 0.02500007392 | K203: 0.02502686015 | L203: 0.03559274263 | M203: 0.0403396665 | N203: 0.0314898358 | O203: 0.0314898358 | P203: 0.0314898358 | Q203: 0.0314898358 | R203: 0.0314898358 | S203: 0.0314898358 | T203: 0.0314898358 | U203: 0.0314898358 | V203: 0.0314898358 | W203: 0.0314898358
A204: TRUE | B204: 10 | E204: NOPAT | J204: =J202*(1-J203) -> 680510.9484 | K204: =K202*(1-K203) -> 848205.1823 | L204: 1115854.88 | M204: 1136589.071 | N204: 1125378.433 | O204: 1148938.076 | P204: 1188325.783 | Q204: 1244380.079 | R204: 1302186.827 | S204: 1361844.531 | T204: 1423453.983 | U204: 1487118.458 | V204: 1552943.9 | W204: 1621039.113
B205: 10
B206: 10 | C206: Valuation from FCF
B207: 10 | E207: EBITDA | J207: =J166+J168-J176 -> 910713 | K207: =K166+K168-K176 -> 1056240 | L207: 1357784 | M207: 1384365 | N207: 1352963.969 | O207: 1375457.591 | P207: 1414553.649 | Q207: 1471216.155 | R207: 1530145.161 | S207: 1591431.328 | T207: 1655168.941 | U207: 1721456.059 | V207: 1790394.661 | W207: 1862090.807
B208: 10 | E208: Less Working Capital Change | J208: =J185 -> 0 | K208: =K185 -> -164281 | L208: -72362 | M208: 224029 | N208: 187049.4874 | O208: 3629.223111 | P208: 6307.935407 | Q208: 9142.185837 | R208: 9507.873271 | S208: 9888.188201 | T208: 10283.71573 | U208: 10695.06436 | V208: 11122.86693 | W208: 11567.78161
... 149 more rows

Sheet Audit Sheet
C4: Balance Sheet Test | D4: ='S. Cement Fin.Model'!G374 -> TRUE
C5: Debt Balance Test | D5: ='Financing Structure'!H68 -> TRUE
C6: P&L Test | D6: ='S. Cement Fin.Model'!G329 -> TRUE
C7: Dvd Test | D7: TRUE
C10: Aggregate Model Test | D10: =AND(D4:D7) -> TRUE | E10: =IF(D10,"Model OK","Model Problem") -> Model OK

Sheet Graphs
B2: Assumptions Graph
F4: 1 | I4: ='S. Cement Fin.Model'!J2 -> 2010 | J4: ='S. Cement Fin.Model'!K2 -> 2011 | K4: ='S. Cement Fin.Model'!L2 -> 2012 | L4: ='S. Cement Fin.Model'!M2 -> 2013 | M4: ='S. Cement Fin.Model'!N2 -> 2014 | N4: ='S. Cement Fin.Model'!O2 -> 2015 | O4: ='S. Cement Fin.Model'!P2 -> 2016 | P4: ='S. Cement Fin.Model'!Q2 -> 2017 | Q4: ='S. Cement Fin.Model'!R2 -> 2018 | R4: ='S. Cement Fin.Model'!S2 -> 2019 | S4: ='S. Cement Fin.Model'!T2 -> 2020 | T4: ='S. Cement Fin.Model'!U2 -> 2021 | U4: ='S. Cement Fin.Model'!V2 -> 2022 | V4: ='S. Cement Fin.Model'!W2 -> 2023
I5: ='S. Cement Fin.Model'!J3 -> TRUE | J5: ='S. Cement Fin.Model'!K3 -> TRUE | K5: ='S. Cement Fin.Model'!L3 -> TRUE | L5: ='S. Cement Fin.Model'!M3 -> TRUE | M5: ='S. Cement Fin.Model'!N3 -> FALSE | N5: ='S. Cement Fin.Model'!O3 -> FALSE | O5: ='S. Cement Fin.Model'!P3 -> FALSE | P5: ='S. Cement Fin.Model'!Q3 -> FALSE | Q5: ='S. Cement Fin.Model'!R3 -> FALSE | R5: ='S. Cement Fin.Model'!S3 -> FALSE | S5: ='S. Cement Fin.Model'!T3 -> FALSE | T5: ='S. Cement Fin.Model'!U3 -> FALSE | U5: ='S. Cement Fin.Model'!V3 -> FALSE | V5: ='S. Cement Fin.Model'!W3 -> FALSE
I6: ='S. Cement Fin.Model'!J4 -> FALSE | J6: ='S. Cement Fin.Model'!K4 -> FALSE | K6: ='S. Cement Fin.Model'!L4 -> FALSE | L6: ='S. Cement Fin.Model'!M4 -> FALSE | M6: ='S. Cement Fin.Model'!N4 -> TRUE | N6: ='S. Cement Fin.Model'!O4 -> TRUE | O6: ='S. Cement Fin.Model'!P4 -> TRUE | P6: ='S. Cement Fin.Model'!Q4 -> TRUE | Q6: ='S. Cement Fin.Model'!R4 -> TRUE | R6: ='S. Cement Fin.Model'!S4 -> FALSE | S6: ='S. Cement Fin.Model'!T4 -> FALSE | T6: ='S. Cement Fin.Model'!U4 -> FALSE | U6: ='S. Cement Fin.Model'!V4 -> FALSE | V6: ='S. Cement Fin.Model'!W4 -> FALSE
B8: Number | C8: Match | D8: Index
B9: 1 | C9: =MATCH(B9,'S. Cement Fin.Model'!$B$62:$B$144,0) -> 11 | D9: =INDEX('S. Cement Fin.Model'!F$62:F$144,Graphs!$C9) -> History & Projected Sales Growth | I9: =INDEX('S. Cement Fin.Model'!J$62:J$144,Graphs!$C9) -> 0 | J9: =INDEX('S. Cement Fin.Model'!K$62:K$144,Graphs!$C9) -> 0.1244595063 | K9: =INDEX('S. Cement Fin.Model'!L$62:L$144,Graphs!$C9) -> 0.28398894 | L9: =INDEX('S. Cement Fin.Model'!M$62:M$144,Graphs!$C9) -> -0.007348486258 | M9: =INDEX('S. Cement Fin.Model'!N$62:N$144,Graphs!$C9) -> 0.04115226337 | N9: =INDEX('S. Cement Fin.Model'!O$62:O$144,Graphs!$C9) -> 0.01660079051 | O9: =INDEX('S. Cement Fin.Model'!P$62:P$144,Graphs!$C9) -> 0.02838258165 | P9: =INDEX('S. Cement Fin.Model'!Q$62:Q$144,Graphs!$C9) -> 0.04 | Q9: =INDEX('S. Cement Fin.Model'!R$62:R$144,Graphs!$C9) -> 0.04 | R9: =INDEX('S. Cement Fin.Model'!S$62:S$144,Graphs!$C9) -> 0.04 | S9: =INDEX('S. Cement Fin.Model'!T$62:T$144,Graphs!$C9) -> 0.04 | T9: =INDEX('S. Cement Fin.Model'!U$62:U$144,Graphs!$C9) -> 0.04 | U9: =INDEX('S. Cement Fin.Model'!V$62:V$144,Graphs!$C9) -> 0.04 | V9: =INDEX('S. Cement Fin.Model'!W$62:W$144,Graphs!$C9) -> 0.04
B10: =B9+1 -> 2 | C10: =MATCH(B10,'S. Cement Fin.Model'!$B$62:$B$144,0) -> 13 | D10: =INDEX('S. Cement Fin.Model'!F$62:F$144,Graphs!$C10) -> Other Revenue | I10: =INDEX('S. Cement Fin.Model'!J$62:J$144,Graphs!$C10) -> 16572 | J10: =INDEX('S. Cement Fin.Model'!K$62:K$144,Graphs!$C10) -> 4906 | K10: =INDEX('S. Cement Fin.Model'!L$62:L$144,Graphs!$C10) -> 14980 | L10: =INDEX('S. Cement Fin.Model'!M$62:M$144,Graphs!$C10) -> -2009 | M10: =INDEX('S. Cement Fin.Model'!N$62:N$144,Graphs!$C10) -> -2009 | N10: =INDEX('S. Cement Fin.Model'!O$62:O$144,Graphs!$C10) -> -2009 | O10: =INDEX('S. Cement Fin.Model'!P$62:P$144,Graphs!$C10) -> -2009 | P10: =INDEX('S. Cement Fin.Model'!Q$62:Q$144,Graphs!$C10) -> -2009 | Q10: =INDEX('S. Cement Fin.Model'!R$62:R$144,Graphs!$C10) -> -2009 | R10: =INDEX('S. Cement Fin.Model'!S$62:S$144,Graphs!$C10) -> -2009 | S10: =INDEX('S. Cement Fin.Model'!T$62:T$144,Graphs!$C10) -> -2009 | T10: =INDEX('S. Cement Fin.Model'!U$62:U$144,Graphs!$C10) -> -2009 | U10: =INDEX('S. Cement Fin.Model'!V$62:V$144,Graphs!$C10) -> -2009 | V10: =INDEX('S. Cement Fin.Model'!W$62:W$144,Graphs!$C10) -> -2009
B11: =B10+1 -> 3 | C11: =MATCH(B11,'S. Cement Fin.Model'!$B$62:$B$144,0) -> 28 | D11: =INDEX('S. Cement Fin.Model'!F$62:F$144,Graphs!$C11) -> History & Projected COGS | I11: =INDEX('S. Cement Fin.Model'!J$62:J$144,Graphs!$C11) -> 0.3567746573 | J11: =INDEX('S. Cement Fin.Model'!K$62:K$144,Graphs!$C11) -> 0.3372965949 | K11: =INDEX('S. Cement Fin.Model'!L$62:L$144,Graphs!$C11) -> 0.3510363535 | L11: =INDEX('S. Cement Fin.Model'!M$62:M$144,Graphs!$C11) -> 0.321404683 | M11: =INDEX('S. Cement Fin.Model'!N$62:N$144,Graphs!$C11) -> 0.36 | N11: =INDEX('S. Cement Fin.Model'!O$62:O$144,Graphs!$C11) -> 0.36 | O11: =INDEX('S. Cement Fin.Model'!P$62:P$144,Graphs!$C11) -> 0.36 | P11: =INDEX('S. Cement Fin.Model'!Q$62:Q$144,Graphs!$C11) -> 0.36 | Q11: =INDEX('S. Cement Fin.Model'!R$62:R$144,Graphs!$C11) -> 0.36 | R11: =INDEX('S. Cement Fin.Model'!S$62:S$144,Graphs!$C11) -> 0.36 | S11: =INDEX('S. Cement Fin.Model'!T$62:T$144,Graphs!$C11) -> 0.36 | T11: =INDEX('S. Cement Fin.Model'!U$62:U$144,Graphs!$C11) -> 0.36 | U11: =INDEX('S. Cement Fin.Model'!V$62:V$144,Graphs!$C11) -> 0.36 | V11: =INDEX('S. Cement Fin.Model'!W$62:W$144,Graphs!$C11) -> 0.36
B12: 4 | C12: =MATCH(B12,'S. Cement Fin.Model'!$B$62:$B$144,0) -> 34 | D12: =INDEX('S. Cement Fin.Model'!F$62:F$144,Graphs!$C12) -> History & Projected Admin & Mkt. Expenses | I12: =INDEX('S. Cement Fin.Model'!J$62:J$144,Graphs!$C12) -> 0.05734557065 | J12: =INDEX('S. Cement Fin.Model'!K$62:K$144,Graphs!$C12) -> 0.05007182003 | K12: =INDEX('S. Cement Fin.Model'!L$62:L$144,Graphs!$C12) -> 0.0395530276 | L12: =INDEX('S. Cement Fin.Model'!M$62:M$144,Graphs!$C12) -> 0.04475335523 | M12: =INDEX('S. Cement Fin.Model'!N$62:N$144,Graphs!$C12) -> 0.045 | N12: =INDEX('S. Cement Fin.Model'!O$62:O$144,Graphs!$C12) -> 0.045 | O12: =INDEX('S. Cement Fin.Model'!P$62:P$144,Graphs!$C12) -> 0.045 | P12: =INDEX('S. Cement Fin.Model'!Q$62:Q$144,Graphs!$C12) -> 0.045 | Q12: =INDEX('S. Cement Fin.Model'!R$62:R$144,Graphs!$C12) -> 0.045 | R12: =INDEX('S. Cement Fin.Model'!S$62:S$144,Graphs!$C12) -> 0.045 | S12: =INDEX('S. Cement Fin.Model'!T$62:T$144,Graphs!$C12) -> 0.045 | T12: =INDEX('S. Cement Fin.Model'!U$62:U$144,Graphs!$C12) -> 0.045 | U12: =INDEX('S. Cement Fin.Model'!V$62:V$144,Graphs!$C12) -> 0.045 | V12: =INDEX('S. Cement Fin.Model'!W$62:W$144,Graphs!$C12) -> 0.045
B13: 5 | C13: =MATCH(B13,'S. Cement Fin.Model'!$B$62:$B$144,0) -> 41 | D13: =INDEX('S. Cement Fin.Model'!F$62:F$144,Graphs!$C13) -> History & Projected Working Capital | I13: =INDEX('S. Cement Fin.Model'!J$62:J$144,Graphs!$C13) -> 0.1666650286 | J13: =INDEX('S. Cement Fin.Model'!K$62:K$144,Graphs!$C13) -> 0.1314093917 | K13: =INDEX('S. Cement Fin.Model'!L$62:L$144,Graphs!$C13) -> 0.1144620225 | L13: =INDEX('S. Cement Fin.Model'!M$62:M$144,Graphs!$C13) -> 0.1538371155 | M13: =INDEX('S. Cement Fin.Model'!N$62:N$144,Graphs!$C13) -> 0.15 | N13: =INDEX('S. Cement Fin.Model'!O$62:O$144,Graphs!$C13) -> 0.15 | O13: =INDEX('S. Cement Fin.Model'!P$62:P$144,Graphs!$C13) -> 0.15 | P13: =INDEX('S. Cement Fin.Model'!Q$62:Q$144,Graphs!$C13) -> 0.15 | Q13: =INDEX('S. Cement Fin.Model'!R$62:R$144,Graphs!$C13) -> 0.15 | R13: =INDEX('S. Cement Fin.Model'!S$62:S$144,Graphs!$C13) -> 0.15 | S13: =INDEX('S. Cement Fin.Model'!T$62:T$144,Graphs!$C13) -> 0.15 | T13: =INDEX('S. Cement Fin.Model'!U$62:U$144,Graphs!$C13) -> 0.15 | U13: =INDEX('S. Cement Fin.Model'!V$62:V$144,Graphs!$C13) -> 0.15 | V13: =INDEX('S. Cement Fin.Model'!W$62:W$144,Graphs!$C13) -> 0.15
B14: 6 | C14: =MATCH(B14,'S. Cement Fin.Model'!$B$62:$B$144,0) -> 46 | D14: =INDEX('S. Cement Fin.Model'!F$62:F$144,Graphs!$C14) -> History & Projected inventory Turnover | I14: =INDEX('S. Cement Fin.Model'!J$62:J$144,Graphs!$C14) -> 0.964901229 | J14: =INDEX('S. Cement Fin.Model'!K$62:K$144,Graphs!$C14) -> 0.8272973379 | K14: =INDEX('S. Cement Fin.Model'!L$62:L$144,Graphs!$C14) -> 0.4172180636 | L14: =INDEX('S. Cement Fin.Model'!M$62:M$144,Graphs!$C14) -> 0.7632412225 | M14: =INDEX('S. Cement Fin.Model'!N$62:N$144,Graphs!$C14) -> 0.75 | N14: =INDEX('S. Cement Fin.Model'!O$62:O$144,Graphs!$C14) -> 0.75 | O14: =INDEX('S. Cement Fin.Model'!P$62:P$144,Graphs!$C14) -> 0.75 | P14: =INDEX('S. Cement Fin.Model'!Q$62:Q$144,Graphs!$C14) -> 0.75 | Q14: =INDEX('S. Cement Fin.Model'!R$62:R$144,Graphs!$C14) -> 0.75 | R14: =INDEX('S. Cement Fin.Model'!S$62:S$144,Graphs!$C14) -> 0.75 | S14: =INDEX('S. Cement Fin.Model'!T$62:T$144,Graphs!$C14) -> 0.75 | T14: =INDEX('S. Cement Fin.Model'!U$62:U$144,Graphs!$C14) -> 0.75 | U14: =INDEX('S. Cement Fin.Model'!V$62:V$144,Graphs!$C14) -> 0.75 | V14: =INDEX('S. Cement Fin.Model'!W$62:W$144,Graphs!$C14) -> 0.75
B15: 7 | C15: =MATCH(B15,'S. Cement Fin.Model'!$B$62:$B$144,0) -> 51 | D15: =INDEX('S. Cement Fin.Model'!F$62:F$144,Graphs!$C15) -> History & Projected A/P Turnover | I15: =INDEX('S. Cement Fin.Model'!J$62:J$144,Graphs!$C15) -> 1.350901391 | J15: =INDEX('S. Cement Fin.Model'!K$62:K$144,Graphs!$C15) -> 1.424378016 | K15: =INDEX('S. Cement Fin.Model'!L$62:L$144,Graphs!$C15) -> 0.9921084953 | L15: =INDEX('S. Cement Fin.Model'!M$62:M$144,Graphs!$C15) -> 1.196976077 | M15: =INDEX('S. Cement Fin.Model'!N$62:N$144,Graphs!$C15) -> 0.9 | N15: =INDEX('S. Cement Fin.Model'!O$62:O$144,Graphs!$C15) -> 0.9 | O15: =INDEX('S. Cement Fin.Model'!P$62:P$144,Graphs!$C15) -> 0.9 | P15: =INDEX('S. Cement Fin.Model'!Q$62:Q$144,Graphs!$C15) -> 0.9 | Q15: =INDEX('S. Cement Fin.Model'!R$62:R$144,Graphs!$C15) -> 0.9 | R15: =INDEX('S. Cement Fin.Model'!S$62:S$144,Graphs!$C15) -> 0.9 | S15: =INDEX('S. Cement Fin.Model'!T$62:T$144,Graphs!$C15) -> 0.9 | T15: =INDEX('S. Cement Fin.Model'!U$62:U$144,Graphs!$C15) -> 0.9 | U15: =INDEX('S. Cement Fin.Model'!V$62:V$144,Graphs!$C15) -> 0.9 | V15: =INDEX('S. Cement Fin.Model'!W$62:W$144,Graphs!$C15) -> 0.9
B16: 8 | C16: =MATCH(B16,'S. Cement Fin.Model'!$B$62:$B$144,0) -> 56 | D16: =INDEX('S. Cement Fin.Model'!F$62:F$144,Graphs!$C16) -> History & Projected Capex To Sales | I16: =INDEX('S. Cement Fin.Model'!J$62:J$144,Graphs!$C16) -> 0.04348848836 | J16: =INDEX('S. Cement Fin.Model'!K$62:K$144,Graphs!$C16) -> 0.05394864503 | K16: =INDEX('S. Cement Fin.Model'!L$62:L$144,Graphs!$C16) -> 0.02678575886 | L16: =INDEX('S. Cement Fin.Model'!M$62:M$144,Graphs!$C16) -> 0.02595536414 | M16: =INDEX('S. Cement Fin.Model'!N$62:N$144,Graphs!$C16) -> 0.07 | N16: =INDEX('S. Cement Fin.Model'!O$62:O$144,Graphs!$C16) -> 0.07 | O16: =INDEX('S. Cement Fin.Model'!P$62:P$144,Graphs!$C16) -> 0.07 | P16: =INDEX('S. Cement Fin.Model'!Q$62:Q$144,Graphs!$C16) -> 0.07 | Q16: =INDEX('S. Cement Fin.Model'!R$62:R$144,Graphs!$C16) -> 0.07 | R16: =INDEX('S. Cement Fin.Model'!S$62:S$144,Graphs!$C16) -> 0.07 | S16: =INDEX('S. Cement Fin.Model'!T$62:T$144,Graphs!$C16) -> 0.07 | T16: =INDEX('S. Cement Fin.Model'!U$62:U$144,Graphs!$C16) -> 0.07 | U16: =INDEX('S. Cement Fin.Model'!V$62:V$144,Graphs!$C16) -> 0.07 | V16: =INDEX('S. Cement Fin.Model'!W$62:W$144,Graphs!$C16) -> 0.07
B17: 9 | C17: =MATCH(B17,'S. Cement Fin.Model'!$B$62:$B$144,0) -> 62 | D17: =INDEX('S. Cement Fin.Model'!F$62:F$144,Graphs!$C17) -> History & Projected Zakat % | I17: =INDEX('S. Cement Fin.Model'!J$62:J$144,Graphs!$C17) -> 0.02500007392 | J17: =INDEX('S. Cement Fin.Model'!K$62:K$144,Graphs!$C17) -> 0.02502686015 | K17: =INDEX('S. Cement Fin.Model'!L$62:L$144,Graphs!$C17) -> 0.03559274263 | L17: =INDEX('S. Cement Fin.Model'!M$62:M$144,Graphs!$C17) -> 0.0403396665 | M17: =INDEX('S. Cement Fin.Model'!N$62:N$144,Graphs!$C17) -> 0.0314898358 | N17: =INDEX('S. Cement Fin.Model'!O$62:O$144,Graphs!$C17) -> 0.0314898358 | O17: =INDEX('S. Cement Fin.Model'!P$62:P$144,Graphs!$C17) -> 0.0314898358 | P17: =INDEX('S. Cement Fin.Model'!Q$62:Q$144,Graphs!$C17) -> 0.0314898358 | Q17: =INDEX('S. Cement Fin.Model'!R$62:R$144,Graphs!$C17) -> 0.0314898358 | R17: =INDEX('S. Cement Fin.Model'!S$62:S$144,Graphs!$C17) -> 0.0314898358 | S17: =INDEX('S. Cement Fin.Model'!T$62:T$144,Graphs!$C17) -> 0.0314898358 | T17: =INDEX('S. Cement Fin.Model'!U$62:U$144,Graphs!$C17) -> 0.0314898358 | U17: =INDEX('S. Cement Fin.Model'!V$62:V$144,Graphs!$C17) -> 0.0314898358 | V17: =INDEX('S. Cement Fin.Model'!W$62:W$144,Graphs!$C17) -> 0.0314898358
B18: 10 | C18: =MATCH(B18,'S. Cement Fin.Model'!$B$62:$B$144,0) -> 67 | D18: =INDEX('S. Cement Fin.Model'!F$62:F$144,Graphs!$C18) -> History & Projected Depreciation Rate | I18: =INDEX('S. Cement Fin.Model'!J$62:J$144,Graphs!$C18) -> 0 | J18: =INDEX('S. Cement Fin.Model'!K$62:K$144,Graphs!$C18) -> 0.05065099673 | K18: =INDEX('S. Cement Fin.Model'!L$62:L$144,Graphs!$C18) -> 0.05601810912 | L18: =INDEX('S. Cement Fin.Model'!M$62:M$144,Graphs!$C18) -> 0.05823999599 | M18: =INDEX('S. Cement Fin.Model'!N$62:N$144,Graphs!$C18) -> 0.058 | N18: =INDEX('S. Cement Fin.Model'!O$62:O$144,Graphs!$C18) -> 0.058 | O18: =INDEX('S. Cement Fin.Model'!P$62:P$144,Graphs!$C18) -> 0.058 | P18: =INDEX('S. Cement Fin.Model'!Q$62:Q$144,Graphs!$C18) -> 0.058 | Q18: =INDEX('S. Cement Fin.Model'!R$62:R$144,Graphs!$C18) -> 0.058 | R18: =INDEX('S. Cement Fin.Model'!S$62:S$144,Graphs!$C18) -> 0.058 | S18: =INDEX('S. Cement Fin.Model'!T$62:T$144,Graphs!$C18) -> 0.058 | T18: =INDEX('S. Cement Fin.Model'!U$62:U$144,Graphs!$C18) -> 0.058 | U18: =INDEX('S. Cement Fin.Model'!V$62:V$144,Graphs!$C18) -> 0.058 | V18: =INDEX('S. Cement Fin.Model'!W$62:W$144,Graphs!$C18) -> 0.058
B19: 11 | C19: =MATCH(B19,'S. Cement Fin.Model'!$B$62:$B$144,0) -> 75 | D19: =INDEX('S. Cement Fin.Model'!F$62:F$144,Graphs!$C19) -> History & Projected Interest Expense Rate | I19: =INDEX('S. Cement Fin.Model'!J$62:J$144,Graphs!$C19) -> 0 | J19: =INDEX('S. Cement Fin.Model'!K$62:K$144,Graphs!$C19) -> 0.03415313407 | K19: =INDEX('S. Cement Fin.Model'!L$62:L$144,Graphs!$C19) -> 0.02963364806 | L19: =INDEX('S. Cement Fin.Model'!M$62:M$144,Graphs!$C19) -> 0.0326900731 | M19: =INDEX('S. Cement Fin.Model'!N$62:N$144,Graphs!$C19) -> 0.06 | N19: =INDEX('S. Cement Fin.Model'!O$62:O$144,Graphs!$C19) -> 0.06 | O19: =INDEX('S. Cement Fin.Model'!P$62:P$144,Graphs!$C19) -> 0.06 | P19: =INDEX('S. Cement Fin.Model'!Q$62:Q$144,Graphs!$C19) -> 0.06 | Q19: =INDEX('S. Cement Fin.Model'!R$62:R$144,Graphs!$C19) -> 0.06 | R19: =INDEX('S. Cement Fin.Model'!S$62:S$144,Graphs!$C19) -> 0.06 | S19: =INDEX('S. Cement Fin.Model'!T$62:T$144,Graphs!$C19) -> 0.06 | T19: =INDEX('S. Cement Fin.Model'!U$62:U$144,Graphs!$C19) -> 0.06 | U19: =INDEX('S. Cement Fin.Model'!V$62:V$144,Graphs!$C19) -> 0.06 | V19: =INDEX('S. Cement Fin.Model'!W$62:W$144,Graphs!$C19) -> 0.06
B20: 12 | C20: =MATCH(B20,'S. Cement Fin.Model'!$B$62:$B$144,0) -> 78 | D20: =INDEX('S. Cement Fin.Model'!F$62:F$144,Graphs!$C20) -> Projected Interest Income Rate | I20: =INDEX('S. Cement Fin.Model'!J$62:J$144,Graphs!$C20) -> 0.02 | J20: =INDEX('S. Cement Fin.Model'!K$62:K$144,Graphs!$C20) -> 0.02 | K20: =INDEX('S. Cement Fin.Model'!L$62:L$144,Graphs!$C20) -> 0.02 | L20: =INDEX('S. Cement Fin.Model'!M$62:M$144,Graphs!$C20) -> 0.02 | M20: =INDEX('S. Cement Fin.Model'!N$62:N$144,Graphs!$C20) -> 0.02 | N20: =INDEX('S. Cement Fin.Model'!O$62:O$144,Graphs!$C20) -> 0.02 | O20: =INDEX('S. Cement Fin.Model'!P$62:P$144,Graphs!$C20) -> 0.02 | P20: =INDEX('S. Cement Fin.Model'!Q$62:Q$144,Graphs!$C20) -> 0.02 | Q20: =INDEX('S. Cement Fin.Model'!R$62:R$144,Graphs!$C20) -> 0.02 | R20: =INDEX('S. Cement Fin.Model'!S$62:S$144,Graphs!$C20) -> 0.02 | S20: =INDEX('S. Cement Fin.Model'!T$62:T$144,Graphs!$C20) -> 0.02 | T20: =INDEX('S. Cement Fin.Model'!U$62:U$144,Graphs!$C20) -> 0.02 | U20: =INDEX('S. Cement Fin.Model'!V$62:V$144,Graphs!$C20) -> 0.02 | V20: =INDEX('S. Cement Fin.Model'!W$62:W$144,Graphs!$C20) -> 0.02
B21: 13 | C21: =MATCH(B21,'S. Cement Fin.Model'!$B$62:$B$144,0) -> 83 | D21: =INDEX('S. Cement Fin.Model'!F$62:F$144,Graphs!$C21) -> Projected Dividend Payout Ratio | I21: =INDEX('S. Cement Fin.Model'!J$62:J$144,Graphs!$C21) -> 0.904739237 | J21: =INDEX('S. Cement Fin.Model'!K$62:K$144,Graphs!$C21) -> 0.806684054 | K21: =INDEX('S. Cement Fin.Model'!L$62:L$144,Graphs!$C21) -> 0.4687286643 | L21: =INDEX('S. Cement Fin.Model'!M$62:M$144,Graphs!$C21) -> 0.4572893459 | M21: =INDEX('S. Cement Fin.Model'!N$62:N$144,Graphs!$C21) -> 0.9 | N21: =INDEX('S. Cement Fin.Model'!O$62:O$144,Graphs!$C21) -> 0.9 | O21: =INDEX('S. Cement Fin.Model'!P$62:P$144,Graphs!$C21) -> 0.9 | P21: =INDEX('S. Cement Fin.Model'!Q$62:Q$144,Graphs!$C21) -> 0.9 | Q21: =INDEX('S. Cement Fin.Model'!R$62:R$144,Graphs!$C21) -> 0.9 | R21: =INDEX('S. Cement Fin.Model'!S$62:S$144,Graphs!$C21) -> 0.9 | S21: =INDEX('S. Cement Fin.Model'!T$62:T$144,Graphs!$C21) -> 0.9 | T21: =INDEX('S. Cement Fin.Model'!U$62:U$144,Graphs!$C21) -> 0.9 | U21: =INDEX('S. Cement Fin.Model'!V$62:V$144,Graphs!$C21) -> 0.9 | V21: =INDEX('S. Cement Fin.Model'!W$62:W$144,Graphs!$C21) -> 0.9
D24: =INDEX(D9:D21,$F$4) -> History & Projected Sales Growth | I24: =INDEX(I9:I21,$F$4) -> 0 | J24: 0.1244595063 | K24: 0.28398894 | L24: -0.007348486258 | M24: 0.04115226337 | N24: 0.01660079051 | O24: 0.02838258165 | P24: 0.04 | Q24: 0.04 | R24: 0.04 | S24: 0.04 | T24: 0.04 | U24: 0.04 | V24: 0.04
I26: =IF(OR(I5,I6),I4,#N/A) -> 2010 | J26: =IF(OR(J5,J6),J4,#N/A) -> 2011 | K26: 2012 | L26: 2013 | M26: 2014 | N26: 2015 | O26: 2016 | P26: 2017 | Q26: 2018
D27: History | I27: =IF(I5,I24) -> 0 | J27: =IF(J5,J24) -> 0.1244595063 | K27: 0.28398894 | L27: -0.007348486258 | M27: FALSE | N27: FALSE | O27: FALSE | P27: FALSE | Q27: FALSE | R27: FALSE | S27: FALSE | T27: FALSE | U27: FALSE | V27: FALSE
D28: Project | I28: =IF(I6,I24) -> FALSE | J28: =IF(J6,J24) -> FALSE | K28: FALSE | L28: FALSE | M28: 0.04115226337 | N28: 0.01660079051 | O28: 0.02838258165 | P28: 0.04 | Q28: 0.04 | R28: FALSE | S28: FALSE | T28: FALSE | U28: FALSE | V28: FALSE
B33: Number | C33: Match | D33: Index
B34: 1 | C34: =MATCH(B34,'S. Cement Fin.Model'!$B$165:$B$211,0) -> 1 | D34: =INDEX('S. Cement Fin.Model'!E$165:E$211,Graphs!$C34) -> Growth Rate | I34: =INDEX('S. Cement Fin.Model'!J$165:J$211,Graphs!$C34) -> 0 | J34: =INDEX('S. Cement Fin.Model'!K$165:K$211,Graphs!$C34) -> 0.1244595063 | K34: =INDEX('S. Cement Fin.Model'!L$165:L$211,Graphs!$C34) -> 0.28398894 | L34: =INDEX('S. Cement Fin.Model'!M$165:M$211,Graphs!$C34) -> -0.007348486258 | M34: =INDEX('S. Cement Fin.Model'!N$165:N$211,Graphs!$C34) -> 0.04115226337 | N34: =INDEX('S. Cement Fin.Model'!O$165:O$211,Graphs!$C34) -> 0.01660079051 | O34: =INDEX('S. Cement Fin.Model'!P$165:P$211,Graphs!$C34) -> 0.02838258165 | P34: =INDEX('S. Cement Fin.Model'!Q$165:Q$211,Graphs!$C34) -> 0.04 | Q34: =INDEX('S. Cement Fin.Model'!R$165:R$211,Graphs!$C34) -> 0.04 | R34: =INDEX('S. Cement Fin.Model'!S$165:S$211,Graphs!$C34) -> 0.04 | S34: =INDEX('S. Cement Fin.Model'!T$165:T$211,Graphs!$C34) -> 0.04 | T34: =INDEX('S. Cement Fin.Model'!U$165:U$211,Graphs!$C34) -> 0.04 | U34: =INDEX('S. Cement Fin.Model'!V$165:V$211,Graphs!$C34) -> 0.04 | V34: =INDEX('S. Cement Fin.Model'!W$165:W$211,Graphs!$C34) -> 0.04
B35: 2 | C35: =MATCH(B35,'S. Cement Fin.Model'!$B$165:$B$211,0) -> 4 | D35: =INDEX('S. Cement Fin.Model'!E$165:E$211,Graphs!$C35) -> Other Revenue | I35: =INDEX('S. Cement Fin.Model'!J$165:J$211,Graphs!$C35) -> 16572 | J35: =INDEX('S. Cement Fin.Model'!K$165:K$211,Graphs!$C35) -> 4906 | K35: =INDEX('S. Cement Fin.Model'!L$165:L$211,Graphs!$C35) -> 14980 | L35: =INDEX('S. Cement Fin.Model'!M$165:M$211,Graphs!$C35) -> -2009 | M35: =INDEX('S. Cement Fin.Model'!N$165:N$211,Graphs!$C35) -> -2009 | N35: =INDEX('S. Cement Fin.Model'!O$165:O$211,Graphs!$C35) -> -2009 | O35: =INDEX('S. Cement Fin.Model'!P$165:P$211,Graphs!$C35) -> -2009 | P35: =INDEX('S. Cement Fin.Model'!Q$165:Q$211,Graphs!$C35) -> -2009 | Q35: =INDEX('S. Cement Fin.Model'!R$165:R$211,Graphs!$C35) -> -2009 | R35: =INDEX('S. Cement Fin.Model'!S$165:S$211,Graphs!$C35) -> -2009 | S35: =INDEX('S. Cement Fin.Model'!T$165:T$211,Graphs!$C35) -> -2009 | T35: =INDEX('S. Cement Fin.Model'!U$165:U$211,Graphs!$C35) -> -2009 | U35: =INDEX('S. Cement Fin.Model'!V$165:V$211,Graphs!$C35) -> -2009 | V35: =INDEX('S. Cement Fin.Model'!W$165:W$211,Graphs!$C35) -> -2009
B36: 3 | C36: =MATCH(B36,'S. Cement Fin.Model'!$B$165:$B$211,0) -> 8 | D36: =INDEX('S. Cement Fin.Model'!E$165:E$211,Graphs!$C36) -> COGS | I36: =INDEX('S. Cement Fin.Model'!J$165:J$211,Graphs!$C36) -> 544492 | J36: =INDEX('S. Cement Fin.Model'!K$165:K$211,Graphs!$C36) -> 578833 | K36: =INDEX('S. Cement Fin.Model'!L$165:L$211,Graphs!$C36) -> 773490 | L36: =INDEX('S. Cement Fin.Model'!M$165:M$211,Graphs!$C36) -> 702994 | M36: =INDEX('S. Cement Fin.Model'!N$165:N$211,Graphs!$C36) -> 819815.5778 | N36: =INDEX('S. Cement Fin.Model'!O$165:O$211,Graphs!$C36) -> 833425.1644 | O36: =INDEX('S. Cement Fin.Model'!P$165:P$211,Graphs!$C36) -> 857079.9222 | P36: =INDEX('S. Cement Fin.Model'!Q$165:Q$211,Graphs!$C36) -> 891363.1191 | Q36: =INDEX('S. Cement Fin.Model'!R$165:R$211,Graphs!$C36) -> 927017.6439 | R36: =INDEX('S. Cement Fin.Model'!S$165:S$211,Graphs!$C36) -> 964098.3496 | S36: =INDEX('S. Cement Fin.Model'!T$165:T$211,Graphs!$C36) -> 1002662.284 | T36: =INDEX('S. Cement Fin.Model'!U$165:U$211,Graphs!$C36) -> 1042768.775 | U36: =INDEX('S. Cement Fin.Model'!V$165:V$211,Graphs!$C36) -> 1084479.526 | V36: =INDEX('S. Cement Fin.Model'!W$165:W$211,Graphs!$C36) -> 1127858.707
B37: 4 | C37: =MATCH(B37,'S. Cement Fin.Model'!$B$165:$B$211,0) -> 11 | D37: =INDEX('S. Cement Fin.Model'!E$165:E$211,Graphs!$C37) -> Admin Cost | I37: =INDEX('S. Cement Fin.Model'!J$165:J$211,Graphs!$C37) -> 87518 | J37: =INDEX('S. Cement Fin.Model'!K$165:K$211,Graphs!$C37) -> 85928 | K37: =INDEX('S. Cement Fin.Model'!L$165:L$211,Graphs!$C37) -> 87153 | L37: =INDEX('S. Cement Fin.Model'!M$165:M$211,Graphs!$C37) -> 97887 | M37: =INDEX('S. Cement Fin.Model'!N$165:N$211,Graphs!$C37) -> 102476.9472 | N37: =INDEX('S. Cement Fin.Model'!O$165:O$211,Graphs!$C37) -> 104178.1456 | O37: =INDEX('S. Cement Fin.Model'!P$165:P$211,Graphs!$C37) -> 107134.9903 | P37: =INDEX('S. Cement Fin.Model'!Q$165:Q$211,Graphs!$C37) -> 111420.3899 | Q37: =INDEX('S. Cement Fin.Model'!R$165:R$211,Graphs!$C37) -> 115877.2055 | R37: =INDEX('S. Cement Fin.Model'!S$165:S$211,Graphs!$C37) -> 120512.2937 | S37: =INDEX('S. Cement Fin.Model'!T$165:T$211,Graphs!$C37) -> 125332.7855 | T37: =INDEX('S. Cement Fin.Model'!U$165:U$211,Graphs!$C37) -> 130346.0969 | U37: =INDEX('S. Cement Fin.Model'!V$165:V$211,Graphs!$C37) -> 135559.9407 | V37: =INDEX('S. Cement Fin.Model'!W$165:W$211,Graphs!$C37) -> 140982.3384
B38: 5 | C38: =MATCH(B38,'S. Cement Fin.Model'!$B$165:$B$211,0) -> 14 | D38: =INDEX('S. Cement Fin.Model'!E$165:E$211,Graphs!$C38) -> EBITDA | I38: =INDEX('S. Cement Fin.Model'!J$165:J$211,Graphs!$C38) -> 910713 | J38: =INDEX('S. Cement Fin.Model'!K$165:K$211,Graphs!$C38) -> 1056240 | K38: =INDEX('S. Cement Fin.Model'!L$165:L$211,Graphs!$C38) -> 1357784 | L38: =INDEX('S. Cement Fin.Model'!M$165:M$211,Graphs!$C38) -> 1384365 | M38: =INDEX('S. Cement Fin.Model'!N$165:N$211,Graphs!$C38) -> 1352963.969 | N38: =INDEX('S. Cement Fin.Model'!O$165:O$211,Graphs!$C38) -> 1375457.591 | O38: =INDEX('S. Cement Fin.Model'!P$165:P$211,Graphs!$C38) -> 1414553.649 | P38: =INDEX('S. Cement Fin.Model'!Q$165:Q$211,Graphs!$C38) -> 1471216.155 | Q38: =INDEX('S. Cement Fin.Model'!R$165:R$211,Graphs!$C38) -> 1530145.161 | R38: =INDEX('S. Cement Fin.Model'!S$165:S$211,Graphs!$C38) -> 1591431.328 | S38: =INDEX('S. Cement Fin.Model'!T$165:T$211,Graphs!$C38) -> 1655168.941 | T38: =INDEX('S. Cement Fin.Model'!U$165:U$211,Graphs!$C38) -> 1721456.059 | U38: =INDEX('S. Cement Fin.Model'!V$165:V$211,Graphs!$C38) -> 1790394.661 | V38: =INDEX('S. Cement Fin.Model'!W$165:W$211,Graphs!$C38) -> 1862090.807
B39: 6 | C39: =MATCH(B39,'S. Cement Fin.Model'!$B$165:$B$211,0) -> 25 | D39: =INDEX('S. Cement Fin.Model'!E$165:E$211,Graphs!$C39) -> Total CAPEX | I39: =INDEX('S. Cement Fin.Model'!J$165:J$211,Graphs!$C39) -> 66370 | J39: =INDEX('S. Cement Fin.Model'!K$165:K$211,Graphs!$C39) -> 92581 | K39: =INDEX('S. Cement Fin.Model'!L$165:L$211,Graphs!$C39) -> 59021 | L39: =INDEX('S. Cement Fin.Model'!M$165:M$211,Graphs!$C39) -> 56771 | M39: =INDEX('S. Cement Fin.Model'!N$165:N$211,Graphs!$C39) -> 159408.5846 | N39: =INDEX('S. Cement Fin.Model'!O$165:O$211,Graphs!$C39) -> 162054.8931 | O39: =INDEX('S. Cement Fin.Model'!P$165:P$211,Graphs!$C39) -> 166654.4293 | P39: =INDEX('S. Cement Fin.Model'!Q$165:Q$211,Graphs!$C39) -> 173320.6065 | Q39: =INDEX('S. Cement Fin.Model'!R$165:R$211,Graphs!$C39) -> 180253.4308 | R39: =INDEX('S. Cement Fin.Model'!S$165:S$211,Graphs!$C39) -> 187463.568 | S39: =INDEX('S. Cement Fin.Model'!T$165:T$211,Graphs!$C39) -> 194962.1107 | T39: =INDEX('S. Cement Fin.Model'!U$165:U$211,Graphs!$C39) -> 202760.5951 | U39: =INDEX('S. Cement Fin.Model'!V$165:V$211,Graphs!$C39) -> 210871.0189 | V39: =INDEX('S. Cement Fin.Model'!W$165:W$211,Graphs!$C39) -> 219305.8597
B40: 7 | C40: =MATCH(B40,'S. Cement Fin.Model'!$B$165:$B$211,0) -> 30 | D40: =INDEX('S. Cement Fin.Model'!E$165:E$211,Graphs!$C40) -> Depreciation Expense | I40: =INDEX('S. Cement Fin.Model'!J$165:J$211,Graphs!$C40) -> 212753 | J40: =INDEX('S. Cement Fin.Model'!K$165:K$211,Graphs!$C40) -> 186262 | K40: =INDEX('S. Cement Fin.Model'!L$165:L$211,Graphs!$C40) -> 200747 | L40: =INDEX('S. Cement Fin.Model'!M$165:M$211,Graphs!$C40) -> 199999 | M40: =INDEX('S. Cement Fin.Model'!N$165:N$211,Graphs!$C40) -> 190995.334 | N40: =INDEX('S. Cement Fin.Model'!O$165:O$211,Graphs!$C40) -> 189163.3025 | O40: =INDEX('S. Cement Fin.Model'!P$165:P$211,Graphs!$C40) -> 187591.0148 | P40: =INDEX('S. Cement Fin.Model'!Q$165:Q$211,Graphs!$C40) -> 186376.6928 | Q40: =INDEX('S. Cement Fin.Model'!R$165:R$211,Graphs!$C40) -> 185619.4398 | R40: =INDEX('S. Cement Fin.Model'!S$165:S$211,Graphs!$C40) -> 185308.2113 | S40: =INDEX('S. Cement Fin.Model'!T$165:T$211,Graphs!$C40) -> 185433.222 | T40: =INDEX('S. Cement Fin.Model'!U$165:U$211,Graphs!$C40) -> 185985.8975 | U40: =INDEX('S. Cement Fin.Model'!V$165:V$211,Graphs!$C40) -> 186958.83 | V40: =INDEX('S. Cement Fin.Model'!W$165:W$211,Graphs!$C40) -> 188345.7369
B41: 8 | C41: =MATCH(B41,'S. Cement Fin.Model'!$B$165:$B$211,0) -> 35 | D41: =INDEX('S. Cement Fin.Model'!E$165:E$211,Graphs!$C41) -> Less Depreciation | I41: =INDEX('S. Cement Fin.Model'!J$165:J$211,Graphs!$C41) -> 212753 | J41: =INDEX('S. Cement Fin.Model'!K$165:K$211,Graphs!$C41) -> 186262 | K41: =INDEX('S. Cement Fin.Model'!L$165:L$211,Graphs!$C41) -> 200747 | L41: =INDEX('S. Cement Fin.Model'!M$165:M$211,Graphs!$C41) -> 199999 | M41: =INDEX('S. Cement Fin.Model'!N$165:N$211,Graphs!$C41) -> 190995.334 | N41: =INDEX('S. Cement Fin.Model'!O$165:O$211,Graphs!$C41) -> 189163.3025 | O41: =INDEX('S. Cement Fin.Model'!P$165:P$211,Graphs!$C41) -> 187591.0148 | P41: =INDEX('S. Cement Fin.Model'!Q$165:Q$211,Graphs!$C41) -> 186376.6928 | Q41: =INDEX('S. Cement Fin.Model'!R$165:R$211,Graphs!$C41) -> 185619.4398 | R41: =INDEX('S. Cement Fin.Model'!S$165:S$211,Graphs!$C41) -> 185308.2113 | S41: =INDEX('S. Cement Fin.Model'!T$165:T$211,Graphs!$C41) -> 185433.222 | T41: =INDEX('S. Cement Fin.Model'!U$165:U$211,Graphs!$C41) -> 185985.8975 | U41: =INDEX('S. Cement Fin.Model'!V$165:V$211,Graphs!$C41) -> 186958.83 | V41: =INDEX('S. Cement Fin.Model'!W$165:W$211,Graphs!$C41) -> 188345.7369
B42: 9 | C42: =MATCH(B42,'S. Cement Fin.Model'!$B$165:$B$211,0) -> 38 | D42: =INDEX('S. Cement Fin.Model'!E$165:E$211,Graphs!$C42) -> EBIT | I42: =INDEX('S. Cement Fin.Model'!J$165:J$211,Graphs!$C42) -> 697960 | J42: =INDEX('S. Cement Fin.Model'!K$165:K$211,Graphs!$C42) -> 869978 | K42: =INDEX('S. Cement Fin.Model'!L$165:L$211,Graphs!$C42) -> 1157037 | L42: =INDEX('S. Cement Fin.Model'!M$165:M$211,Graphs!$C42) -> 1184366 | M42: =INDEX('S. Cement Fin.Model'!N$165:N$211,Graphs!$C42) -> 1161968.635 | N42: =INDEX('S. Cement Fin.Model'!O$165:O$211,Graphs!$C42) -> 1186294.289 | O42: =INDEX('S. Cement Fin.Model'!P$165:P$211,Graphs!$C42) -> 1226962.634 | P42: =INDEX('S. Cement Fin.Model'!Q$165:Q$211,Graphs!$C42) -> 1284839.462 | Q42: =INDEX('S. Cement Fin.Model'!R$165:R$211,Graphs!$C42) -> 1344525.722 | R42: =INDEX('S. Cement Fin.Model'!S$165:S$211,Graphs!$C42) -> 1406123.117 | S42: =INDEX('S. Cement Fin.Model'!T$165:T$211,Graphs!$C42) -> 1469735.719 | T42: =INDEX('S. Cement Fin.Model'!U$165:U$211,Graphs!$C42) -> 1535470.161 | U42: =INDEX('S. Cement Fin.Model'!V$165:V$211,Graphs!$C42) -> 1603435.831 | V42: =INDEX('S. Cement Fin.Model'!W$165:W$211,Graphs!$C42) -> 1673745.07
B43: 10 | C43: =MATCH(B43,'S. Cement Fin.Model'!$B$165:$B$211,0) -> 40 | D43: =INDEX('S. Cement Fin.Model'!E$165:E$211,Graphs!$C43) -> NOPAT | I43: =INDEX('S. Cement Fin.Model'!J$165:J$211,Graphs!$C43) -> 680510.9484 | J43: =INDEX('S. Cement Fin.Model'!K$165:K$211,Graphs!$C43) -> 848205.1823 | K43: =INDEX('S. Cement Fin.Model'!L$165:L$211,Graphs!$C43) -> 1115854.88 | L43: =INDEX('S. Cement Fin.Model'!M$165:M$211,Graphs!$C43) -> 1136589.071 | M43: =INDEX('S. Cement Fin.Model'!N$165:N$211,Graphs!$C43) -> 1125378.433 | N43: =INDEX('S. Cement Fin.Model'!O$165:O$211,Graphs!$C43) -> 1148938.076 | O43: =INDEX('S. Cement Fin.Model'!P$165:P$211,Graphs!$C43) -> 1188325.783 | P43: =INDEX('S. Cement Fin.Model'!Q$165:Q$211,Graphs!$C43) -> 1244380.079 | Q43: =INDEX('S. Cement Fin.Model'!R$165:R$211,Graphs!$C43) -> 1302186.827 | R43: =INDEX('S. Cement Fin.Model'!S$165:S$211,Graphs!$C43) -> 1361844.531 | S43: =INDEX('S. Cement Fin.Model'!T$165:T$211,Graphs!$C43) -> 1423453.983 | T43: =INDEX('S. Cement Fin.Model'!U$165:U$211,Graphs!$C43) -> 1487118.458 | U43: =INDEX('S. Cement Fin.Model'!V$165:V$211,Graphs!$C43) -> 1552943.9 | V43: =INDEX('S. Cement Fin.Model'!W$165:W$211,Graphs!$C43) -> 1621039.113
F48: 5
B50: Number
B51: 1 | D51: =INDEX('S. Cement Fin.Model'!D$377:D$387,Graphs!$B51) -> CAPEX To Depreciation | I51: =INDEX('S. Cement Fin.Model'!J$377:J$387,Graphs!$B51) -> 0.3119579982 | J51: =INDEX('S. Cement Fin.Model'!K$377:K$387,Graphs!$B51) -> 0.4970471701 | K51: =INDEX('S. Cement Fin.Model'!L$377:L$387,Graphs!$B51) -> 0.2940068843 | L51: =INDEX('S. Cement Fin.Model'!M$377:M$387,Graphs!$B51) -> 0.2838564193 | M51: =INDEX('S. Cement Fin.Model'!N$377:N$387,Graphs!$B51) -> 0.8346203084 | N51: =INDEX('S. Cement Fin.Model'!O$377:O$387,Graphs!$B51) -> 0.8566930843 | O51: =INDEX('S. Cement Fin.Model'!P$377:P$387,Graphs!$B51) -> 0.8883923866 | P51: =INDEX('S. Cement Fin.Model'!Q$377:Q$387,Graphs!$B51) -> 0.9299478592 | Q51: =INDEX('S. Cement Fin.Model'!R$377:R$387,Graphs!$B51) -> 0.9710913411 | R51: =INDEX('S. Cement Fin.Model'!S$377:S$387,Graphs!$B51) -> 1.011631199 | S51: =INDEX('S. Cement Fin.Model'!T$377:T$387,Graphs!$B51) -> 1.051387171 | T51: =INDEX('S. Cement Fin.Model'!U$377:U$387,Graphs!$B51) -> 1.090193385 | U51: =INDEX('S. Cement Fin.Model'!V$377:V$387,Graphs!$B51) -> 1.127900827 | V51: =INDEX('S. Cement Fin.Model'!W$377:W$387,Graphs!$B51) -> 1.164379206
B52: 2 | D52: =INDEX('S. Cement Fin.Model'!D$377:D$387,Graphs!$B52) -> EBIT Margin | I52: =INDEX('S. Cement Fin.Model'!J$377:J$387,Graphs!$B52) -> 0.452420817 | J52: =INDEX('S. Cement Fin.Model'!K$377:K$387,Graphs!$B52) -> 0.5055069695 | K52: =INDEX('S. Cement Fin.Model'!L$377:L$387,Graphs!$B52) -> 0.5215573918 | L52: =INDEX('S. Cement Fin.Model'!M$377:M$387,Graphs!$B52) -> 0.5419829163 | M52: =INDEX('S. Cement Fin.Model'!N$377:N$387,Graphs!$B52) -> 0.5106978655 | N52: =INDEX('S. Cement Fin.Model'!O$377:O$387,Graphs!$B52) -> 0.5128677278 | O52: =INDEX('S. Cement Fin.Model'!P$377:P$387,Graphs!$B52) -> 0.5157973979 | P52: =INDEX('S. Cement Fin.Model'!Q$377:Q$387,Graphs!$B52) -> 0.5193369591 | Q52: =INDEX('S. Cement Fin.Model'!R$377:R$387,Graphs!$B52) -> 0.5225436511 | R52: =INDEX('S. Cement Fin.Model'!S$377:S$387,Graphs!$B52) -> 0.5254488277 | S52: =INDEX('S. Cement Fin.Model'!T$377:T$387,Graphs!$B52) -> 0.528080887 | T52: =INDEX('S. Cement Fin.Model'!U$377:U$387,Graphs!$B52) -> 0.5304655502 | U52: =INDEX('S. Cement Fin.Model'!V$377:V$387,Graphs!$B52) -> 0.532626114 | V52: =INDEX('S. Cement Fin.Model'!W$377:W$387,Graphs!$B52) -> 0.5345836796
B53: 3 | D53: =INDEX('S. Cement Fin.Model'!D$377:D$387,Graphs!$B53) -> NOPAT Margin | I53: =INDEX('S. Cement Fin.Model'!J$377:J$387,Graphs!$B53) -> 0.4411102631 | J53: =INDEX('S. Cement Fin.Model'!K$377:K$387,Graphs!$B53) -> 0.4928557173 | K53: =INDEX('S. Cement Fin.Model'!L$377:L$387,Graphs!$B53) -> 0.5029937338 | L53: =INDEX('S. Cement Fin.Model'!M$377:M$387,Graphs!$B53) -> 0.5201195062 | M53: =INDEX('S. Cement Fin.Model'!N$377:N$387,Graphs!$B53) -> 0.4946160736 | N53: =INDEX('S. Cement Fin.Model'!O$377:O$387,Graphs!$B53) -> 0.4967176073 | O53: =INDEX('S. Cement Fin.Model'!P$377:P$387,Graphs!$B53) -> 0.4995550226 | P53: =INDEX('S. Cement Fin.Model'!Q$377:Q$387,Graphs!$B53) -> 0.5029831235 | Q53: =INDEX('S. Cement Fin.Model'!R$377:R$387,Graphs!$B53) -> 0.5060888373 | R53: =INDEX('S. Cement Fin.Model'!S$377:S$387,Graphs!$B53) -> 0.5089025304 | S53: =INDEX('S. Cement Fin.Model'!T$377:T$387,Graphs!$B53) -> 0.5114517065 | T53: =INDEX('S. Cement Fin.Model'!U$377:U$387,Graphs!$B53) -> 0.5137612771 | U53: =INDEX('S. Cement Fin.Model'!V$377:V$387,Graphs!$B53) -> 0.5158538052 | V53: =INDEX('S. Cement Fin.Model'!W$377:W$387,Graphs!$B53) -> 0.5177497273
B54: 4 | D54: =INDEX('S. Cement Fin.Model'!D$377:D$387,Graphs!$B54) -> Invested Capital Turnover | I54: =INDEX('S. Cement Fin.Model'!J$377:J$387,Graphs!$B54) -> 2.412320942 | J54: =INDEX('S. Cement Fin.Model'!K$377:K$387,Graphs!$B54) -> 2.012497378 | K54: =INDEX('S. Cement Fin.Model'!L$377:L$387,Graphs!$B54) -> 1.461210128 | L54: =INDEX('S. Cement Fin.Model'!M$377:M$387,Graphs!$B54) -> 1.521380659 | M54: =INDEX('S. Cement Fin.Model'!N$377:N$387,Graphs!$B54) -> 1.529521506 | N54: =INDEX('S. Cement Fin.Model'!O$377:O$387,Graphs!$B54) -> 1.494372478 | O54: =INDEX('S. Cement Fin.Model'!P$377:P$387,Graphs!$B54) -> 1.446944422 | P54: =INDEX('S. Cement Fin.Model'!Q$377:Q$387,Graphs!$B54) -> 1.389665508 | Q54: =INDEX('S. Cement Fin.Model'!R$377:R$387,Graphs!$B54) -> 1.337784819 | R54: =INDEX('S. Cement Fin.Model'!S$377:S$387,Graphs!$B54) -> 1.290793436 | S54: =INDEX('S. Cement Fin.Model'!T$377:T$387,Graphs!$B54) -> 1.248230432 | T54: =INDEX('S. Cement Fin.Model'!U$377:U$387,Graphs!$B54) -> 1.209678346 | U54: =INDEX('S. Cement Fin.Model'!V$377:V$387,Graphs!$B54) -> 1.174759082 | V54: =INDEX('S. Cement Fin.Model'!W$377:W$387,Graphs!$B54) -> 1.143130194
B55: 5 | D55: =INDEX('S. Cement Fin.Model'!D$377:D$387,Graphs!$B55) -> ROIC | I55: =INDEX('S. Cement Fin.Model'!J$377:J$387,Graphs!$B55) -> 0.1828572042 | J55: =INDEX('S. Cement Fin.Model'!K$377:K$387,Graphs!$B55) -> 0.2361026933 | K55: =INDEX('S. Cement Fin.Model'!L$377:L$387,Graphs!$B55) -> 0.3328377542 | L55: =INDEX('S. Cement Fin.Model'!M$377:M$387,Graphs!$B55) -> 0.3461949699 | M55: =INDEX('S. Cement Fin.Model'!N$377:N$387,Graphs!$B55) -> 0.3307677261 | N55: =INDEX('S. Cement Fin.Model'!O$377:O$387,Graphs!$B55) -> 0.3312670157 | O55: =INDEX('S. Cement Fin.Model'!P$377:P$387,Graphs!$B55) -> 0.3445161294 | P55: =INDEX('S. Cement Fin.Model'!Q$377:Q$387,Graphs!$B55) -> 0.3617395568 | Q55: =INDEX('S. Cement Fin.Model'!R$377:R$387,Graphs!$B55) -> 0.3785313558 | R55: =INDEX('S. Cement Fin.Model'!S$377:S$387,Graphs!$B55) -> 0.3949441022 | S55: =INDEX('S. Cement Fin.Model'!T$377:T$387,Graphs!$B55) -> 0.4109131488 | T55: =INDEX('S. Cement Fin.Model'!U$377:U$387,Graphs!$B55) -> 0.4263815086 | U55: =INDEX('S. Cement Fin.Model'!V$377:V$387,Graphs!$B55) -> 0.4413004443 | V55: =INDEX('S. Cement Fin.Model'!W$377:W$387,Graphs!$B55) -> 0.45562979
B56: 6 | D56: =INDEX('S. Cement Fin.Model'!D$377:D$387,Graphs!$B56) -> ROE | I56: =INDEX('S. Cement Fin.Model'!J$377:J$387,Graphs!$B56) -> 0.1956334735 | J56: =INDEX('S. Cement Fin.Model'!K$377:K$387,Graphs!$B56) -> 0.249861464 | K56: =INDEX('S. Cement Fin.Model'!L$377:L$387,Graphs!$B56) -> 0.3421641743 | L56: =INDEX('S. Cement Fin.Model'!M$377:M$387,Graphs!$B56) -> 0.3530439973 | M56: =INDEX('S. Cement Fin.Model'!N$377:N$387,Graphs!$B56) -> 0.3397545008 | N56: =INDEX('S. Cement Fin.Model'!O$377:O$387,Graphs!$B56) -> 0.3352030348 | O56: =INDEX('S. Cement Fin.Model'!P$377:P$387,Graphs!$B56) -> 0.337666937 | P56: =INDEX('S. Cement Fin.Model'!Q$377:Q$387,Graphs!$B56) -> 0.3439976204 | Q56: =INDEX('S. Cement Fin.Model'!R$377:R$387,Graphs!$B56) -> 0.348938106 | R56: =INDEX('S. Cement Fin.Model'!S$377:S$387,Graphs!$B56) -> 0.3529358544 | S56: =INDEX('S. Cement Fin.Model'!T$377:T$387,Graphs!$B56) -> 0.3565847138 | T56: =INDEX('S. Cement Fin.Model'!U$377:U$387,Graphs!$B56) -> 0.3599125539 | U56: =INDEX('S. Cement Fin.Model'!V$377:V$387,Graphs!$B56) -> 0.3629454501 | V56: =INDEX('S. Cement Fin.Model'!W$377:W$387,Graphs!$B56) -> 0.3657077199
B57: 7 | D57: =INDEX('S. Cement Fin.Model'!D$377:D$387,Graphs!$B57) -> Depreciation Rate | I57: =INDEX('S. Cement Fin.Model'!J$377:J$387,Graphs!$B57) -> 0 | J57: =INDEX('S. Cement Fin.Model'!K$377:K$387,Graphs!$B57) -> 0.05065099673 | K57: =INDEX('S. Cement Fin.Model'!L$377:L$387,Graphs!$B57) -> 0.05601810912 | L57: =INDEX('S. Cement Fin.Model'!M$377:M$387,Graphs!$B57) -> 0.05823999599 | M57: =INDEX('S. Cement Fin.Model'!N$377:N$387,Graphs!$B57) -> 0.058 | N57: =INDEX('S. Cement Fin.Model'!O$377:O$387,Graphs!$B57) -> 0.058 | O57: =INDEX('S. Cement Fin.Model'!P$377:P$387,Graphs!$B57) -> 0.058 | P57: =INDEX('S. Cement Fin.Model'!Q$377:Q$387,Graphs!$B57) -> 0.058 | Q57: =INDEX('S. Cement Fin.Model'!R$377:R$387,Graphs!$B57) -> 0.058 | R57: =INDEX('S. Cement Fin.Model'!S$377:S$387,Graphs!$B57) -> 0.058 | S57: =INDEX('S. Cement Fin.Model'!T$377:T$387,Graphs!$B57) -> 0.058 | T57: =INDEX('S. Cement Fin.Model'!U$377:U$387,Graphs!$B57) -> 0.058 | U57: =INDEX('S. Cement Fin.Model'!V$377:V$387,Graphs!$B57) -> 0.058 | V57: =INDEX('S. Cement Fin.Model'!W$377:W$387,Graphs!$B57) -> 0.058
B58: 8 | D58: =INDEX('S. Cement Fin.Model'!D$377:D$387,Graphs!$B58) -> EPS | I58: =INDEX('S. Cement Fin.Model'!J$377:J$387,Graphs!$B58) -> 4.31 | J58: =INDEX('S. Cement Fin.Model'!K$377:K$387,Graphs!$B58) -> 5.43 | K58: =INDEX('S. Cement Fin.Model'!L$377:L$387,Graphs!$B58) -> 7.2 | L58: =INDEX('S. Cement Fin.Model'!M$377:M$387,Graphs!$B58) -> 7.343785788 | M58: =INDEX('S. Cement Fin.Model'!N$377:N$387,Graphs!$B58) -> 7.246613124 | N58: =INDEX('S. Cement Fin.Model'!O$377:O$387,Graphs!$B58) -> 7.394929526 | O58: =INDEX('S. Cement Fin.Model'!P$377:P$387,Graphs!$B58) -> 7.704209791 | P58: =INDEX('S. Cement Fin.Model'!Q$377:Q$387,Graphs!$B58) -> 8.12083965 | Q58: =INDEX('S. Cement Fin.Model'!R$377:R$387,Graphs!$B58) -> 8.527940645 | R58: =INDEX('S. Cement Fin.Model'!S$377:S$387,Graphs!$B58) -> 8.933787901 | S58: =INDEX('S. Cement Fin.Model'!T$377:T$387,Graphs!$B58) -> 9.352175429 | T58: =INDEX('S. Cement Fin.Model'!U$377:U$387,Graphs!$B58) -> 9.783819188 | U58: =INDEX('S. Cement Fin.Model'!V$377:V$387,Graphs!$B58) -> 10.22945134 | V58: =INDEX('S. Cement Fin.Model'!W$377:W$387,Graphs!$B58) -> 10.68982163
B59: 9 | D59: =INDEX('S. Cement Fin.Model'!D$377:D$387,Graphs!$B59) -> Debt to Capital | I59: =INDEX('S. Cement Fin.Model'!J$377:J$387,Graphs!$B59) -> 0.1104431698 | J59: =INDEX('S. Cement Fin.Model'!K$377:K$387,Graphs!$B59) -> 0.1070201497 | K59: =INDEX('S. Cement Fin.Model'!L$377:L$387,Graphs!$B59) -> 0.09413956829 | L59: =INDEX('S. Cement Fin.Model'!M$377:M$387,Graphs!$B59) -> 0.07343621844 | M59: =INDEX('S. Cement Fin.Model'!N$377:N$387,Graphs!$B59) -> 0.07331445711 | N59: =INDEX('S. Cement Fin.Model'!O$377:O$387,Graphs!$B59) -> 0.04221300723 | O59: =INDEX('S. Cement Fin.Model'!P$377:P$387,Graphs!$B59) -> 0.01184787884 | P59: =INDEX('S. Cement Fin.Model'!Q$377:Q$387,Graphs!$B59) -> 0 | Q59: =INDEX('S. Cement Fin.Model'!R$377:R$387,Graphs!$B59) -> 0 | R59: =INDEX('S. Cement Fin.Model'!S$377:S$387,Graphs!$B59) -> 0 | S59: =INDEX('S. Cement Fin.Model'!T$377:T$387,Graphs!$B59) -> 0 | T59: =INDEX('S. Cement Fin.Model'!U$377:U$387,Graphs!$B59) -> 0 | U59: =INDEX('S. Cement Fin.Model'!V$377:V$387,Graphs!$B59) -> 0 | V59: =INDEX('S. Cement Fin.Model'!W$377:W$387,Graphs!$B59) -> 0
B60: 10 | D60: =INDEX('S. Cement Fin.Model'!D$377:D$387,Graphs!$B60) -> Sales Growth | I60: =INDEX('S. Cement Fin.Model'!J$377:J$387,Graphs!$B60) -> 0 | J60: =INDEX('S. Cement Fin.Model'!K$377:K$387,Graphs!$B60) -> 0.1155606029 | K60: =INDEX('S. Cement Fin.Model'!L$377:L$387,Graphs!$B60) -> 0.2890329523 | L60: =INDEX('S. Cement Fin.Model'!M$377:M$387,Graphs!$B60) -> -0.0149569943 | M60: =INDEX('S. Cement Fin.Model'!N$377:N$387,Graphs!$B60) -> 0.0411900966 | N60: =INDEX('S. Cement Fin.Model'!O$377:O$387,Graphs!$B60) -> 0.01661544864 | O60: =INDEX('S. Cement Fin.Model'!P$377:P$387,Graphs!$B60) -> 0.02840723323 | P60: =INDEX('S. Cement Fin.Model'!Q$377:Q$387,Graphs!$B60) -> 0.04003378219 | Q60: =INDEX('S. Cement Fin.Model'!R$377:R$387,Graphs!$B60) -> 0.04003248182 | R60: =INDEX('S. Cement Fin.Model'!S$377:S$387,Graphs!$B60) -> 0.04003123154 | S60: =INDEX('S. Cement Fin.Model'!T$377:T$387,Graphs!$B60) -> 0.04003002942 | T60: =INDEX('S. Cement Fin.Model'!U$377:U$387,Graphs!$B60) -> 0.04002887361 | U60: =INDEX('S. Cement Fin.Model'!V$377:V$387,Graphs!$B60) -> 0.04002776232 | V60: =INDEX('S. Cement Fin.Model'!W$377:W$387,Graphs!$B60) -> 0.04002669382
D62: =INDEX(D51:D60,$F$48) -> ROIC | I62: =INDEX(I51:I60,$F$48) -> 0.1828572042 | J62: 0.2361026933 | K62: 0.3328377542 | L62: 0.3461949699 | M62: 0.3307677261 | N62: 0.3312670157 | O62: 0.3445161294 | P62: 0.3617395568 | Q62: 0.3785313558 | R62: 0.3949441022 | S62: 0.4109131488 | T62: 0.4263815086 | U62: 0.4413004443 | V62: 0.45562979
I64: =I26 -> 2010 | J64: 2011 | K64: 2012 | L64: 2013 | M64: 2014 | N64: 2015 | O64: 2016 | P64: 2017 | Q64: 2018
D65: History | I65: =IF(I5,I62) -> 0.1828572042 | J65: 0.2361026933 | K65: 0.3328377542 | L65: 0.3461949699 | M65: FALSE | N65: FALSE | O65: FALSE | P65: FALSE | Q65: FALSE | R65: FALSE | S65: FALSE | T65: FALSE | U65: FALSE | V65: FALSE
D66: Projected | I66: =IF(I6,I62) -> FALSE | J66: FALSE | K66: FALSE | L66: FALSE | M66: 0.3307677261 | N66: 0.3312670157 | O66: 0.3445161294 | P66: 0.3617395568 | Q66: 0.3785313558 | R66: FALSE | S66: FALSE | T66: FALSE | U66: FALSE | V66: FALSE

Sheet PE&ROE
A1: Assumptions
B2: Value Drivers
D3: ROE | E3: 0.15 | K3: 0.08 | L3: 0.09 | M3: 0.1 | N3: 0.11 | O3: 0.12 | P3: 0.13 | Q3: 0.14
D4: Growth | E4: =I5/100 -> 0.05 | I4: Price to Book | J4: =H24 -> 1.999999999 | K4: 0.5999999997 | L4: 0.7999999996 | M4: 0.9999999995 | N4: 1.199999999 | O4: 1.399999999 | P4: 1.599999999 | Q4: 1.799999999
D5: COE | E5: 0.1 | I5: 5
G6: PE Ratio | H6: =H23 -> 13.33333333
A7: Preliminary Calculations
D8: Dividend Payout Ratio | E8: =1-E4/E3 -> 0.6666666667 | H8: Market To Book Ratio: | J8: Growth | K8: =E4 -> 0.05
D9: Book Value Per Share | E9: 10
A11: Financial Model
B13: Book Value Progression
C14: Openning Balance | I14: =H17 -> 10 | J14: =I17 -> 10.5 | K14: 11.025 | L14: 11.57625 | M14: 12.1550625 | N14: 12.76281562 | O14: 13.40095641 | P14: 14.07100423 | Q14: 14.77455444 | R14: 15.51328216 | S14: 16.28894627 | T14: 17.10339358 | U14: 17.95856326 | V14: 18.85649142 | W14: 19.79931599 | X14: 20.78928179 | Y14: 21.82874588 | Z14: 22.92018318 | AA14: 24.06619234 | AB14: 25.26950195 | AC14: 26.53297705 | AD14: 27.8596259 | AE14: 29.2526072 | AF14: 30.71523756 | AG14: 32.25099944 | AH14: 33.86354941 | AI14: 35.55672688 | AJ14: 37.33456322 | AK14: 39.20129138 | AL14: 41.16135595 | AM14: 43.21942375 | AN14: 45.38039494 | AO14: 47.64941469 | AP14: 50.03188542 | AQ14: 52.53347969 | AR14: 55.16015368 | AS14: 57.91816136 | AT14: 60.81406943 | AU14: 63.8547729 | AV14: 67.04751154 | AW14: 70.39988712 | AX14: 73.91988148 | AY14: 77.61587555 | AZ14: 81.49666933 | BA14: 85.5715028 | BB14: 89.85007793 | BC14: 94.34258183 | BD14: 99.05971092 | BE14: 104.0126965 | BF14: 109.2133313 | BG14: 114.6739979 | BH14: 120.4076978 | BI14: 126.4280826 | BJ14: 132.7494868 | BK14: 139.3869611 | BL14: 146.3563092 | BM14: 153.6741246 | BN14: 161.3578309 | BO14: 169.4257224 | BP14: 177.8970085 | BQ14: 186.7918589 | BR14: 196.1314519 | BS14: 205.9380245 | BT14: 216.2349257 | BU14: 227.046672 | BV14: =BU17 -> 238.3990056 | BW14: 250.3189559 | BX14: 262.8349037 | BY14: 275.9766488 | BZ14: 289.7754813 | CA14: 304.2642554 | CB14: 319.4774681 | CC14: 335.4513415 | CD14: 352.2239086 | CE14: 369.835104 | CF14: 388.3268592 | CG14: 407.7432022 | CH14: 428.1303623 | CI14: 449.5368804 | CJ14: 472.0137244 | CK14: 495.6144107 | CL14: 520.3951312 | CM14: 546.4148878 | CN14: 573.7356322 | CO14: 602.4224138 | CP14: 632.5435344 | CQ14: 664.1707112 | CR14: 697.3792467 | CS14: 732.2482091 | CT14: 768.8606195 | CU14: 807.3036505 | CV14: 847.668833 | CW14: 890.0522747 | CX14: 934.5548884 | CY14: 981.2826328 | CZ14: 1030.346764 | DA14: 1081.864103 | DB14: 1135.957308 | DC14: 1192.755173 | DD14: 1252.392932 | DE14: 1315.012578 | DF14: 1380.763207 | DG14: 1449.801368 | DH14: 1522.291436 | DI14: 1598.406008 | DJ14: 1678.326308 | DK14: 1762.242624 | DL14: 1850.354755 | DM14: 1942.872493 | DN14: 2040.016117 | DO14: 2142.016923 | DP14: 2249.117769 | DQ14: 2361.573658 | DR14: 2479.652341 | DS14: 2603.634958 | DT14: 2733.816706 | DU14: 2870.507541 | DV14: 3014.032918 | DW14: 3164.734564 | DX14: 3322.971292 | DY14: 3489.119857 | DZ14: 3663.57585 | EA14: 3846.754642 | EB14: 4039.092374 | EC14: 4241.046993 | ED14: 4453.099342 | EE14: 4675.75431 | EF14: 4909.542025 | EG14: 5155.019126 | EH14: =EG17 -> 5412.770083 | EI14: 5683.408587 | EJ14: 5967.579016 | EK14: 6265.957967 | EL14: 6579.255865 | EM14: 6908.218658 | EN14: 7253.629591 | EO14: 7616.311071 | EP14: 7997.126624 | EQ14: 8396.982956 | ER14: 8816.832104 | ES14: 9257.673709 | ET14: 9720.557394 | EU14: 10206.58526 | EV14: 10716.91453 | EW14: 11252.76025 | EX14: 11815.39827 | EY14: 12406.16818 | EZ14: 13026.47659 | FA14: 13677.80042 | FB14: 14361.69044 | FC14: 15079.77496 | FD14: 15833.76371 | FE14: 16625.45189 | FF14: 17456.72449 | FG14: 18329.56071 | FH14: 19246.03875 | FI14: 20208.34069 | FJ14: 21218.75772 | FK14: 22279.69561 | FL14: 23393.68039 | FM14: 24563.36441 | FN14: 25791.53263 | FO14: 27081.10926 | FP14: 28435.16472 | FQ14: 29856.92296 | FR14: 31349.7691 | FS14: 32917.25756 | FT14: 34563.12044 | FU14: 36291.27646 | FV14: 38105.84028 | FW14: 40011.1323 | FX14: 42011.68891 | FY14: 44112.27336 | FZ14: 46317.88703 | GA14: 48633.78138 | GB14: 51065.47045 | GC14: 53618.74397 | GD14: 56299.68117 | GE14: 59114.66522 | GF14: 62070.39849 | GG14: 65173.91841 | GH14: 68432.61433 | GI14: 71854.24505 | GJ14: 75446.9573 | GK14: 79219.30516 | GL14: 83180.27042 | GM14: 87339.28394 | GN14: 91706.24814 | GO14: 96291.56055 | GP14: 101106.1386 | GQ14: 106161.4455 | GR14: 111469.5178 | GS14: 117042.9937 | GT14: =GS17 -> 122895.1434 | GU14: 129039.9005 | GV14: 135491.8955 | GW14: 142266.4903 | GX14: 149379.8148 | GY14: 156848.8056 | GZ14: 164691.2459 | HA14: 172925.8082 | HB14: 181572.0986 | HC14: 190650.7035 | HD14: 200183.2387 | HE14: 210192.4006 | HF14: 220702.0206 | HG14: 231737.1217 | HH14: 243323.9777 | HI14: 255490.1766 | HJ14: 268264.6855 | HK14: 281677.9197 | HL14: 295761.8157 | HM14: 310549.9065 | HN14: 326077.4018 | HO14: 342381.2719 | HP14: 359500.3355 | HQ14: 377475.3523 | HR14: 396349.1199 | HS14: 416166.5759 | HT14: 436974.9047 | HU14: 458823.6499 | HV14: 481764.8324 | HW14: 505853.074 | HX14: 531145.7277 | HY14: 557703.0141 | HZ14: 585588.1648 | IA14: 614867.5731 | IB14: 645610.9517 | IC14: 677891.4993 | ID14: 711786.0743 | IE14: 747375.378 | IF14: 784744.1469 | IG14: 823981.3543 | IH14: 865180.422 | II14: 908439.4431 | IJ14: 953861.4152 | IK14: 1001554.486 | IL14: 1051632.21 | IM14: 1104213.821 | IN14: 1159424.512 | IO14: 1217395.737 | IP14: 1278265.524 | IQ14: 1342178.801 | IR14: 1409287.741 | IS14: 1479752.128 | IT14: 1553739.734 | IU14: 1631426.721 | IV14: 1712998.057 | IW14: 1798647.96 | IX14: 1888580.357 | IY14: 1983009.375 | IZ14: 2082159.844 | JA14: 2186267.836 | JB14: 2295581.228 | JC14: 2410360.29 | JD14: 2530878.304 | JE14: 2657422.219 | JF14: =JE17 -> 2790293.33 | JG14: 2929807.997 | JH14: 3076298.397 | JI14: 3230113.316 | JJ14: 3391618.982 | JK14: 3561199.931 | JL14: 3739259.928 | JM14: 3926222.924 | JN14: 4122534.07 | JO14: 4328660.774 | JP14: 4545093.813 | JQ14: 4772348.503 | JR14: 5010965.928 | JS14: 5261514.225 | JT14: 5524589.936 | JU14: 5800819.433 | JV14: 6090860.405 | JW14: 6395403.425 | JX14: 6715173.596 | JY14: 7050932.276 | JZ14: 7403478.89 | KA14: 7773652.834 | KB14: 8162335.476 | KC14: 8570452.25 | KD14: 8998974.862 | KE14: 9448923.605 | KF14: 9921369.785 | KG14: 10417438.27 | KH14: 10938310.19 | KI14: 11485225.7 | KJ14: 12059486.98 | KK14: 12662461.33 | KL14: 13295584.4 | KM14: 13960363.62 | KN14: 14658381.8 | KO14: 15391300.89 | KP14: 16160865.93 | KQ14: 16968909.23 | KR14: 17817354.69 | KS14: 18708222.43 | KT14: 19643633.55 | KU14: 20625815.23 | KV14: 21657105.99 | KW14: 22739961.29 | KX14: 23876959.35 | KY14: 25070807.32 | KZ14: 26324347.68 | LA14: 27640565.07 | LB14: 29022593.32 | LC14: 30473722.99 | LD14: 31997409.14 | LE14: 33597279.59 | LF14: 35277143.57 | LG14: 37041000.75 | LH14: 38893050.79 | LI14: 40837703.33 | LJ14: 42879588.5 | LK14: 45023567.92 | LL14: 47274746.32 | LM14: 49638483.63 | LN14: 52120407.81 | LO14: 54726428.2 | LP14: 57462749.61 | LQ14: 60335887.1 | LR14: =LQ17 -> 63352681.45 | LS14: 66520315.52 | LT14: 69846331.3 | LU14: 73338647.86 | LV14: 77005580.26 | LW14: 80855859.27 | LX14: 84898652.23 | LY14: 89143584.84 | LZ14: 93600764.09 | MA14: 98280802.29 | MB14: 103194842.4 | MC14: 108354584.5 | MD14: 113772313.8 | ME14: 119460929.4 | MF14: 125433975.9 | MG14: 131705674.7 | MH14: 138290958.4 | MI14: 145205506.4 | MJ14: 152465781.7 | MK14: 160089070.8 | ML14: 168093524.3 | MM14: 176498200.5 | MN14: 185323110.5 | MO14: 194589266.1 | MP14: 204318729.4 | MQ14: 214534665.8 | MR14: 225261399.1 | MS14: =MR17 -> 236524469.1 | MT14: =MS17 -> 248350692.6 | MU14: =MT17 -> 260768227.2 | MV14: =MU17 -> 273806638.5 | MW14: =MV17 -> 287496970.5 | MX14: =MW17 -> 301871819 | MY14: =MX17 -> 316965409.9 | MZ14: =MY17 -> 332813680.4 | NA14: =MZ17 -> 349454364.5 | NB14: =NA17 -> 366927082.7 | NC14: =NB17 -> 385273436.8 | ND14: =NC17 -> 404537108.7 | NE14: =ND17 -> 424763964.1 | NF14: =NE17 -> 446002162.3 | NG14: =NF17 -> 468302270.4 | NH14: =NG17 -> 491717383.9 | NI14: =NH17 -> 516303253.1 | NJ14: =NI17 -> 542118415.8 | NK14: =NJ17 -> 569224336.6 | NL14: =NK17 -> 597685553.4 | NM14: =NL17 -> 627569831.1 | NN14: =NM17 -> 658948322.6 | NO14: =NN17 -> 691895738.7 | NP14: =NO17 -> 726490525.7 | NQ14: =NP17 -> 762815052 | NR14: =NQ17 -> 800955804.6 | NS14: =NR17 -> 841003594.8 | NT14: =NS17 -> 883053774.5 | NU14: =NT17 -> 927206463.3 | NV14: =NU17 -> 973566786.4 | NW14: =NV17 -> 1022245126 | NX14: =NW17 -> 1073357382 | NY14: =NX17 -> 1127025251 | NZ14: =NY17 -> 1183376514 | OA14: =NZ17 -> 1242545339 | OB14: =OA17 -> 1304672606 | OC14: =OB17 -> 1369906237 | OD14: =OC17 -> 1438401549 | OE14: =OD17 -> 1510321626 | OF14: =OE17 -> 1585837707 | OG14: =OF17 -> 1665129593 | OH14: =OG17 -> 1748386072 | OI14: =OH17 -> 1835805376 | OJ14: =OI17 -> 1927595645 | OK14: =OJ17 -> 2023975427 | OL14: =OK17 -> 2125174198 | OM14: =OL17 -> 2231432908 | ON14: =OM17 -> 2343004554 | OO14: =ON17 -> 2460154781 | OP14: =OO17 -> 2583162520 | OQ14: =OP17 -> 2712320646 | OR14: =OQ17 -> 2847936679 | OS14: =OR17 -> 2990333512 | OT14: =OS17 -> 3139850188 | OU14: =OT17 -> 3296842698 | OV14: =OU17 -> 3461684832 | OW14: =OV17 -> 3634769074 | OX14: =OW17 -> 3816507528 | OY14: =OX17 -> 4007332904 | OZ14: =OY17 -> 4207699549 | PA14: =OZ17 -> 4418084527 | PB14: =PA17 -> 4638988753 | PC14: =PB17 -> 4870938191 | PD14: =PC17 -> 5114485100 | PE14: =PD17 -> 5370209355 | PF14: =PE17 -> 5638719823 | PG14: =PF17 -> 5920655814 | PH14: =PG17 -> 6216688605 | PI14: =PH17 -> 6527523035 | PJ14: =PI17 -> 6853899187 | PK14: =PJ17 -> 7196594146 | PL14: =PK17 -> 7556423854 | PM14: =PL17 -> 7934245046 | PN14: =PM17 -> 8330957299 | PO14: =PN17 -> 8747505164 | PP14: =PO17 -> 9184880422 | PQ14: =PP17 -> 9644124443 | PR14: =PQ17 -> 1.012633066e+10 | PS14: =PR17 -> 1.06326472e+10 | PT14: =PS17 -> 1.116427956e+10 | PU14: =PT17 -> 1.172249354e+10 | PV14: =PU17 -> 1.230861821e+10 | PW14: =PV17 -> 1.292404912e+10 | PX14: =PW17 -> 1.357025158e+10 | PY14: =PX17 -> 1.424876416e+10 | PZ14: =PY17 -> 1.496120237e+10 | QA14: =PZ17 -> 1.570926248e+10 | QB14: =QA17 -> 1.649472561e+10 | QC14: =QB17 -> 1.731946189e+10 | QD14: =QC17 -> 1.818543498e+10 | QE14: =QD17 -> 1.909470673e+10 | QF14: =QE17 -> 2.004944207e+10 | QG14: =QF17 -> 2.105191417e+10 | QH14: =QG17 -> 2.210450988e+10 | QI14: =QH17 -> 2.320973538e+10 | QJ14: =QI17 -> 2.437022214e+10 | QK14: =QJ17 -> 2.558873325e+10 | QL14: =QK17 -> 2.686816991e+10 | QM14: =QL17 -> 2.821157841e+10 | QN14: =QM17 -> 2.962215733e+10 | QO14: =QN17 -> 3.11032652e+10 | QP14: =QO17 -> 3.265842846e+10 | QQ14: =QP17 -> 3.429134988e+10 | QR14: =QQ17 -> 3.600591737e+10 | QS14: =QR17 -> 3.780621324e+10 | QT14: =QS17 -> 3.969652391e+10 | QU14: =QT17 -> 4.16813501e+10 | QV14: =QU17 -> 4.376541761e+10 | QW14: =QV17 -> 4.595368849e+10 | QX14: =QW17 -> 4.825137291e+10 | QY14: =QX17 -> 5.066394156e+10 | QZ14: =QY17 -> 5.319713863e+10 | RA14: =QZ17 -> 5.585699557e+10
C15: Add Profits | F15: =E3 -> 0.15 | I15: =I14*$F$15 -> 1.5 | J15: =J14*$F$15 -> 1.575 | K15: 1.65375 | L15: 1.7364375 | M15: 1.823259375 | N15: 1.914422344 | O15: 2.010143461 | P15: 2.110650634 | Q15: 2.216183166 | R15: 2.326992324 | S15: 2.44334194 | T15: 2.565509037 | U15: 2.693784489 | V15: 2.828473713 | W15: 2.969897399 | X15: 3.118392269 | Y15: 3.274311883 | Z15: 3.438027477 | AA15: 3.609928851 | AB15: 3.790425293 | AC15: 3.979946558 | AD15: 4.178943886 | AE15: 4.38789108 | AF15: 4.607285634 | AG15: 4.837649916 | AH15: 5.079532411 | AI15: 5.333509032 | AJ15: 5.600184484 | AK15: 5.880193708 | AL15: 6.174203393 | AM15: 6.482913563 | AN15: 6.807059241 | AO15: 7.147412203 | AP15: 7.504782813 | AQ15: 7.880021954 | AR15: 8.274023051 | AS15: 8.687724204 | AT15: 9.122110414 | AU15: 9.578215935 | AV15: 10.05712673 | AW15: 10.55998307 | AX15: 11.08798222 | AY15: 11.64238133 | AZ15: 12.2245004 | BA15: 12.83572542 | BB15: 13.47751169 | BC15: 14.15138727 | BD15: 14.85895664 | BE15: 15.60190447 | BF15: 16.38199969 | BG15: 17.20109968 | BH15: 18.06115466 | BI15: 18.9642124 | BJ15: 19.91242302 | BK15: 20.90804417 | BL15: 21.95344637 | BM15: 23.05111869 | BN15: 24.20367463 | BO15: 25.41385836 | BP15: 26.68455128 | BQ15: 28.01877884 | BR15: 29.41971778 | BS15: 30.89070367 | BT15: 32.43523886 | BU15: 34.0570008 | BV15: =BV14*$F$15 -> 35.75985084 | BW15: 37.54784338 | BX15: 39.42523555 | BY15: 41.39649733 | BZ15: 43.46632219 | CA15: 45.6396383 | CB15: 47.92162022 | CC15: 50.31770123 | CD15: 52.83358629 | CE15: 55.47526561 | CF15: 58.24902889 | CG15: 61.16148033 | CH15: 64.21955435 | CI15: 67.43053206 | CJ15: 70.80205867 | CK15: 74.3421616 | CL15: 78.05926968 | CM15: 81.96223316 | CN15: 86.06034482 | CO15: 90.36336206 | CP15: 94.88153017 | CQ15: 99.62560668 | CR15: 104.606887 | CS15: 109.8372314 | CT15: 115.3290929 | CU15: 121.0955476 | CV15: 127.150325 | CW15: 133.5078412 | CX15: 140.1832333 | CY15: 147.1923949 | CZ15: 154.5520147 | DA15: 162.2796154 | DB15: 170.3935962 | DC15: 178.913276 | DD15: 187.8589398 | DE15: 197.2518868 | DF15: 207.1144811 | DG15: 217.4702052 | DH15: 228.3437154 | DI15: 239.7609012 | DJ15: 251.7489463 | DK15: 264.3363936 | DL15: 277.5532132 | DM15: 291.4308739 | DN15: 306.0024176 | DO15: 321.3025385 | DP15: 337.3676654 | DQ15: 354.2360487 | DR15: 371.9478511 | DS15: 390.5452437 | DT15: 410.0725058 | DU15: 430.5761311 | DV15: 452.1049377 | DW15: 474.7101846 | DX15: 498.4456938 | DY15: 523.3679785 | DZ15: 549.5363774 | EA15: 577.0131963 | EB15: 605.8638561 | EC15: 636.1570489 | ED15: 667.9649014 | EE15: 701.3631464 | EF15: 736.4313038 | EG15: 773.2528689 | EH15: =EH14*$F$15 -> 811.9155124 | EI15: 852.511288 | EJ15: 895.1368524 | EK15: 939.893695 | EL15: 986.8883798 | EM15: 1036.232799 | EN15: 1088.044439 | EO15: 1142.446661 | EP15: 1199.568994 | EQ15: 1259.547443 | ER15: 1322.524816 | ES15: 1388.651056 | ET15: 1458.083609 | EU15: 1530.98779 | EV15: 1607.537179 | EW15: 1687.914038 | EX15: 1772.30974 | EY15: 1860.925227 | EZ15: 1953.971488 | FA15: 2051.670063 | FB15: 2154.253566 | FC15: 2261.966244 | FD15: 2375.064556 | FE15: 2493.817784 | FF15: 2618.508673 | FG15: 2749.434107 | FH15: 2886.905812 | FI15: 3031.251103 | FJ15: 3182.813658 | FK15: 3341.954341 | FL15: 3509.052058 | FM15: 3684.504661 | FN15: 3868.729894 | FO15: 4062.166389 | FP15: 4265.274708 | FQ15: 4478.538444 | FR15: 4702.465366 | FS15: 4937.588634 | FT15: 5184.468066 | FU15: 5443.691469 | FV15: 5715.876042 | FW15: 6001.669845 | FX15: 6301.753337 | FY15: 6616.841004 | FZ15: 6947.683054 | GA15: 7295.067206 | GB15: 7659.820567 | GC15: 8042.811595 | GD15: 8444.952175 | GE15: 8867.199784 | GF15: 9310.559773 | GG15: 9776.087761 | GH15: 10264.89215 | GI15: 10778.13676 | GJ15: 11317.04359 | GK15: 11882.89577 | GL15: 12477.04056 | GM15: 13100.89259 | GN15: 13755.93722 | GO15: 14443.73408 | GP15: 15165.92079 | GQ15: 15924.21683 | GR15: 16720.42767 | GS15: 17556.44905 | GT15: =GT14*$F$15 -> 18434.2715 | GU15: 19355.98508 | GV15: 20323.78433 | GW15: 21339.97355 | GX15: 22406.97223 | GY15: 23527.32084 | GZ15: 24703.68688 | HA15: 25938.87122 | HB15: 27235.81478 | HC15: 28597.60552 | HD15: 30027.4858 | HE15: 31528.86009 | HF15: 33105.30309 | HG15: 34760.56825 | HH15: 36498.59666 | HI15: 38323.52649 | HJ15: 40239.70282 | HK15: 42251.68796 | HL15: 44364.27236 | HM15: 46582.48598 | HN15: 48911.61027 | HO15: 51357.19079 | HP15: 53925.05033 | HQ15: 56621.30284 | HR15: 59452.36799 | HS15: 62424.98638 | HT15: 65546.2357 | HU15: 68823.54749 | HV15: 72264.72486 | HW15: 75877.96111 | HX15: 79671.85916 | HY15: 83655.45212 | HZ15: 87838.22473 | IA15: 92230.13596 | IB15: 96841.64276 | IC15: 101683.7249 | ID15: 106767.9111 | IE15: 112106.3067 | IF15: 117711.622 | IG15: 123597.2031 | IH15: 129777.0633 | II15: 136265.9165 | IJ15: 143079.2123 | IK15: 150233.1729 | IL15: 157744.8315 | IM15: 165632.0731 | IN15: 173913.6768 | IO15: 182609.3606 | IP15: 191739.8286 | IQ15: 201326.8201 | IR15: 211393.1611 | IS15: 221962.8191 | IT15: 233060.9601 | IU15: 244714.0081 | IV15: 256949.7085 | IW15: 269797.1939 | IX15: 283287.0536 | IY15: 297451.4063 | IZ15: 312323.9766 | JA15: 327940.1754 | JB15: 344337.1842 | JC15: 361554.0434 | JD15: 379631.7456 | JE15: 398613.3329 | JF15: =JF14*$F$15 -> 418543.9995 | JG15: 439471.1995 | JH15: 461444.7595 | JI15: 484516.9975 | JJ15: 508742.8473 | JK15: 534179.9897 | JL15: 560888.9892 | JM15: 588933.4386 | JN15: 618380.1106 | JO15: 649299.1161 | JP15: 681764.0719 | JQ15: 715852.2755 | JR15: 751644.8893 | JS15: 789227.1337 | JT15: 828688.4904 | JU15: 870122.9149 | JV15: 913629.0607 | JW15: 959310.5137 | JX15: 1007276.039 | JY15: 1057639.841 | JZ15: 1110521.833 | KA15: 1166047.925 | KB15: 1224350.321 | KC15: 1285567.837 | KD15: 1349846.229 | KE15: 1417338.541 | KF15: 1488205.468 | KG15: 1562615.741 | KH15: 1640746.528 | KI15: 1722783.855 | KJ15: 1808923.047 | KK15: 1899369.2 | KL15: 1994337.66 | KM15: 2094054.543 | KN15: 2198757.27 | KO15: 2308695.133 | KP15: 2424129.89 | KQ15: 2545336.385 | KR15: 2672603.204 | KS15: 2806233.364 | KT15: 2946545.032 | KU15: 3093872.284 | KV15: 3248565.898 | KW15: 3410994.193 | KX15: 3581543.903 | KY15: 3760621.098 | KZ15: 3948652.153 | LA15: 4146084.76 | LB15: 4353388.998 | LC15: 4571058.448 | LD15: 4799611.371 | LE15: 5039591.939 | LF15: 5291571.536 | LG15: 5556150.113 | LH15: 5833957.618 | LI15: 6125655.499 | LJ15: 6431938.274 | LK15: 6753535.188 | LL15: 7091211.947 | LM15: 7445772.545 | LN15: 7818061.172 | LO15: 8208964.231 | LP15: 8619412.442 | LQ15: 9050383.064 | LR15: =LR14*$F$15 -> 9502902.218 | LS15: 9978047.328 | LT15: 10476949.69 | LU15: 11000797.18 | LV15: 11550837.04 | LW15: 12128378.89 | LX15: 12734797.83 | LY15: 13371537.73 | LZ15: 14040114.61 | MA15: 14742120.34 | MB15: 15479226.36 | MC15: 16253187.68 | MD15: 17065847.06 | ME15: 17919139.42 | MF15: 18815096.39 | MG15: 19755851.21 | MH15: 20743643.77 | MI15: 21780825.95 | MJ15: 22869867.25 | MK15: 24013360.62 | ML15: 25214028.65 | MM15: 26474730.08 | MN15: 27798466.58 | MO15: 29188389.91 | MP15: 30647809.41 | MQ15: 32180199.88 | MR15: 33789209.87 | MS15: =MS14*$F$15 -> 35478670.36 | MT15: 37252603.88 | MU15: 39115234.08 | MV15: 41070995.78 | MW15: 43124545.57 | MX15: 45280772.85 | MY15: 47544811.49 | MZ15: 49922052.07 | NA15: 52418154.67 | NB15: 55039062.4 | NC15: 57791015.52 | ND15: 60680566.3 | NE15: 63714594.61 | NF15: 66900324.34 | NG15: 70245340.56 | NH15: 73757607.59 | NI15: 77445487.97 | NJ15: 81317762.37 | NK15: 85383650.49 | NL15: 89652833.01 | NM15: 94135474.66 | NN15: 98842248.39 | NO15: 103784360.8 | NP15: 108973578.9 | NQ15: 114422257.8 | NR15: 120143370.7 | NS15: 126150539.2 | NT15: 132458066.2 | NU15: 139080969.5 | NV15: 146035018 | NW15: 153336768.9 | NX15: 161003607.3 | NY15: 169053787.7 | NZ15: 177506477.1 | OA15: 186381800.9 | OB15: 195700891 | OC15: 205485935.5 | OD15: 215760232.3 | OE15: 226548243.9 | OF15: 237875656.1 | OG15: 249769438.9 | OH15: 262257910.8 | OI15: 275370806.4 | OJ15: 289139346.7 | OK15: 303596314 | OL15: 318776129.7 | OM15: 334714936.2 | ON15: 351450683 | OO15: 369023217.2 | OP15: 387474378 | OQ15: 406848096.9 | OR15: 427190501.8 | OS15: 448550026.9 | OT15: 470977528.2 | OU15: 494526404.6 | OV15: 519252724.9 | OW15: 545215361.1 | OX15: 572476129.2 | OY15: 601099935.6 | OZ15: 631154932.4 | PA15: 662712679 | PB15: 695848313 | PC15: 730640728.6 | PD15: 767172765 | PE15: =PE14*$F$15 -> 805531403.3 | PF15: 845807973.5 | PG15: 888098372.1 | PH15: 932503290.7 | PI15: 979128455.3 | PJ15: 1028084878 | PK15: 1079489122 | PL15: 1133463578 | PM15: 1190136757 | PN15: 1249643595 | PO15: 1312125775 | PP15: 1377732063 | PQ15: 1446618666 | PR15: 1518949600 | PS15: 1594897080 | PT15: 1674641934 | PU15: 1758374030 | PV15: 1846292732 | PW15: 1938607369 | PX15: 2035537737 | PY15: 2137314624 | PZ15: 2244180355 | QA15: 2356389373 | QB15: 2474208841 | QC15: 2597919283 | QD15: 2727815248 | QE15: 2864206010 | QF15: 3007416310 | QG15: 3157787126 | QH15: 3315676482 | QI15: 3481460306 | QJ15: 3655533322 | QK15: 3838309988 | QL15: 4030225487 | QM15: 4231736762 | QN15: 4443323600 | QO15: 4665489780 | QP15: 4898764269 | QQ15: 5143702482 | QR15: 5400887606 | QS15: 5670931986 | QT15: 5954478586 | QU15: 6252202515 | QV15: 6564812641 | QW15: 6893053273 | QX15: 7237705937 | QY15: 7599591233 | QZ15: 7979570795 | RA15: 8378549335
C16: Less Dividends | F16: =E8 -> 0.6666666667 | I16: =-I15*$F$16 -> -1 | J16: =-J15*$F$16 -> -1.05 | K16: -1.1025 | L16: -1.157625 | M16: -1.21550625 | N16: -1.276281562 | O16: -1.340095641 | P16: -1.407100423 | Q16: -1.477455444 | R16: -1.551328216 | S16: -1.628894627 | T16: -1.710339358 | U16: -1.795856326 | V16: -1.885649142 | W16: -1.979931599 | X16: -2.078928179 | Y16: -2.182874588 | Z16: -2.292018318 | AA16: -2.406619234 | AB16: -2.526950195 | AC16: -2.653297705 | AD16: -2.78596259 | AE16: -2.92526072 | AF16: -3.071523756 | AG16: -3.225099944 | AH16: -3.386354941 | AI16: -3.555672688 | AJ16: -3.733456322 | AK16: -3.920129138 | AL16: -4.116135595 | AM16: -4.321942375 | AN16: -4.538039494 | AO16: -4.764941469 | AP16: -5.003188542 | AQ16: -5.253347969 | AR16: -5.516015368 | AS16: -5.791816136 | AT16: -6.081406943 | AU16: -6.38547729 | AV16: -6.704751154 | AW16: -7.039988712 | AX16: -7.391988148 | AY16: -7.761587555 | AZ16: -8.149666933 | BA16: -8.55715028 | BB16: -8.985007793 | BC16: -9.434258183 | BD16: -9.905971092 | BE16: -10.40126965 | BF16: -10.92133313 | BG16: -11.46739979 | BH16: -12.04076978 | BI16: -12.64280826 | BJ16: -13.27494868 | BK16: -13.93869611 | BL16: -14.63563092 | BM16: -15.36741246 | BN16: -16.13578309 | BO16: -16.94257224 | BP16: -17.78970085 | BQ16: -18.67918589 | BR16: -19.61314519 | BS16: -20.59380245 | BT16: -21.62349257 | BU16: -22.7046672 | BV16: =-BV15*$F$16 -> -23.83990056 | BW16: -25.03189559 | BX16: -26.28349037 | BY16: -27.59766488 | BZ16: -28.97754813 | CA16: -30.42642554 | CB16: -31.94774681 | CC16: -33.54513415 | CD16: -35.22239086 | CE16: -36.9835104 | CF16: -38.83268592 | CG16: -40.77432022 | CH16: -42.81303623 | CI16: -44.95368804 | CJ16: -47.20137244 | CK16: -49.56144107 | CL16: -52.03951312 | CM16: -54.64148878 | CN16: -57.37356322 | CO16: -60.24224138 | CP16: -63.25435344 | CQ16: -66.41707112 | CR16: -69.73792467 | CS16: -73.22482091 | CT16: -76.88606195 | CU16: -80.73036505 | CV16: -84.7668833 | CW16: -89.00522747 | CX16: -93.45548884 | CY16: -98.12826328 | CZ16: -103.0346764 | DA16: -108.1864103 | DB16: -113.5957308 | DC16: -119.2755173 | DD16: -125.2392932 | DE16: -131.5012578 | DF16: -138.0763207 | DG16: -144.9801368 | DH16: -152.2291436 | DI16: -159.8406008 | DJ16: -167.8326308 | DK16: -176.2242624 | DL16: -185.0354755 | DM16: -194.2872493 | DN16: -204.0016117 | DO16: -214.2016923 | DP16: -224.9117769 | DQ16: -236.1573658 | DR16: -247.9652341 | DS16: -260.3634958 | DT16: -273.3816706 | DU16: -287.0507541 | DV16: -301.4032918 | DW16: -316.4734564 | DX16: -332.2971292 | DY16: -348.9119857 | DZ16: -366.357585 | EA16: -384.6754642 | EB16: -403.9092374 | EC16: -424.1046993 | ED16: -445.3099342 | EE16: -467.575431 | EF16: -490.9542025 | EG16: -515.5019126 | EH16: =-EH15*$F$16 -> -541.2770083 | EI16: -568.3408587 | EJ16: -596.7579016 | EK16: -626.5957967 | EL16: -657.9255865 | EM16: -690.8218658 | EN16: -725.3629591 | EO16: -761.6311071 | EP16: -799.7126624 | EQ16: -839.6982956 | ER16: -881.6832104 | ES16: -925.7673709 | ET16: -972.0557394 | EU16: -1020.658526 | EV16: -1071.691453 | EW16: -1125.276025 | EX16: -1181.539827 | EY16: -1240.616818 | EZ16: -1302.647659 | FA16: -1367.780042 | FB16: -1436.169044 | FC16: -1507.977496 | FD16: -1583.376371 | FE16: -1662.545189 | FF16: -1745.672449 | FG16: -1832.956071 | FH16: -1924.603875 | FI16: -2020.834069 | FJ16: -2121.875772 | FK16: -2227.969561 | FL16: -2339.368039 | FM16: -2456.336441 | FN16: -2579.153263 | FO16: -2708.110926 | FP16: -2843.516472 | FQ16: -2985.692296 | FR16: -3134.97691 | FS16: -3291.725756 | FT16: -3456.312044 | FU16: -3629.127646 | FV16: -3810.584028 | FW16: -4001.11323 | FX16: -4201.168891 | FY16: -4411.227336 | FZ16: -4631.788703 | GA16: -4863.378138 | GB16: -5106.547045 | GC16: -5361.874397 | GD16: -5629.968117 | GE16: -5911.466522 | GF16: -6207.039849 | GG16: -6517.391841 | GH16: -6843.261433 | GI16: -7185.424505 | GJ16: -7544.69573 | GK16: -7921.930516 | GL16: -8318.027042 | GM16: -8733.928394 | GN16: -9170.624814 | GO16: -9629.156055 | GP16: -10110.61386 | GQ16: -10616.14455 | GR16: -11146.95178 | GS16: -11704.29937 | GT16: =-GT15*$F$16 -> -12289.51434 | GU16: -12903.99005 | GV16: -13549.18955 | GW16: -14226.64903 | GX16: -14937.98148 | GY16: -15684.88056 | GZ16: -16469.12459 | HA16: -17292.58082 | HB16: -18157.20986 | HC16: -19065.07035 | HD16: -20018.32387 | HE16: -21019.24006 | HF16: -22070.20206 | HG16: -23173.71217 | HH16: -24332.39777 | HI16: -25549.01766 | HJ16: -26826.46855 | HK16: -28167.79197 | HL16: -29576.18157 | HM16: -31054.99065 | HN16: -32607.74018 | HO16: -34238.12719 | HP16: -35950.03355 | HQ16: -37747.53523 | HR16: -39634.91199 | HS16: -41616.65759 | HT16: -43697.49047 | HU16: -45882.36499 | HV16: -48176.48324 | HW16: -50585.3074 | HX16: -53114.57277 | HY16: -55770.30141 | HZ16: -58558.81648 | IA16: -61486.75731 | IB16: -64561.09517 | IC16: -67789.14993 | ID16: -71178.60743 | IE16: -74737.5378 | IF16: -78474.41469 | IG16: -82398.13543 | IH16: -86518.0422 | II16: -90843.94431 | IJ16: -95386.14152 | IK16: -100155.4486 | IL16: -105163.221 | IM16: -110421.3821 | IN16: -115942.4512 | IO16: -121739.5737 | IP16: -127826.5524 | IQ16: -134217.8801 | IR16: -140928.7741 | IS16: -147975.2128 | IT16: -155373.9734 | IU16: -163142.6721 | IV16: -171299.8057 | IW16: -179864.796 | IX16: -188858.0357 | IY16: -198300.9375 | IZ16: -208215.9844 | JA16: -218626.7836 | JB16: -229558.1228 | JC16: -241036.029 | JD16: -253087.8304 | JE16: -265742.2219 | JF16: =-JF15*$F$16 -> -279029.333 | JG16: -292980.7997 | JH16: -307629.8397 | JI16: -323011.3316 | JJ16: -339161.8982 | JK16: -356119.9931 | JL16: -373925.9928 | JM16: -392622.2924 | JN16: -412253.407 | JO16: -432866.0774 | JP16: -454509.3813 | JQ16: -477234.8503 | JR16: -501096.5928 | JS16: -526151.4225 | JT16: -552458.9936 | JU16: -580081.9433 | JV16: -609086.0405 | JW16: -639540.3425 | JX16: -671517.3596 | JY16: -705093.2276 | JZ16: -740347.889 | KA16: -777365.2834 | KB16: -816233.5476 | KC16: -857045.225 | KD16: -899897.4862 | KE16: -944892.3605 | KF16: -992136.9785 | KG16: -1041743.827 | KH16: -1093831.019 | KI16: -1148522.57 | KJ16: -1205948.698 | KK16: -1266246.133 | KL16: -1329558.44 | KM16: -1396036.362 | KN16: -1465838.18 | KO16: -1539130.089 | KP16: -1616086.593 | KQ16: -1696890.923 | KR16: -1781735.469 | KS16: -1870822.243 | KT16: -1964363.355 | KU16: -2062581.523 | KV16: -2165710.599 | KW16: -2273996.129 | KX16: -2387695.935 | KY16: -2507080.732 | KZ16: -2632434.768 | LA16: -2764056.507 | LB16: -2902259.332 | LC16: -3047372.299 | LD16: -3199740.914 | LE16: -3359727.959 | LF16: -3527714.357 | LG16: -3704100.075 | LH16: -3889305.079 | LI16: -4083770.333 | LJ16: -4287958.85 | LK16: -4502356.792 | LL16: -4727474.632 | LM16: -4963848.363 | LN16: -5212040.781 | LO16: -5472642.82 | LP16: -5746274.961 | LQ16: -6033588.71 | LR16: =-LR15*$F$16 -> -6335268.145 | LS16: -6652031.552 | LT16: -6984633.13 | LU16: -7333864.786 | LV16: -7700558.026 | LW16: -8085585.927 | LX16: -8489865.223 | LY16: -8914358.484 | LZ16: -9360076.409 | MA16: -9828080.229 | MB16: -10319484.24 | MC16: -10835458.45 | MD16: -11377231.38 | ME16: -11946092.94 | MF16: -12543397.59 | MG16: -13170567.47 | MH16: -13829095.84 | MI16: -14520550.64 | MJ16: -15246578.17 | MK16: -16008907.08 | ML16: -16809352.43 | MM16: -17649820.05 | MN16: -18532311.05 | MO16: -19458926.61 | MP16: -20431872.94 | MQ16: -21453466.58 | MR16: -22526139.91 | MS16: =-MS15*$F$16 -> -23652446.91 | MT16: -24835069.26 | MU16: -26076822.72 | MV16: -27380663.85 | MW16: -28749697.05 | MX16: -30187181.9 | MY16: -31696540.99 | MZ16: -33281368.04 | NA16: -34945436.45 | NB16: -36692708.27 | NC16: -38527343.68 | ND16: -40453710.87 | NE16: -42476396.41 | NF16: -44600216.23 | NG16: -46830227.04 | NH16: -49171738.39 | NI16: -51630325.31 | NJ16: -54211841.58 | NK16: -56922433.66 | NL16: -59768555.34 | NM16: -62756983.11 | NN16: -65894832.26 | NO16: -69189573.87 | NP16: -72649052.57 | NQ16: -76281505.2 | NR16: -80095580.46 | NS16: -84100359.48 | NT16: -88305377.45 | NU16: -92720646.33 | NV16: -97356678.64 | NW16: -102224512.6 | NX16: -107335738.2 | NY16: -112702525.1 | NZ16: -118337651.4 | OA16: -124254533.9 | OB16: -130467260.6 | OC16: -136990623.7 | OD16: -143840154.9 | OE16: -151032162.6 | OF16: -158583770.7 | OG16: -166512959.3 | OH16: -174838607.2 | OI16: -183580537.6 | OJ16: -192759564.5 | OK16: -202397542.7 | OL16: -212517419.8 | OM16: -223143290.8 | ON16: -234300455.4 | OO16: -246015478.1 | OP16: -258316252 | OQ16: -271232064.6 | OR16: -284793667.9 | OS16: -299033351.2 | OT16: -313985018.8 | OU16: -329684269.8 | OV16: -346168483.2 | OW16: -363476907.4 | OX16: -381650752.8 | OY16: -400733290.4 | OZ16: -420769954.9 | PA16: -441808452.7 | PB16: -463898875.3 | PC16: -487093819.1 | PD16: -511448510 | PE16: =-PE15*$F$16 -> -537020935.5 | PF16: -563871982.3 | PG16: -592065581.4 | PH16: -621668860.5 | PI16: -652752303.5 | PJ16: -685389918.7 | PK16: -719659414.6 | PL16: -755642385.4 | PM16: -793424504.6 | PN16: -833095729.9 | PO16: -874750516.4 | PP16: -918488042.2 | PQ16: -964412444.3 | PR16: -1012633066 | PS16: -1063264720 | PT16: -1116427956 | PU16: -1172249354 | PV16: -1230861821 | PW16: -1292404912 | PX16: -1357025158 | PY16: -1424876416 | PZ16: -1496120237 | QA16: -1570926248 | QB16: -1649472561 | QC16: -1731946189 | QD16: -1818543498 | QE16: -1909470673 | QF16: -2004944207 | QG16: -2105191417 | QH16: -2210450988 | QI16: -2320973538 | QJ16: -2437022214 | QK16: -2558873325 | QL16: -2686816991 | QM16: -2821157841 | QN16: -2962215733 | QO16: -3110326520 | QP16: -3265842846 | QQ16: -3429134988 | QR16: -3600591737 | QS16: -3780621324 | QT16: -3969652391 | QU16: -4168135010 | QV16: -4376541761 | QW16: -4595368849 | QX16: -4825137291 | QY16: -5066394156 | QZ16: -5319713863 | RA16: -5585699557
C17: Closing Balance | H17: =E9 -> 10 | I17: =SUM(I14:I16) -> 10.5 | J17: 11.025 | K17: 11.57625 | L17: 12.1550625 | M17: 12.76281562 | N17: 13.40095641 | O17: 14.07100423 | P17: 14.77455444 | Q17: 15.51328216 | R17: 16.28894627 | S17: 17.10339358 | T17: 17.95856326 | U17: 18.85649142 | V17: 19.79931599 | W17: 20.78928179 | X17: 21.82874588 | Y17: 22.92018318 | Z17: 24.06619234 | AA17: 25.26950195 | AB17: 26.53297705 | AC17: 27.8596259 | AD17: 29.2526072 | AE17: 30.71523756 | AF17: 32.25099944 | AG17: 33.86354941 | AH17: 35.55672688 | AI17: 37.33456322 | AJ17: 39.20129138 | AK17: 41.16135595 | AL17: 43.21942375 | AM17: 45.38039494 | AN17: 47.64941469 | AO17: 50.03188542 | AP17: 52.53347969 | AQ17: 55.16015368 | AR17: 57.91816136 | AS17: 60.81406943 | AT17: 63.8547729 | AU17: 67.04751154 | AV17: 70.39988712 | AW17: 73.91988148 | AX17: 77.61587555 | AY17: 81.49666933 | AZ17: 85.5715028 | BA17: 89.85007793 | BB17: 94.34258183 | BC17: 99.05971092 | BD17: 104.0126965 | BE17: 109.2133313 | BF17: 114.6739979 | BG17: 120.4076978 | BH17: 126.4280826 | BI17: 132.7494868 | BJ17: 139.3869611 | BK17: 146.3563092 | BL17: 153.6741246 | BM17: 161.3578309 | BN17: 169.4257224 | BO17: 177.8970085 | BP17: 186.7918589 | BQ17: 196.1314519 | BR17: 205.9380245 | BS17: 216.2349257 | BT17: 227.046672 | BU17: =SUM(BU14:BU16) -> 238.3990056 | BV17: 250.3189559 | BW17: 262.8349037 | BX17: 275.9766488 | BY17: 289.7754813 | BZ17: 304.2642554 | CA17: 319.4774681 | CB17: 335.4513415 | CC17: 352.2239086 | CD17: 369.835104 | CE17: 388.3268592 | CF17: 407.7432022 | CG17: 428.1303623 | CH17: 449.5368804 | CI17: 472.0137244 | CJ17: 495.6144107 | CK17: 520.3951312 | CL17: 546.4148878 | CM17: 573.7356322 | CN17: 602.4224138 | CO17: 632.5435344 | CP17: 664.1707112 | CQ17: 697.3792467 | CR17: 732.2482091 | CS17: 768.8606195 | CT17: 807.3036505 | CU17: 847.668833 | CV17: 890.0522747 | CW17: 934.5548884 | CX17: 981.2826328 | CY17: 1030.346764 | CZ17: 1081.864103 | DA17: 1135.957308 | DB17: 1192.755173 | DC17: 1252.392932 | DD17: 1315.012578 | DE17: 1380.763207 | DF17: 1449.801368 | DG17: 1522.291436 | DH17: 1598.406008 | DI17: 1678.326308 | DJ17: 1762.242624 | DK17: 1850.354755 | DL17: 1942.872493 | DM17: 2040.016117 | DN17: 2142.016923 | DO17: 2249.117769 | DP17: 2361.573658 | DQ17: 2479.652341 | DR17: 2603.634958 | DS17: 2733.816706 | DT17: 2870.507541 | DU17: 3014.032918 | DV17: 3164.734564 | DW17: 3322.971292 | DX17: 3489.119857 | DY17: 3663.57585 | DZ17: 3846.754642 | EA17: 4039.092374 | EB17: 4241.046993 | EC17: 4453.099342 | ED17: 4675.75431 | EE17: 4909.542025 | EF17: 5155.019126 | EG17: =SUM(EG14:EG16) -> 5412.770083 | EH17: 5683.408587 | EI17: 5967.579016 | EJ17: 6265.957967 | EK17: 6579.255865 | EL17: 6908.218658 | EM17: 7253.629591 | EN17: 7616.311071 | EO17: 7997.126624 | EP17: 8396.982956 | EQ17: 8816.832104 | ER17: 9257.673709 | ES17: 9720.557394 | ET17: 10206.58526 | EU17: 10716.91453 | EV17: 11252.76025 | EW17: 11815.39827 | EX17: 12406.16818 | EY17: 13026.47659 | EZ17: 13677.80042 | FA17: 14361.69044 | FB17: 15079.77496 | FC17: 15833.76371 | FD17: 16625.45189 | FE17: 17456.72449 | FF17: 18329.56071 | FG17: 19246.03875 | FH17: 20208.34069 | FI17: 21218.75772 | FJ17: 22279.69561 | FK17: 23393.68039 | FL17: 24563.36441 | FM17: 25791.53263 | FN17: 27081.10926 | FO17: 28435.16472 | FP17: 29856.92296 | FQ17: 31349.7691 | FR17: 32917.25756 | FS17: 34563.12044 | FT17: 36291.27646 | FU17: 38105.84028 | FV17: 40011.1323 | FW17: 42011.68891 | FX17: 44112.27336 | FY17: 46317.88703 | FZ17: 48633.78138 | GA17: 51065.47045 | GB17: 53618.74397 | GC17: 56299.68117 | GD17: 59114.66522 | GE17: 62070.39849 | GF17: 65173.91841 | GG17: 68432.61433 | GH17: 71854.24505 | GI17: 75446.9573 | GJ17: 79219.30516 | GK17: 83180.27042 | GL17: 87339.28394 | GM17: 91706.24814 | GN17: 96291.56055 | GO17: 101106.1386 | GP17: 106161.4455 | GQ17: 111469.5178 | GR17: 117042.9937 | GS17: =SUM(GS14:GS16) -> 122895.1434 | GT17: 129039.9005 | GU17: 135491.8955 | GV17: 142266.4903 | GW17: 149379.8148 | GX17: 156848.8056 | GY17: 164691.2459 | GZ17: 172925.8082 | HA17: 181572.0986 | HB17: 190650.7035 | HC17: 200183.2387 | HD17: 210192.4006 | HE17: 220702.0206 | HF17: 231737.1217 | HG17: 243323.9777 | HH17: 255490.1766 | HI17: 268264.6855 | HJ17: 281677.9197 | HK17: 295761.8157 | HL17: 310549.9065 | HM17: 326077.4018 | HN17: 342381.2719 | HO17: 359500.3355 | HP17: 377475.3523 | HQ17: 396349.1199 | HR17: 416166.5759 | HS17: 436974.9047 | HT17: 458823.6499 | HU17: 481764.8324 | HV17: 505853.074 | HW17: 531145.7277 | HX17: 557703.0141 | HY17: 585588.1648 | HZ17: 614867.5731 | IA17: 645610.9517 | IB17: 677891.4993 | IC17: 711786.0743 | ID17: 747375.378 | IE17: 784744.1469 | IF17: 823981.3543 | IG17: 865180.422 | IH17: 908439.4431 | II17: 953861.4152 | IJ17: 1001554.486 | IK17: 1051632.21 | IL17: 1104213.821 | IM17: 1159424.512 | IN17: 1217395.737 | IO17: 1278265.524 | IP17: 1342178.801 | IQ17: 1409287.741 | IR17: 1479752.128 | IS17: 1553739.734 | IT17: 1631426.721 | IU17: 1712998.057 | IV17: 1798647.96 | IW17: 1888580.357 | IX17: 1983009.375 | IY17: 2082159.844 | IZ17: 2186267.836 | JA17: 2295581.228 | JB17: 2410360.29 | JC17: 2530878.304 | JD17: 2657422.219 | JE17: =SUM(JE14:JE16) -> 2790293.33 | JF17: 2929807.997 | JG17: 3076298.397 | JH17: 3230113.316 | JI17: 3391618.982 | JJ17: 3561199.931 | JK17: 3739259.928 | JL17: 3926222.924 | JM17: 4122534.07 | JN17: 4328660.774 | JO17: 4545093.813 | JP17: 4772348.503 | JQ17: 5010965.928 | JR17: 5261514.225 | JS17: 5524589.936 | JT17: 5800819.433 | JU17: 6090860.405 | JV17: 6395403.425 | JW17: 6715173.596 | JX17: 7050932.276 | JY17: 7403478.89 | JZ17: 7773652.834 | KA17: 8162335.476 | KB17: 8570452.25 | KC17: 8998974.862 | KD17: 9448923.605 | KE17: 9921369.785 | KF17: 10417438.27 | KG17: 10938310.19 | KH17: 11485225.7 | KI17: 12059486.98 | KJ17: 12662461.33 | KK17: 13295584.4 | KL17: 13960363.62 | KM17: 14658381.8 | KN17: 15391300.89 | KO17: 16160865.93 | KP17: 16968909.23 | KQ17: 17817354.69 | KR17: 18708222.43 | KS17: 19643633.55 | KT17: 20625815.23 | KU17: 21657105.99 | KV17: 22739961.29 | KW17: 23876959.35 | KX17: 25070807.32 | KY17: 26324347.68 | KZ17: 27640565.07 | LA17: 29022593.32 | LB17: 30473722.99 | LC17: 31997409.14 | LD17: 33597279.59 | LE17: 35277143.57 | LF17: 37041000.75 | LG17: 38893050.79 | LH17: 40837703.33 | LI17: 42879588.5 | LJ17: 45023567.92 | LK17: 47274746.32 | LL17: 49638483.63 | LM17: 52120407.81 | LN17: 54726428.2 | LO17: 57462749.61 | LP17: 60335887.1 | LQ17: =SUM(LQ14:LQ16) -> 63352681.45 | LR17: 66520315.52 | LS17: 69846331.3 | LT17: 73338647.86 | LU17: 77005580.26 | LV17: 80855859.27 | LW17: 84898652.23 | LX17: 89143584.84 | LY17: 93600764.09 | LZ17: 98280802.29 | MA17: 103194842.4 | MB17: 108354584.5 | MC17: 113772313.8 | MD17: 119460929.4 | ME17: 125433975.9 | MF17: 131705674.7 | MG17: 138290958.4 | MH17: 145205506.4 | MI17: 152465781.7 | MJ17: 160089070.8 | MK17: 168093524.3 | ML17: 176498200.5 | MM17: 185323110.5 | MN17: 194589266.1 | MO17: 204318729.4 | MP17: 214534665.8 | MQ17: 225261399.1 | MR17: 236524469.1 | MS17: =SUM(MS14:MS16) -> 248350692.6 | MT17: 260768227.2 | MU17: 273806638.5 | MV17: 287496970.5 | MW17: 301871819 | MX17: 316965409.9 | MY17: 332813680.4 | MZ17: 349454364.5 | NA17: 366927082.7 | NB17: 385273436.8 | NC17: 404537108.7 | ND17: 424763964.1 | NE17: 446002162.3 | NF17: 468302270.4 | NG17: 491717383.9 | NH17: 516303253.1 | NI17: 542118415.8 | NJ17: 569224336.6 | NK17: 597685553.4 | NL17: 627569831.1 | NM17: 658948322.6 | NN17: 691895738.7 | NO17: 726490525.7 | NP17: 762815052 | NQ17: 800955804.6 | NR17: 841003594.8 | NS17: 883053774.5 | NT17: 927206463.3 | NU17: 973566786.4 | NV17: 1022245126 | NW17: 1073357382 | NX17: 1127025251 | NY17: 1183376514 | NZ17: 1242545339 | OA17: 1304672606 | OB17: 1369906237 | OC17: 1438401549 | OD17: 1510321626 | OE17: 1585837707 | OF17: 1665129593 | OG17: 1748386072 | OH17: 1835805376 | OI17: 1927595645 | OJ17: 2023975427 | OK17: 2125174198 | OL17: 2231432908 | OM17: 2343004554 | ON17: 2460154781 | OO17: 2583162520 | OP17: 2712320646 | OQ17: 2847936679 | OR17: 2990333512 | OS17: 3139850188 | OT17: 3296842698 | OU17: 3461684832 | OV17: 3634769074 | OW17: 3816507528 | OX17: 4007332904 | OY17: 4207699549 | OZ17: 4418084527 | PA17: 4638988753 | PB17: 4870938191 | PC17: 5114485100 | PD17: 5370209355 | PE17: =SUM(PE14:PE16) -> 5638719823 | PF17: 5920655814 | PG17: 6216688605 | PH17: 6527523035 | PI17: 6853899187 | PJ17: 7196594146 | PK17: 7556423854 | PL17: 7934245046 | PM17: 8330957299 | PN17: 8747505164 | PO17: 9184880422 | PP17: 9644124443 | PQ17: 1.012633066e+10 | PR17: 1.06326472e+10 | PS17: 1.116427956e+10 | PT17: 1.172249354e+10 | PU17: 1.230861821e+10 | PV17: 1.292404912e+10 | PW17: 1.357025158e+10 | PX17: 1.424876416e+10 | PY17: 1.496120237e+10 | PZ17: 1.570926248e+10 | QA17: 1.649472561e+10 | QB17: 1.731946189e+10 | QC17: 1.818543498e+10 | QD17: 1.909470673e+10 | QE17: 2.004944207e+10 | QF17: 2.105191417e+10 | QG17: 2.210450988e+10 | QH17: 2.320973538e+10 | QI17: 2.437022214e+10 | QJ17: 2.558873325e+10 | QK17: 2.686816991e+10 | QL17: 2.821157841e+10 | QM17: 2.962215733e+10 | QN17: 3.11032652e+10 | QO17: 3.265842846e+10 | QP17: 3.429134988e+10 | QQ17: 3.600591737e+10 | QR17: 3.780621324e+10 | QS17: 3.969652391e+10 | QT17: 4.16813501e+10 | QU17: 4.376541761e+10 | QV17: 4.595368849e+10 | QW17: 4.825137291e+10 | QX17: 5.066394156e+10 | QY17: 5.319713863e+10 | QZ17: 5.585699557e+10 | RA17: 5.864984534e+10
C19: FCFE | I19: =-I16 -> 1 | J19: =-J16 -> 1.05 | K19: 1.1025 | L19: 1.157625 | M19: 1.21550625 | N19: 1.276281562 | O19: 1.340095641 | P19: 1.407100423 | Q19: 1.477455444 | R19: 1.551328216 | S19: 1.628894627 | T19: 1.710339358 | U19: 1.795856326 | V19: 1.885649142 | W19: 1.979931599 | X19: 2.078928179 | Y19: 2.182874588 | Z19: 2.292018318 | AA19: 2.406619234 | AB19: 2.526950195 | AC19: 2.653297705 | AD19: 2.78596259 | AE19: 2.92526072 | AF19: 3.071523756 | AG19: 3.225099944 | AH19: 3.386354941 | AI19: 3.555672688 | AJ19: 3.733456322 | AK19: 3.920129138 | AL19: 4.116135595 | AM19: 4.321942375 | AN19: 4.538039494 | AO19: 4.764941469 | AP19: 5.003188542 | AQ19: 5.253347969 | AR19: 5.516015368 | AS19: 5.791816136 | AT19: 6.081406943 | AU19: 6.38547729 | AV19: 6.704751154 | AW19: 7.039988712 | AX19: 7.391988148 | AY19: 7.761587555 | AZ19: 8.149666933 | BA19: 8.55715028 | BB19: 8.985007793 | BC19: 9.434258183 | BD19: 9.905971092 | BE19: 10.40126965 | BF19: 10.92133313 | BG19: 11.46739979 | BH19: 12.04076978 | BI19: 12.64280826 | BJ19: 13.27494868 | BK19: 13.93869611 | BL19: 14.63563092 | BM19: 15.36741246 | BN19: 16.13578309 | BO19: 16.94257224 | BP19: 17.78970085 | BQ19: 18.67918589 | BR19: 19.61314519 | BS19: 20.59380245 | BT19: 21.62349257 | BU19: 22.7046672 | BV19: =-BV16 -> 23.83990056 | BW19: 25.03189559 | BX19: 26.28349037 | BY19: 27.59766488 | BZ19: 28.97754813 | CA19: 30.42642554 | CB19: 31.94774681 | CC19: 33.54513415 | CD19: 35.22239086 | CE19: 36.9835104 | CF19: 38.83268592 | CG19: 40.77432022 | CH19: 42.81303623 | CI19: 44.95368804 | CJ19: 47.20137244 | CK19: 49.56144107 | CL19: 52.03951312 | CM19: 54.64148878 | CN19: 57.37356322 | CO19: 60.24224138 | CP19: 63.25435344 | CQ19: 66.41707112 | CR19: 69.73792467 | CS19: 73.22482091 | CT19: 76.88606195 | CU19: 80.73036505 | CV19: 84.7668833 | CW19: 89.00522747 | CX19: 93.45548884 | CY19: 98.12826328 | CZ19: 103.0346764 | DA19: 108.1864103 | DB19: 113.5957308 | DC19: 119.2755173 | DD19: 125.2392932 | DE19: 131.5012578 | DF19: 138.0763207 | DG19: 144.9801368 | DH19: 152.2291436 | DI19: 159.8406008 | DJ19: 167.8326308 | DK19: 176.2242624 | DL19: 185.0354755 | DM19: 194.2872493 | DN19: 204.0016117 | DO19: 214.2016923 | DP19: 224.9117769 | DQ19: 236.1573658 | DR19: 247.9652341 | DS19: 260.3634958 | DT19: 273.3816706 | DU19: 287.0507541 | DV19: 301.4032918 | DW19: 316.4734564 | DX19: 332.2971292 | DY19: 348.9119857 | DZ19: 366.357585 | EA19: 384.6754642 | EB19: 403.9092374 | EC19: 424.1046993 | ED19: 445.3099342 | EE19: 467.575431 | EF19: 490.9542025 | EG19: 515.5019126 | EH19: =-EH16 -> 541.2770083 | EI19: 568.3408587 | EJ19: 596.7579016 | EK19: 626.5957967 | EL19: 657.9255865 | EM19: 690.8218658 | EN19: 725.3629591 | EO19: 761.6311071 | EP19: 799.7126624 | EQ19: 839.6982956 | ER19: 881.6832104 | ES19: 925.7673709 | ET19: 972.0557394 | EU19: 1020.658526 | EV19: 1071.691453 | EW19: 1125.276025 | EX19: 1181.539827 | EY19: 1240.616818 | EZ19: 1302.647659 | FA19: 1367.780042 | FB19: 1436.169044 | FC19: 1507.977496 | FD19: 1583.376371 | FE19: 1662.545189 | FF19: 1745.672449 | FG19: 1832.956071 | FH19: 1924.603875 | FI19: 2020.834069 | FJ19: 2121.875772 | FK19: 2227.969561 | FL19: 2339.368039 | FM19: 2456.336441 | FN19: 2579.153263 | FO19: 2708.110926 | FP19: 2843.516472 | FQ19: 2985.692296 | FR19: 3134.97691 | FS19: 3291.725756 | FT19: 3456.312044 | FU19: 3629.127646 | FV19: 3810.584028 | FW19: 4001.11323 | FX19: 4201.168891 | FY19: 4411.227336 | FZ19: 4631.788703 | GA19: 4863.378138 | GB19: 5106.547045 | GC19: 5361.874397 | GD19: 5629.968117 | GE19: 5911.466522 | GF19: 6207.039849 | GG19: 6517.391841 | GH19: 6843.261433 | GI19: 7185.424505 | GJ19: 7544.69573 | GK19: 7921.930516 | GL19: 8318.027042 | GM19: 8733.928394 | GN19: 9170.624814 | GO19: 9629.156055 | GP19: 10110.61386 | GQ19: 10616.14455 | GR19: 11146.95178 | GS19: 11704.29937 | GT19: =-GT16 -> 12289.51434 | GU19: 12903.99005 | GV19: 13549.18955 | GW19: 14226.64903 | GX19: 14937.98148 | GY19: 15684.88056 | GZ19: 16469.12459 | HA19: 17292.58082 | HB19: 18157.20986 | HC19: 19065.07035 | HD19: 20018.32387 | HE19: 21019.24006 | HF19: 22070.20206 | HG19: 23173.71217 | HH19: 24332.39777 | HI19: 25549.01766 | HJ19: 26826.46855 | HK19: 28167.79197 | HL19: 29576.18157 | HM19: 31054.99065 | HN19: 32607.74018 | HO19: 34238.12719 | HP19: 35950.03355 | HQ19: 37747.53523 | HR19: 39634.91199 | HS19: 41616.65759 | HT19: 43697.49047 | HU19: 45882.36499 | HV19: 48176.48324 | HW19: 50585.3074 | HX19: 53114.57277 | HY19: 55770.30141 | HZ19: 58558.81648 | IA19: 61486.75731 | IB19: 64561.09517 | IC19: 67789.14993 | ID19: 71178.60743 | IE19: 74737.5378 | IF19: 78474.41469 | IG19: 82398.13543 | IH19: 86518.0422 | II19: 90843.94431 | IJ19: 95386.14152 | IK19: 100155.4486 | IL19: 105163.221 | IM19: 110421.3821 | IN19: 115942.4512 | IO19: 121739.5737 | IP19: 127826.5524 | IQ19: 134217.8801 | IR19: 140928.7741 | IS19: 147975.2128 | IT19: 155373.9734 | IU19: 163142.6721 | IV19: 171299.8057 | IW19: 179864.796 | IX19: 188858.0357 | IY19: 198300.9375 | IZ19: 208215.9844 | JA19: 218626.7836 | JB19: 229558.1228 | JC19: 241036.029 | JD19: 253087.8304 | JE19: 265742.2219 | JF19: =-JF16 -> 279029.333 | JG19: 292980.7997 | JH19: 307629.8397 | JI19: 323011.3316 | JJ19: 339161.8982 | JK19: 356119.9931 | JL19: 373925.9928 | JM19: 392622.2924 | JN19: 412253.407 | JO19: 432866.0774 | JP19: 454509.3813 | JQ19: 477234.8503 | JR19: 501096.5928 | JS19: 526151.4225 | JT19: 552458.9936 | JU19: 580081.9433 | JV19: 609086.0405 | JW19: 639540.3425 | JX19: 671517.3596 | JY19: 705093.2276 | JZ19: 740347.889 | KA19: 777365.2834 | KB19: 816233.5476 | KC19: 857045.225 | KD19: 899897.4862 | KE19: 944892.3605 | KF19: 992136.9785 | KG19: 1041743.827 | KH19: 1093831.019 | KI19: 1148522.57 | KJ19: 1205948.698 | KK19: 1266246.133 | KL19: 1329558.44 | KM19: 1396036.362 | KN19: 1465838.18 | KO19: 1539130.089 | KP19: 1616086.593 | KQ19: 1696890.923 | KR19: 1781735.469 | KS19: 1870822.243 | KT19: 1964363.355 | KU19: 2062581.523 | KV19: 2165710.599 | KW19: 2273996.129 | KX19: 2387695.935 | KY19: 2507080.732 | KZ19: 2632434.768 | LA19: 2764056.507 | LB19: 2902259.332 | LC19: 3047372.299 | LD19: 3199740.914 | LE19: 3359727.959 | LF19: 3527714.357 | LG19: 3704100.075 | LH19: 3889305.079 | LI19: 4083770.333 | LJ19: 4287958.85 | LK19: 4502356.792 | LL19: 4727474.632 | LM19: 4963848.363 | LN19: 5212040.781 | LO19: 5472642.82 | LP19: 5746274.961 | LQ19: 6033588.71 | LR19: =-LR16 -> 6335268.145 | LS19: 6652031.552 | LT19: 6984633.13 | LU19: 7333864.786 | LV19: 7700558.026 | LW19: 8085585.927 | LX19: 8489865.223 | LY19: 8914358.484 | LZ19: 9360076.409 | MA19: 9828080.229 | MB19: 10319484.24 | MC19: 10835458.45 | MD19: 11377231.38 | ME19: 11946092.94 | MF19: 12543397.59 | MG19: 13170567.47 | MH19: 13829095.84 | MI19: 14520550.64 | MJ19: 15246578.17 | MK19: 16008907.08 | ML19: 16809352.43 | MM19: 17649820.05 | MN19: 18532311.05 | MO19: 19458926.61 | MP19: 20431872.94 | MQ19: 21453466.58 | MR19: 22526139.91 | MS19: =-MS16 -> 23652446.91 | MT19: 24835069.26 | MU19: 26076822.72 | MV19: 27380663.85 | MW19: 28749697.05 | MX19: 30187181.9 | MY19: 31696540.99 | MZ19: 33281368.04 | NA19: 34945436.45 | NB19: 36692708.27 | NC19: 38527343.68 | ND19: 40453710.87 | NE19: 42476396.41 | NF19: 44600216.23 | NG19: 46830227.04 | NH19: 49171738.39 | NI19: 51630325.31 | NJ19: 54211841.58 | NK19: 56922433.66 | NL19: 59768555.34 | NM19: 62756983.11 | NN19: 65894832.26 | NO19: 69189573.87 | NP19: 72649052.57 | NQ19: 76281505.2 | NR19: 80095580.46 | NS19: 84100359.48 | NT19: 88305377.45 | NU19: 92720646.33 | NV19: 97356678.64 | NW19: 102224512.6 | NX19: 107335738.2 | NY19: 112702525.1 | NZ19: 118337651.4 | OA19: 124254533.9 | OB19: 130467260.6 | OC19: 136990623.7 | OD19: 143840154.9 | OE19: 151032162.6 | OF19: 158583770.7 | OG19: 166512959.3 | OH19: 174838607.2 | OI19: 183580537.6 | OJ19: 192759564.5 | OK19: 202397542.7 | OL19: 212517419.8 | OM19: 223143290.8 | ON19: 234300455.4 | OO19: 246015478.1 | OP19: 258316252 | OQ19: 271232064.6 | OR19: 284793667.9 | OS19: 299033351.2 | OT19: 313985018.8 | OU19: 329684269.8 | OV19: 346168483.2 | OW19: 363476907.4 | OX19: 381650752.8 | OY19: 400733290.4 | OZ19: 420769954.9 | PA19: 441808452.7 | PB19: 463898875.3 | PC19: 487093819.1 | PD19: 511448510 | PE19: =-PE16 -> 537020935.5 | PF19: 563871982.3 | PG19: 592065581.4 | PH19: 621668860.5 | PI19: 652752303.5 | PJ19: 685389918.7 | PK19: 719659414.6 | PL19: 755642385.4 | PM19: 793424504.6 | PN19: 833095729.9 | PO19: 874750516.4 | PP19: 918488042.2 | PQ19: 964412444.3 | PR19: 1012633066 | PS19: 1063264720 | PT19: 1116427956 | PU19: 1172249354 | PV19: 1230861821 | PW19: 1292404912 | PX19: 1357025158 | PY19: 1424876416 | PZ19: 1496120237 | QA19: 1570926248 | QB19: 1649472561 | QC19: 1731946189 | QD19: 1818543498 | QE19: 1909470673 | QF19: 2004944207 | QG19: 2105191417 | QH19: 2210450988 | QI19: 2320973538 | QJ19: 2437022214 | QK19: 2558873325 | QL19: 2686816991 | QM19: 2821157841 | QN19: 2962215733 | QO19: 3110326520 | QP19: 3265842846 | QQ19: 3429134988 | QR19: 3600591737 | QS19: 3780621324 | QT19: 3969652391 | QU19: 4168135010 | QV19: 4376541761 | QW19: 4595368849 | QX19: 4825137291 | QY19: 5066394156 | QZ19: 5319713863 | RA19: 5585699557
A21: Valuation
B22: PV of EQT CF | F22: =E5 -> 0.1 | H22: =NPV(F22,19:19) -> 19.99999999
B23: P/E Ratio | H23: =H22/I15 -> 13.33333333
B24: Price to Book Ratio | H24: =H22/H17 -> 1.999999999

Sheet Financials
A1: Indicators | B1: 2009-12-31 | C1: 2010-12-31 | D1: 2011-12-31 | E1: 2012-12-31
A2: Dividend Per Share | B2: 0 | C2: 4 | D2: 6.5 | E2: 7
A3: Earning Per Share | B3: 0 | C3: 4.31 | D3: 5.43 | E3: 7.2
A4: Current Ratio | B4: 0.8 | C4: 1.18 | D4: 1.14 | E4: 1.04
A5: Leverage % | B5: 15.85 | C5: 15.12 | D5: 15 | E5: 12.92
A6: Book value per share | B6: 30.11 | C6: 22.03 | D6: 21.45 | E6: 20.64
A7: PE | B7: 0 | C7: 11.55 | D7: 13.26 | E7: 13.19
A8: P/B Ratio | B8: 1.27 | C8: 2.26 | D8: 3.36 | E8: 4.6
A9: Return on Equity % | B9: 0 | C9: 19.56 | D9: 25.32 | E9: 34.89
A10: Return on Assets % | B10: 0 | C10: 14.29 | D10: 18.07 | E10: 25.43
A11: Working Capital Turnover Ratio | B11: 0 | C11: 0 | D11: 0 | E11: 0
A12: Quick Ratio | B12: 0 | C12: 0 | D12: 0 | E12: 0
A13: Cash Ratio | B13: 0 | C13: 0 | D13: 0 | E13: 0
A14: Inventory Turnover Ratio | B14: 0 | C14: 0 | D14: 0 | E14: 0
A15: Account Receivable Turnover Ratio | B15: 0 | C15: 0 | D15: 0 | E15: 0
A16: Account Payable Turnover Ratio | B16: 0 | C16: 0 | D16: 0 | E16: 0
A17: Fixed Asset Turnover Ratio | B17: 0 | C17: 0 | D17: 0 | E17: 0
A18: Total Asset Turnover Ratio | B18: 0 | C18: 0 | D18: 0 | E18: 0
A19: Net Profit Margin Ratio | B19: 0 | C19: 0 | D19: 0 | E19: 0
A20: Operating Income Margin Ratio | B20: 0 | C20: 0 | D20: 0 | E20: 0
A21: Net Income Before Zakat Margin Ratio | B21: 0 | C21: 0 | D21: 0 | E21: 0
A22: Gross Profit Margin Ratio | B22: 0 | C22: 0 | D22: 0 | E22: 0
A23: Return on Investment % | B23: 0 | C23: 0 | D23: 0 | E23: 0
A24: Total Debts to Asset Ratio | B24: 0 | C24: 0 | D24: 0 | E24: 0
A25: Equity to Asset Ratio | B25: 0 | C25: 0 | D25: 0 | E25: 0
A26: Debt to Equity Ratio | B26: 0 | C26: 0 | D26: 0 | E26: 0
A27: Last Update Date | B27: 2010-02-27 | C27: 2011-02-21 | D27: 2012-02-18 | E27: 2013-03-11
A28: Equity to Asset Ratio | B28: 0 | C28: 0 | D28: 0 | E28: 0
A29: Debt to Equity Ratio | B29: 0 | C29: 0 | D29: 0 | E29: 0
A30: Last Update Date | B30: 2013-01-27 | C30: 2012-02-06 | D30: 2011-01-17 | E30: 2010-01-20
A31: Earnings | C31: ='S. Cement Fin.Model'!J35 -> 659527 | D31: ='S. Cement Fin.Model'!K35 -> 831227 | E31: ='S. Cement Fin.Model'!L35 -> 1101789 | F31: ='S. Cement Fin.Model'!M35 -> 1123792
A32: Shares | C32: =C31/C3 -> 153022.5058 | D32: =D31/D3 -> 153080.4788 | E32: 153026.25

Sheet Financing Structure
C7: Assets
C8: Cash | D8: 100
C9: Other Assets | D9: 1000
C10: Total Assets | D10: =SUM(D8:D9) -> 1100
C12: Debt | D12: 400
C13: Equity | D13: =D10-D12 -> 700
C14: Total | D14: =SUM(D12:D13) -> 1100
C17: Difference | D17: =D10-D14 -> 0
C18: TEST | D18: =D17=0 -> TRUE
C20: Code No. | D20: 1
B21: 1 | C21: Base Case | E21: 100 | F21: 80 | G21: 120 | H21: 130
B22: 2 | C22: Low Case | E22: 80 | F22: 70 | G22: 60 | H22: 50
B23: 3 | C23: High Case | E23: 100 | F23: 120 | G23: 130 | H23: 150
C25: EBITDA | E25: =INDEX(E21:E23,$D$20) -> 100 | F25: =INDEX(F21:F23,$D$20) -> 80 | G25: 120 | H25: 130
C26: CAPEX | E26: 20 | F26: 10 | G26: 10 | H26: 30
C29: Cash Less Debt
C30: Openning Balance | E30: =D32 -> -300 | F30: =E32 -> -235 | G30: -176.75 | H30: -75.5875
C31: Add New Cash | E31: =E42 -> 65 | F31: =F42 -> 58.25 | G31: 101.1625 | H31: 96.220625
C32: Closing Balance | D32: =D8-D12 -> -300 | E32: =E30+E31 -> -235 | F32: =F30+F31 -> -176.75 | G32: -75.5875 | H32: 20.633125
C34: Interest Rate | D34: 0.05 | E34: =D34 -> 0.05 | F34: =E34 -> 0.05 | G34: 0.05 | H34: 0.05
C35: Interest Expense | E35: =E34*E30 -> -15 | F35: =F34*F30 -> -11.75 | G35: -8.8375 | H35: -3.779375
C37: CF Analysis
C38: EBITDA | E38: =E25 -> 100 | F38: =F25 -> 80 | G38: 120 | H38: 130
C39: Less CAPEX | E39: =-E26 -> -20 | F39: =-F26 -> -10 | G39: -10 | H39: -30
C40: CF Before Financing | E40: =SUM(E38:E39) -> 80 | F40: =SUM(F38:F39) -> 70 | G40: 110 | H40: 100
C41: Interest Expense | E41: =E35 -> -15 | F41: =F35 -> -11.75 | G41: -8.8375 | H41: -3.779375
C42: Net CF | E42: =SUM(E40:E41) -> 65 | F42: =SUM(F40:F41) -> 58.25 | G42: 101.1625 | H42: 96.220625
D43: 2014 | E43: 2015 | F43: 2016 | G43: 2017 | H43: 2018
C44: Cash Balance | D44: =D8 -> 100 | E44: =MAX(E32,0) -> 0 | F44: =MAX(F32,0) -> 0 | G44: 0 | H44: 20.633125
C45: Debt Balance | D45: =D12 -> 400 | E45: =MAX(-E32,0) -> 235 | F45: =MAX(-F32,0) -> 176.75 | G45: 75.5875 | H45: 0
C47: Other Assets | D47: =D9 -> 1000 | E47: =D47+E26 -> 1020 | F47: =E47+F26 -> 1030 | G47: 1040 | H47: 1070
C48: EQT Balance | D48: =D13 -> 700 | E48: =D48+E38+E41 -> 785 | F48: =E48+F38+F41 -> 853.25 | G48: 964.4125 | H48: 1090.633125
C52: Assets
C53: Cash | D53: =D44 -> 100 | E53: =E44 -> 0 | F53: 0 | G53: 0 | H53: 20.633125
C54: Other Assets | D54: =D47 -> 1000 | E54: =E47 -> 1020 | F54: 1030 | G54: 1040 | H54: 1070
C55: Total Assets | D55: =SUM(D53:D54) -> 1100 | E55: =SUM(E53:E54) -> 1020 | F55: 1030 | G55: 1040 | H55: 1090.633125
C57: Debt | D57: =D45 -> 400 | E57: =E45 -> 235 | F57: 176.75 | G57: 75.5875 | H57: 0
C58: Equity | D58: =D48 -> 700 | E58: =E48 -> 785 | F58: 853.25 | G58: 964.4125 | H58: 1090.633125
C59: Total | D59: =SUM(D57:D58) -> 1100 | E59: =SUM(E57:E58) -> 1020 | F59: 1030 | G59: 1040 | H59: 1090.633125
D61: =D55-D59 -> 0 | E61: =E55-E59 -> 0 | F61: 0 | G61: 0 | H61: 0
C62: Balance Sheet Test | D62: =D61=0 -> TRUE | E62: =E61=0 -> TRUE | F62: TRUE | G62: TRUE | H62: TRUE | J62: =AND(D62:H62) -> TRUE
C68: Debt Test | D68: 100 | H68: =H57<D68 -> TRUE
E69: =E57 -> 235 | F69: =F57 -> 176.75 | G69: 75.5875 | H69: 0
D70: 1 | E70: 235 | F70: 176.75 | G70: 75.5875 | H70: 0
D71: 2 | E71: 255 | F71: 207.75 | G71: 168.1375 | H71: 156.544375
D72: 3 | E72: 235 | F72: 136.75 | G72: 23.5875 | H72: 0
D74: Max Debt | F74: 170

Sheet Discounting
B5: Growth Rate | C5: 5 | F5: =C5/100 -> 0.05 | I5: =C15 -> 9.999999999 | J5: 0.02 | K5: 0.03 | L5: 0.04 | M5: 0.05
I6: 0.1 | J6: 12.49999994 | K6: 14.28571349 | L6: 16.66665584 | M6: 19.9998523
I7: 0.12 | J7: 10 | K7: 11.1111111 | L7: 12.49999992 | M7: 14.2857132
B8: Cost of Capital | C8: 15 | F8: =C8/100 -> 0.15 | I8: 0.14 | J8: 8.333333333 | K8: 9.090909091 | L8: 9.999999999 | M8: 11.1111111
I9: 0.16 | J9: 7.142857143 | K9: 7.692307692 | L9: 8.333333333 | M9: 9.090909091
B11: P/E
E12: 1 | F12: 2 | G12: 3 | H12: 4 | I12: 5 | J12: 6 | K12: 7 | L12: 8 | M12: 9 | N12: 10 | O12: 11 | P12: 12 | Q12: 13 | R12: 14 | S12: 15 | T12: 16 | U12: 17 | V12: 18 | W12: 19 | X12: 20 | Y12: 21 | Z12: 22 | AA12: 23 | AB12: 24 | AC12: 25 | AD12: 26 | AE12: 27 | AF12: 28 | AG12: 29 | AH12: 30 | AI12: 31 | AJ12: 32 | AK12: 33 | AL12: 34 | AM12: 35 | AN12: 36 | AO12: 37 | AP12: 38 | AQ12: 39 | AR12: 40 | AS12: 41 | AT12: 42 | AU12: 43 | AV12: 44 | AW12: 45 | AX12: 46 | AY12: 47 | AZ12: 48 | BA12: 49 | BB12: 50 | BC12: 51 | BD12: 52 | BE12: 53 | BF12: 54 | BG12: 55 | BH12: 56 | BI12: 57 | BJ12: 58 | BK12: 59 | BL12: 60 | BM12: 61 | BN12: 62 | BO12: 63 | BP12: 64 | BQ12: 65 | BR12: 66 | BS12: 67 | BT12: 68 | BU12: 69 | BV12: 70 | BW12: 71 | BX12: 72 | BY12: 73 | BZ12: 74 | CA12: 75 | CB12: 76 | CC12: 77 | CD12: 78 | CE12: 79 | CF12: 80 | CG12: 81 | CH12: 82 | CI12: 83 | CJ12: 84 | CK12: 85 | CL12: 86 | CM12: 87 | CN12: 88 | CO12: 89 | CP12: 90 | CQ12: 91 | CR12: 92 | CS12: 93 | CT12: 94 | CU12: 95 | CV12: 96 | CW12: 97 | CX12: 98 | CY12: 99 | CZ12: 100 | DA12: 101 | DB12: 102 | DC12: 103 | DD12: 104 | DE12: 105 | DF12: 106 | DG12: 107 | DH12: 108 | DI12: 109 | DJ12: 110 | DK12: 111 | DL12: 112 | DM12: 113 | DN12: 114 | DO12: 115 | DP12: 116 | DQ12: 117 | DR12: 118 | DS12: 119 | DT12: 120 | DU12: 121 | DV12: 122 | DW12: 123 | DX12: 124 | DY12: 125 | DZ12: 126 | EA12: 127 | EB12: 128 | EC12: 129 | ED12: 130 | EE12: 131 | EF12: 132 | EG12: 133 | EH12: 134 | EI12: 135 | EJ12: 136 | EK12: 137 | EL12: 138 | EM12: 139 | EN12: 140 | EO12: 141 | EP12: 142 | EQ12: 143 | ER12: 144 | ES12: 145 | ET12: 146 | EU12: 147 | EV12: 148 | EW12: 149 | EX12: 150 | EY12: 151 | EZ12: 152 | FA12: 153 | FB12: 154 | FC12: 155 | FD12: 156 | FE12: 157 | FF12: 158 | FG12: 159 | FH12: 160 | FI12: 161 | FJ12: 162 | FK12: 163 | FL12: 164 | FM12: 165 | FN12: 166 | FO12: 167 | FP12: 168 | FQ12: 169 | FR12: 170 | FS12: 171 | FT12: 172 | FU12: 173 | FV12: 174 | FW12: 175 | FX12: 176 | FY12: 177 | FZ12: 178 | GA12: 179 | GB12: 180 | GC12: 181 | GD12: 182 | GE12: 183 | GF12: 184 | GG12: 185 | GH12: 186 | GI12: 187 | GJ12: 188 | GK12: 189 | GL12: 190 | GM12: 191 | GN12: 192 | GO12: 193 | GP12: 194 | GQ12: 195 | GR12: 196 | GS12: 197 | GT12: 198 | GU12: 199 | GV12: 200 | GW12: 201 | GX12: 202 | GY12: 203 | GZ12: 204 | HA12: 205 | HB12: 206 | HC12: 207 | HD12: 208 | HE12: 209 | HF12: 210 | HG12: 211 | HH12: 212 | HI12: 213 | HJ12: 214 | HK12: 215 | HL12: 216 | HM12: 217 | HN12: 218 | HO12: 219 | HP12: 220 | HQ12: 221 | HR12: 222 | HS12: 223 | HT12: 224 | HU12: 225 | HV12: 226 | HW12: 227 | HX12: 228 | HY12: 229 | HZ12: 230 | IA12: 231 | IB12: 232 | IC12: 233 | ID12: 234 | IE12: 235 | IF12: 236 | IG12: 237 | IH12: 238 | II12: 239 | IJ12: 240 | IK12: 241 | IL12: 242 | IM12: 243 | IN12: 244 | IO12: 245 | IP12: 246 | IQ12: 247 | IR12: 248 | IS12: 249 | IT12: 250 | IU12: 251 | IV12: 252 | IW12: 253 | IX12: 254
B13: STC Earnings | C13: 100 | D13: =F5 -> 0.05 | E13: =C13 -> 100 | F13: =E13*(1+$D$13) -> 105 | G13: =F13*(1+$D$13) -> 110.25 | H13: 115.7625 | I13: 121.550625 | J13: 127.6281563 | K13: 134.0095641 | L13: 140.7100423 | M13: 147.7455444 | N13: 155.1328216 | O13: 162.8894627 | P13: 171.0339358 | Q13: 179.5856326 | R13: 188.5649142 | S13: 197.9931599 | T13: 207.8928179 | U13: 218.2874588 | V13: 229.2018318 | W13: 240.6619234 | X13: 252.6950195 | Y13: 265.3297705 | Z13: 278.596259 | AA13: 292.526072 | AB13: 307.1523756 | AC13: 322.5099944 | AD13: 338.6354941 | AE13: 355.5672688 | AF13: 373.3456322 | AG13: 392.0129138 | AH13: 411.6135595 | AI13: 432.1942375 | AJ13: 453.8039494 | AK13: 476.4941469 | AL13: 500.3188542 | AM13: 525.3347969 | AN13: 551.6015368 | AO13: 579.1816136 | AP13: 608.1406943 | AQ13: 638.547729 | AR13: 670.4751154 | AS13: 703.9988712 | AT13: 739.1988148 | AU13: 776.1587555 | AV13: 814.9666933 | AW13: 855.715028 | AX13: 898.5007793 | AY13: 943.4258183 | AZ13: 990.5971092 | BA13: 1040.126965 | BB13: 1092.133313 | BC13: 1146.739979 | BD13: 1204.076978 | BE13: 1264.280826 | BF13: 1327.494868 | BG13: 1393.869611 | BH13: 1463.563092 | BI13: 1536.741246 | BJ13: 1613.578309 | BK13: 1694.257224 | BL13: 1778.970085 | BM13: 1867.918589 | BN13: 1961.314519 | BO13: 2059.380245 | BP13: 2162.349257 | BQ13: 2270.46672 | BR13: 2383.990056 | BS13: =BR13*(1+$D$13) -> 2503.189559 | BT13: 2628.349037 | BU13: 2759.766488 | BV13: 2897.754813 | BW13: 3042.642554 | BX13: 3194.774681 | BY13: 3354.513415 | BZ13: 3522.239086 | CA13: 3698.35104 | CB13: 3883.268592 | CC13: 4077.432022 | CD13: 4281.303623 | CE13: 4495.368804 | CF13: 4720.137244 | CG13: 4956.144107 | CH13: 5203.951312 | CI13: 5464.148878 | CJ13: 5737.356322 | CK13: 6024.224138 | CL13: 6325.435344 | CM13: 6641.707112 | CN13: 6973.792467 | CO13: 7322.482091 | CP13: 7688.606195 | CQ13: 8073.036505 | CR13: 8476.68833 | CS13: 8900.522747 | CT13: 9345.548884 | CU13: 9812.826328 | CV13: 10303.46764 | CW13: 10818.64103 | CX13: 11359.57308 | CY13: 11927.55173 | CZ13: 12523.92932 | DA13: 13150.12578 | DB13: 13807.63207 | DC13: 14498.01368 | DD13: 15222.91436 | DE13: 15984.06008 | DF13: 16783.26308 | DG13: 17622.42624 | DH13: 18503.54755 | DI13: 19428.72493 | DJ13: 20400.16117 | DK13: 21420.16923 | DL13: 22491.17769 | DM13: 23615.73658 | DN13: 24796.52341 | DO13: 26036.34958 | DP13: 27338.16706 | DQ13: 28705.07541 | DR13: 30140.32918 | DS13: 31647.34564 | DT13: 33229.71292 | DU13: 34891.19857 | DV13: 36635.7585 | DW13: 38467.54642 | DX13: 40390.92374 | DY13: 42410.46993 | DZ13: 44530.99342 | EA13: 46757.5431 | EB13: 49095.42025 | EC13: 51550.19126 | ED13: 54127.70083 | EE13: =ED13*(1+$D$13) -> 56834.08587 | EF13: 59675.79016 | EG13: 62659.57967 | EH13: 65792.55865 | EI13: 69082.18658 | EJ13: 72536.29591 | EK13: 76163.11071 | EL13: 79971.26624 | EM13: 83969.82956 | EN13: 88168.32104 | EO13: 92576.73709 | EP13: 97205.57394 | EQ13: 102065.8526 | ER13: 107169.1453 | ES13: 112527.6025 | ET13: 118153.9827 | EU13: 124061.6818 | EV13: 130264.7659 | EW13: 136778.0042 | EX13: 143616.9044 | EY13: 150797.7496 | EZ13: 158337.6371 | FA13: 166254.5189 | FB13: 174567.2449 | FC13: 183295.6071 | FD13: 192460.3875 | FE13: 202083.4069 | FF13: 212187.5772 | FG13: 222796.9561 | FH13: 233936.8039 | FI13: 245633.6441 | FJ13: 257915.3263 | FK13: 270811.0926 | FL13: 284351.6472 | FM13: 298569.2296 | FN13: 313497.691 | FO13: 329172.5756 | FP13: 345631.2044 | FQ13: 362912.7646 | FR13: 381058.4028 | FS13: 400111.323 | FT13: 420116.8891 | FU13: 441122.7336 | FV13: 463178.8703 | FW13: 486337.8138 | FX13: 510654.7045 | FY13: 536187.4397 | FZ13: 562996.8117 | GA13: 591146.6522 | GB13: 620703.9849 | GC13: 651739.1841 | GD13: 684326.1433 | GE13: 718542.4505 | GF13: 754469.573 | GG13: 792193.0516 | GH13: 831802.7042 | GI13: 873392.8394 | GJ13: 917062.4814 | GK13: 962915.6055 | GL13: 1011061.386 | GM13: 1061614.455 | GN13: 1114695.178 | GO13: 1170429.937 | GP13: 1228951.434 | GQ13: =GP13*(1+$D$13) -> 1290399.005 | GR13: 1354918.955 | GS13: 1422664.903 | GT13: 1493798.148 | GU13: 1568488.056 | GV13: 1646912.459 | GW13: 1729258.082 | GX13: 1815720.986 | GY13: 1906507.035 | GZ13: 2001832.387 | HA13: 2101924.006 | HB13: 2207020.206 | HC13: 2317371.217 | HD13: 2433239.777 | HE13: 2554901.766 | HF13: 2682646.855 | HG13: 2816779.197 | HH13: 2957618.157 | HI13: 3105499.065 | HJ13: 3260774.018 | HK13: 3423812.719 | HL13: 3595003.355 | HM13: 3774753.523 | HN13: 3963491.199 | HO13: 4161665.759 | HP13: 4369749.047 | HQ13: 4588236.499 | HR13: 4817648.324 | HS13: 5058530.74 | HT13: 5311457.277 | HU13: 5577030.141 | HV13: 5855881.648 | HW13: 6148675.731 | HX13: 6456109.517 | HY13: 6778914.993 | HZ13: 7117860.743 | IA13: 7473753.78 | IB13: 7847441.469 | IC13: 8239813.543 | ID13: 8651804.22 | IE13: 9084394.431 | IF13: 9538614.152 | IG13: 10015544.86 | IH13: 10516322.1 | II13: 11042138.21 | IJ13: 11594245.12 | IK13: 12173957.37 | IL13: 12782655.24 | IM13: 13421788.01 | IN13: 14092877.41 | IO13: 14797521.28 | IP13: 15537397.34 | IQ13: 16314267.21 | IR13: 17129980.57 | IS13: 17986479.6 | IT13: 18885803.57 | IU13: 19830093.75 | IV13: 20821598.44 | IW13: 21862678.36 | IX13: 22955812.28
B14: Company Value | C14: =NPV(F8,E13:IX13) -> 999.9999999
B15: P/E | C15: =C14/C13 -> 9.999999999
B17: Discount Factor | C17: =F8 -> 0.15 | E17: =1/(1+$C$17)^E12 -> 0.8695652174 | F17: =1/(1+$C$17)^F12 -> 0.7561436673 | G17: 0.6575162324 | H17: 0.5717532456 | I17: 0.4971767353 | J17: 0.4323275959 | K17: 0.3759370399 | L17: 0.3269017738 | M17: 0.284262412 | N17: 0.2471847061 | O17: 0.2149432227 | P17: 0.1869071502 | Q17: 0.1625279567 | R17: 0.141328658 | S17: 0.1228944852 | T17: 0.1068647697 | U17: 0.09292588673 | V17: 0.0808051189 | W17: 0.07026532078 | X17: 0.06110027894 | Y17: 0.05313067734 | Z17: 0.04620058899 | AA17: 0.04017442521 | AB17: 0.03493428279 | AC17: 0.03037763721 | AD17: 0.0264153367 | AE17: 0.022969858 | AF17: 0.01997378957 | AG17: 0.01736851267 | AH17: 0.01510305449 | AI17: 0.01313309086 | AJ17: 0.01142007901 | AK17: 0.009930503489 | AL17: 0.008635220425 | AM17: 0.007508887326 | AN17: 0.00652946724 | AO17: 0.0056777976 | AP17: 0.004937215305 | AQ17: 0.0042932307 | AR17: 0.003733244087 | AS17: 0.003246299206 | AT17: 0.002822868875 | AU17: 0.002454668587 | AV17: 0.002134494423 | AW17: 0.001856082107 | AX17: 0.001613984441 | AY17: 0.001403464731 | AZ17: 0.001220404114 | BA17: 0.001061220969 | BB17: 0.0009228008424 | BC17: 0.0008024355152 | BD17: 0.0006977700132 | BE17: 0.0006067565332 | BF17: 0.0005276143767 | BG17: 0.0004587951102 | BH17: 0.0003989522697 | BI17: 0.0003469150171 | BJ17: 0.0003016652323 | BK17: 0.0002623175933 | BL17: 0.000228102255 | BM17: 0.000198349787 | BN17: 0.0001724780756 | BO17: 0.0001499809353 | BP17: 0.0001304182046 | BQ17: 0.0001134071345 | BR17: =1/(1+$C$17)^BR12 -> 9.861489955e-05 | BS17: 8.575208656e-05 | BT17: 7.456703179e-05 | BU17: 6.484089721e-05 | BV17: 5.638338888e-05 | BW17: 4.902903381e-05 | BX17: 4.263394244e-05 | BY17: 3.707299343e-05 | BZ17: 3.223738559e-05 | CA17: 2.803250921e-05 | CB17: 2.437609496e-05 | CC17: 2.119660432e-05 | CD17: 1.843182984e-05 | CE17: 1.602767812e-05 | CF17: 1.393711141e-05 | CG17: 1.211922731e-05 | CH17: 1.053845853e-05 | CI17: 9.163876985e-06 | CJ17: 7.968588683e-06 | CK17: 6.92920755e-06 | CL17: 6.02539787e-06 | CM17: 5.239476409e-06 | CN17: 4.556066442e-06 | CO17: 3.961796906e-06 | CP17: 3.445040788e-06 | CQ17: 2.995687642e-06 | CR17: 2.604945776e-06 | CS17: 2.26517024e-06 | CT17: 1.969713252e-06 | CU17: 1.712794132e-06 | CV17: 1.489386202e-06 | CW17: 1.295118436e-06 | CX17: 1.126189945e-06 | CY17: 9.79295604e-07 | CZ17: 8.515613948e-07 | DA17: 7.404881694e-07 | DB17: 6.43902756e-07 | DC17: 5.5991544e-07 | DD17: 4.868829913e-07 | DE17: 4.233765142e-07 | DF17: 3.681534906e-07 | DG17: 3.201334701e-07 | DH17: 2.783769305e-07 | DI17: 2.420668961e-07 | DJ17: 2.104929531e-07 | DK17: 1.830373505e-07 | DL17: 1.591629135e-07 | DM17: 1.384025335e-07 | DN17: 1.203500291e-07 | DO17: 1.046521992e-07 | DP17: 9.100191238e-08 | DQ17: 7.913209772e-08 | DR17: 6.881051976e-08 | DS17: 5.983523457e-08 | DT17: 5.203063876e-08 | DU17: 4.52440337e-08 | DV17: 3.9342638e-08 | DW17: 3.421098957e-08 | DX17: 2.974868658e-08 | DY17: 2.586842311e-08 | DZ17: 2.249428097e-08 | EA17: 1.956024432e-08 | EB17: 1.70089081e-08 | EC17: 1.479035487e-08 | ED17: =1/(1+$C$17)^ED12 -> 1.286117815e-08 | EE17: 1.118363317e-08 | EF17: 9.724898412e-09 | EG17: 8.456433402e-09 | EH17: 7.35342035e-09 | EI17: 6.394278565e-09 | EJ17: 5.56024223e-09 | EK17: 4.834993244e-09 | EL17: 4.204341951e-09 | EM17: 3.655949523e-09 | EN17: 3.179086541e-09 | EO17: 2.76442308e-09 | EP17: 2.403846156e-09 | EQ17: 2.090301005e-09 | ER17: 1.817653048e-09 | ES17: 1.580567868e-09 | ET17: 1.374406842e-09 | EU17: 1.195136384e-09 | EV17: 1.03924903e-09 | EW17: 9.036948084e-10 | EX17: 7.858215725e-10 | EY17: 6.833231065e-10 | EZ17: 5.941940057e-10 | FA17: 5.166904397e-10 | FB17: 4.492960345e-10 | FC17: 3.906922039e-10 | FD17: 3.397323513e-10 | FE17: 2.954194359e-10 | FF17: 2.56886466e-10 | FG17: 2.233795356e-10 | FH17: 1.942430745e-10 | FI17: 1.689070213e-10 | FJ17: 1.468756707e-10 | FK17: 1.277179745e-10 | FL17: 1.110591083e-10 | FM17: 9.657313761e-11 | FN17: 8.39766414e-11 | FO17: 7.302316644e-11 | FP17: 6.34984056e-11 | FQ17: 5.521600487e-11 | FR17: 4.801391728e-11 | FS17: 4.175123241e-11 | FT17: 3.630541949e-11 | FU17: 3.156992999e-11 | FV17: 2.745211304e-11 | FW17: 2.387140264e-11 | FX17: 2.075774143e-11 | FY17: 1.805020994e-11 | FZ17: 1.569583473e-11 | GA17: 1.364855194e-11 | GB17: 1.186830603e-11 | GC17: 1.032026611e-11 | GD17: 8.974144448e-12 | GE17: 7.803603867e-12 | GF17: 6.785742493e-12 | GG17: 5.900645646e-12 | GH17: 5.130996214e-12 | GI17: 4.461735839e-12 | GJ17: 3.879770294e-12 | GK17: 3.373713299e-12 | GL17: 2.933663739e-12 | GM17: 2.551011947e-12 | GN17: 2.218271258e-12 | GO17: 1.928931529e-12 | GP17: =1/(1+$C$17)^GP12 -> 1.677331764e-12 | GQ17: 1.45854936e-12 | GR17: 1.268303791e-12 | GS17: 1.102872862e-12 | GT17: 9.5901988e-13 | GU17: 8.339303305e-13 | GV17: 7.251568091e-13 | GW17: 6.305711383e-13 | GX17: 5.48322729e-13 | GY17: 4.76802373e-13 | GZ17: 4.146107592e-13 | HA17: 3.605310949e-13 | HB17: 3.135052999e-13 | HC17: 2.726133043e-13 | HD17: 2.370550472e-13 | HE17: 2.061348237e-13 | HF17: 1.792476727e-13 | HG17: 1.558675415e-13 | HH17: 1.355369926e-13 | HI17: 1.178582545e-13 | HJ17: 1.024854387e-13 | HK17: 8.911777275e-14 | HL17: 7.749371543e-14 | HM17: 6.738583951e-14 | HN17: 5.859638218e-14 | HO17: 5.095337581e-14 | HP17: 4.430728331e-14 | HQ17: 3.852807244e-14 | HR17: 3.350267169e-14 | HS17: 2.913275799e-14 | HT17: 2.533283304e-14 | HU17: 2.202855047e-14 | HV17: 1.915526128e-14 | HW17: 1.665674894e-14 | HX17: 1.448412951e-14 | HY17: 1.259489523e-14 | HZ17: 1.09520828e-14 | IA17: 9.523550265e-15 | IB17: 8.281348056e-15 | IC17: 7.201172223e-15 | ID17: 6.261888889e-15 | IE17: 5.445120773e-15 | IF17: 4.734887629e-15 | IG17: 4.11729359e-15 | IH17: 3.580255296e-15 | II17: 3.113265475e-15 | IJ17: 2.707187369e-15 | IK17: 2.354075973e-15 | IL17: 2.047022586e-15 | IM17: 1.78001964e-15 | IN17: 1.547843165e-15 | IO17: 1.345950578e-15 | IP17: 1.170391807e-15 | IQ17: 1.017732006e-15 | IR17: 8.849843532e-16 | IS17: 7.695516115e-16 | IT17: 6.691753143e-16 | IU17: 5.818915777e-16 | IV17: 5.059926762e-16 | IW17: 4.399936315e-16 | IX17: 3.826031578e-16
B18: Discounted Value | E18: =E13*E17 -> 86.95652174 | F18: =F13*F17 -> 79.39508507 | G18: 72.49116463 | H18: 66.18758509 | I18: 60.43214291 | J18: 55.17717396 | K18: 50.37915884 | L18: 45.99836241 | M18: 41.99850481 | N18: 38.34646092 | O18: 35.01198605 | P18: 31.96746553 | Q18: 29.18768592 | R18: 26.64962627 | S18: 24.33226747 | T18: 22.21641812 | U18: 20.28455568 | V18: 18.52068127 | W18: 16.91018725 | X18: 15.43973618 | Y18: 14.09715043 | Z18: 12.87131126 | AA18: 11.7520668 | AB18: 10.73014795 | AC18: 9.797091605 | AD18: 8.945170596 | AE18: 8.167329675 | AF18: 7.457127094 | AG18: 6.80868126 | AH18: 6.21662202 | AI18: 5.676046192 | AJ18: 5.182476958 | AK18: 4.731826788 | AL18: 4.320363589 | AM18: 3.944679799 | AN18: 3.601664164 | AO18: 3.288475976 | AP18: 3.002521543 | AQ18: 2.741432713 | AR18: 2.50304726 | AS18: 2.285390976 | AT18: 2.086661326 | AU18: 1.905212515 | AV18: 1.739541862 | AW18: 1.588277352 | AX18: 1.450166278 | AY18: 1.324064863 | AZ18: 1.208928788 | BA18: 1.103804545 | BB18: 1.007821541 | BC18: 0.9201848855 | BD18: 0.8401688085 | BE18: 0.7671106512 | BF18: 0.7004053772 | BG18: 0.6395005618 | BH18: 0.5838918173 | BI18: 0.5331186158 | BJ18: 0.4867604753 | BK18: 0.4444334774 | BL18: 0.4057870881 | BM18: 0.3705012543 | BN18: 0.338283754 | BO18: 0.3088677754 | BP18: 0.2820097079 | BQ18: 0.2574871246 | BR18: =BR13*BR17 -> 0.2350969399 | BS18: 0.2146537277 | BT18: 0.1959881862 | BU18: 0.1789457352 | BV18: 0.1633852365 | BW18: 0.1491778246 | BX18: 0.1362058399 | BY18: 0.1243618538 | BZ18: 0.1135477796 | CA18: 0.1036740596 | CB18: 0.09465892398 | CC18: 0.0864277132 | CD18: 0.07891225987 | CE18: 0.07205032423 | CF18: 0.06578507865 | CG18: 0.06006463703 | CH18: 0.05484162511 | CI18: 0.05007278814 | CJ18: 0.04571863265 | CK18: 0.04174309938 | CL18: 0.03811326465 | CM18: 0.03479906772 | CN18: 0.03177306184 | CO18: 0.02901018689 | CP18: 0.02648756195 | CQ18: 0.02418429569 | CR18: 0.02208131346 | CS18: 0.02016119924 | CT18: 0.01840805148 | CU18: 0.01680735135 | CV18: 0.01534584254 | CW18: 0.01401142145 | CX18: 0.01279303698 | CY18: 0.01168059898 | CZ18: 0.01066489472 | DA18: 0.009737512569 | DB18: 0.008890772346 | DC18: 0.008117661707 | DD18: 0.00741177808 | DE18: 0.006767275639 | DF18: 0.006178816888 | DG18: 0.005641528463 | DH18: 0.00515096077 | DI18: 0.004703051138 | DJ18: 0.004294090169 | DK18: 0.003920691024 | DL18: 0.00357976137 | DM18: 0.003268477773 | DN18: 0.002984262314 | DO18: 0.002724761243 | DP18: 0.002487825483 | DQ18: 0.002271492832 | DR18: 0.002073971716 | DS18: 0.00189362635 | DT18: 0.001728963189 | DU18: 0.001578618564 | DV18: 0.001441347384 | DW18: 0.001316012829 | DX18: 0.001201576931 | DY18: 0.00109709198 | DZ18: 0.001001692678 | EA18: 0.0009145889667 | EB18: 0.0008350594914 | EC18: 0.0007624456225 | ED18: =ED13*ED17 -> 0.0006961460032 | EE18: 0.0006356115681 | EF18: 0.000580340997 | EG18: 0.0005298765625 | EH18: 0.0004838003396 | EI18: 0.0004417307449 | EJ18: 0.0004033193758 | EK18: 0.0003682481257 | EL18: 0.0003362265496 | EM18: 0.0003069894583 | EN18: 0.0002802947228 | EO18: 0.0002559212686 | EP18: 0.0002336672453 | EQ18: 0.0002133483544 | ER18: 0.0001947963236 | ES18: 0.0001778575128 | ET18: 0.0001623916421 | EU18: 0.0001482706298 | EV18: 0.0001353775315 | EW18: 0.0001236055723 | EX18: 0.0001128572616 | EY18: 0.0001030435867 | EZ18: 9.408327483e-05 | FA18: 8.590212049e-05 | FB18: 7.843237089e-05 | FC18: 7.161216472e-05 | FD18: 6.538501996e-05 | FE18: 5.969936605e-05 | FF18: 5.450811683e-05 | FG18: 4.976828059e-05 | FH18: 4.544060401e-05 | FI18: 4.148924714e-05 | FJ18: 3.788148652e-05 | FK18: 3.458744422e-05 | FL18: 3.157984037e-05 | FM18: 2.883376729e-05 | FN18: 2.632648318e-05 | FO18: 2.403722377e-05 | FP18: 2.19470304e-05 | FQ18: 2.003859298e-05 | FR18: 1.829610663e-05 | FS18: 1.670514084e-05 | FT18: 1.525251989e-05 | FU18: 1.392621382e-05 | FV18: 1.27152387e-05 | FW18: 1.160956577e-05 | FX18: 1.060003831e-05 | FY18: 9.678295851e-06 | FZ18: 8.836704908e-06 | GA18: 8.068295785e-06 | GB18: 7.366704847e-06 | GC18: 6.726121817e-06 | GD18: 6.141241659e-06 | GE18: 5.607220645e-06 | GF18: 5.119636241e-06 | GG18: 4.674450481e-06 | GH18: 4.267976526e-06 | GI18: 3.896848133e-06 | GJ18: 3.557991773e-06 | GK18: 3.248601184e-06 | GL18: 2.966114125e-06 | GM18: 2.708191158e-06 | GN18: 2.472696274e-06 | GO18: 2.257679207e-06 | GP18: =GP13*GP17 -> 2.061359276e-06 | GQ18: 1.882110643e-06 | GR18: 1.718448848e-06 | GS18: 1.569018514e-06 | GT18: 1.432582121e-06 | GU18: 1.308009763e-06 | GV18: 1.194269783e-06 | GW18: 1.090420237e-06 | GX18: 9.956010859e-07 | GY18: 9.090270784e-07 | GZ18: 8.299812455e-07 | HA18: 7.578089633e-07 | HB18: 6.919125317e-07 | HC18: 6.317462246e-07 | HD18: 5.768117703e-07 | HE18: 5.266542251e-07 | HF18: 4.808582055e-07 | HG18: 4.390444485e-07 | HH18: 4.008666704e-07 | HI18: 3.66008699e-07 | HJ18: 3.341818556e-07 | HK18: 3.051225638e-07 | HL18: 2.78590167e-07 | HM18: 2.543649351e-07 | HN18: 2.322462451e-07 | HO18: 2.120509194e-07 | HP18: 1.93611709e-07 | HQ18: 1.767759082e-07 | HR18: 1.614040901e-07 | HS18: 1.473689519e-07 | HT18: 1.345542604e-07 | HU18: 1.228538899e-07 | HV18: 1.12170943e-07 | HW18: 1.024169479e-07 | HX18: 9.351112637e-08 | HY18: 8.537972408e-08 | HZ18: 7.795540025e-08 | IA18: 7.117666979e-08 | IB18: 6.498739416e-08 | IC18: 5.93363164e-08 | ID18: 5.417663672e-08 | IE18: 4.946562483e-08 | IF18: 4.516426615e-08 | IG18: 4.123693866e-08 | IH18: 3.76511179e-08 | II18: 3.437710765e-08 | IJ18: 3.138779394e-08 | IK18: 2.865842056e-08 | IL18: 2.616638399e-08 | IM18: 2.389104625e-08 | IN18: 2.181356397e-08 | IO18: 1.991673232e-08 | IP18: 1.818484255e-08 | IQ18: 1.660355189e-08 | IR18: 1.515976477e-08 | IS18: 1.384152436e-08 | IT18: 1.263791354e-08 | IU18: 1.153896454e-08 | IV18: 1.053557632e-08 | IW18: 9.619439248e-09 | IX18: 8.78296627e-09
B19: Sum of Discounted Value | C19: =SUM(18:18) -> 999.9999999
B20: Sum Product | C20: =SUMPRODUCT(E13:IX13,E17:IX17) -> 999.9999999
B22: Value Formula | C22: =C13/(F8-F5) -> 1000

Sheet Analyst Report
A1: Company Snapshot 2013e 2014e 2015e 2016e | B1: 2011 | C1: 2012 | D1: 2013 | E1: 2014 | F1: 2015 | G1: 2016
A2: Revenues (Sales) | B2: 1716 | C2: 2203 | D2: 2430 | E2: 2530 | F2: 2572 | G2: 2645
A3: % Growth in Revenues | B3: 0.12 | C3: 0.28 | D3: 0.1 | E3: 0.04 | F3: 0.02 | G3: 0.03
A4: Net Income | B4: 831 | C4: 1102 | D4: 1189 | E4: 1238 | F4: 1254 | G4: 1297
A5: % Growth in Gross Profit | B5: 0.24 | C5: 0.29 | D5: 0.1 | E5: 0.04 | F5: 0.01 | G5: 0.03
A6: EPS | B6: 5.43 | C6: 7.2 | D6: 7.77 | E6: 8.09 | F6: 8.19 | G6: 8.48
A7: Return On Equity (ROE) | B7: 0.22 | C7: 0.19 | D7: 0.2 | E7: 0.25 | F7: 0.35 | G7: 0.38
A8: Retun On Asstes (ROA) | B8: 0.14 | C8: 0.12 | D8: 0.14 | E8: 0.18 | F8: 0.25 | G8: 0.28
A9: EBIT Margins | B9: 0.51 | C9: 0.52 | D9: 0.51 | E9: 0.51 | F9: 0.51 | G9: 0.51
A10: Net Margins | B10: 0.49 | C10: 0.43 | D10: 0.43 | E10: 0.48 | F10: 0.5 | G10: 0.49
A11: PE (x) | B11: 8.7 | C11: 9.98 | D11: 13.46 | E11: 10.86 | F11: 13.78 | G11: 13.03
A12: PB (x) | B12: 1.9 | C12: 1.89 | D12: 2.63 | E12: 2.75 | F12: 4.81 | G12: 4.96
A13: Dividend Yeild | B13: 0.07 | C13: 0.06 | D13: 0.07 | E13: 0.11 | F13: 0.07 | G13: 0.07
A17: Growth | E17: =E2/D2-1 -> 0.04115226337 | F17: =F2/E2-1 -> 0.01660079051 | G17: 0.02838258165
